Workbook

Sheet Silica PSD
A1: Record Number | B1: Sample Name | C1: Measurement Date Time | D1: Dx (10) | E1: Dx (50) | F1: Dx (90) | G1: Operator Name | H1: Instrument Serial No. | I1: 0.01 | J1: 0.0114 | K1: 0.0129 | L1: 0.0147 | M1: 0.0167 | N1: 0.0189 | O1: 0.0215 | P1: 0.0244 | Q1: 0.0278 | R1: 0.0315 | S1: 0.0358 | T1: 0.0407 | U1: 0.0463 | V1: 0.0526 | W1: 0.0597 | X1: 0.0679 | Y1: 0.0771 | Z1: 0.0876 | AA1: 0.0995 | AB1: 0.113 | AC1: 0.128 | AD1: 0.146 | AE1: 0.166 | AF1: 0.188 | AG1: 0.214 | AH1: 0.243 | AI1: 0.276 | AJ1: 0.314 | AK1: 0.357 | AL1: 0.405 | AM1: 0.46 | AN1: 0.523 | AO1: 0.594 | AP1: 0.675 | AQ1: 0.767 | AR1: 0.872 | AS1: 0.991 | AT1: 1.13 | AU1: 1.28 | AV1: 1.45 | AW1: 1.65 | AX1: 1.88 | AY1: 2.13 | AZ1: 2.42 | BA1: 2.75 | BB1: 3.12 | BC1: 3.55 | BD1: 4.03 | BE1: 4.58 | BF1: 5.21 | BG1: 5.92 | BH1: 6.72 | BI1: 7.64 | BJ1: 8.68 | BK1: 9.86 | BL1: 11.2 | BM1: 12.7 | BN1: 14.5 | BO1: 16.4 | BP1: 18.7 | BQ1: 21.2 | BR1: 24.1 | BS1: 27.4 | BT1: 31.1 | BU1: 35.3 | BV1: 40.1 | BW1: 45.6 | BX1: 51.8 | BY1: 58.9 | BZ1: 66.9 | CA1: 76 | CB1: 86.4 | CC1: 98.1 | CD1: 111 | CE1: 127 | CF1: 144 | CG1: 163 | CH1: 186 | CI1: 211 | CJ1: 240 | CK1: 272 | CL1: 310 | CM1: 352 | CN1: 400 | CO1: 454 | CP1: 516 | CQ1: 586 | CR1: 666 | CS1: 756 | CT1: 859 | CU1: 976 | CV1: 1110 | CW1: 1260 | CX1: 1430 | CY1: 1630 | CZ1: 1850 | DA1: 2100 | DB1: 2390 | DC1: 2710 | DD1: 3080 | DE1: 3500
A2: 1 | B2: Barend WJ silica | C2: 9/28/2016 11:54:38 AM | D2: 58.1 | E2: 266 | F2: 968 | G2: Emulsions | H2: MAL1063907 | I2: 0 | J2: 0 | K2: 0 | L2: 0 | M2: 0 | N2: 0 | O2: 0 | P2: 0 | Q2: 0 | R2: 0 | S2: 0 | T2: 0 | U2: 0 | V2: 0 | W2: 0 | X2: 0 | Y2: 0 | Z2: 0 | AA2: 0 | AB2: 0 | AC2: 0 | AD2: 0 | AE2: 0 | AF2: 0 | AG2: 0 | AH2: 0 | AI2: 0 | AJ2: 0 | AK2: 0 | AL2: 0 | AM2: 0 | AN2: 0 | AO2: 0 | AP2: 0 | AQ2: 0 | AR2: 0 | AS2: 0 | AT2: 0 | AU2: 0 | AV2: 0 | AW2: 0 | AX2: 0 | AY2: 0 | AZ2: 0 | BA2: 0 | BB2: 0 | BC2: 0 | BD2: 0 | BE2: 0 | BF2: 0 | BG2: 0 | BH2: 0 | BI2: 0.06 | BJ2: 0.11 | BK2: 0.16 | BL2: 0.21 | BM2: 0.26 | BN2: 0.32 | BO2: 0.39 | BP2: 0.46 | BQ2: 0.54 | BR2: 0.64 | BS2: 0.75 | BT2: 0.88 | BU2: 1.03 | BV2: 1.22 | BW2: 1.45 | BX2: 1.71 | BY2: 2.02 | BZ2: 2.34 | CA2: 2.68 | CB2: 3 | CC2: 3.29 | CD2: 3.52 | CE2: 3.7 | CF2: 3.82 | CG2: 3.91 | CH2: 4 | CI2: 4.08 | CJ2: 4.19 | CK2: 4.29 | CL2: 4.39 | CM2: 4.45 | CN2: 4.45 | CO2: 4.37 | CP2: 4.19 | CQ2: 3.91 | CR2: 3.55 | CS2: 3.13 | CT2: 2.7 | CU2: 2.28 | CV2: 1.89 | CW2: 1.54 | CX2: 1.23 | CY2: 0.96 | CZ2: 0.72 | DA2: 0.52 | DB2: 0.36 | DC2: 0.22 | DD2: 0.11 | DE2: 0
A3: 2 | B3: Barend WJ silica | C3: 9/28/2016 11:55:30 AM | D3: 55.3 | E3: 241 | F3: 813 | G3: Emulsions | H3: MAL1063907 | I3: 0 | J3: 0 | K3: 0 | L3: 0 | M3: 0 | N3: 0 | O3: 0 | P3: 0 | Q3: 0 | R3: 0 | S3: 0 | T3: 0 | U3: 0 | V3: 0 | W3: 0 | X3: 0 | Y3: 0 | Z3: 0 | AA3: 0 | AB3: 0 | AC3: 0 | AD3: 0 | AE3: 0 | AF3: 0 | AG3: 0 | AH3: 0 | AI3: 0 | AJ3: 0 | AK3: 0 | AL3: 0 | AM3: 0 | AN3: 0 | AO3: 0 | AP3: 0 | AQ3: 0 | AR3: 0 | AS3: 0 | AT3: 0 | AU3: 0 | AV3: 0 | AW3: 0 | AX3: 0 | AY3: 0 | AZ3: 0 | BA3: 0 | BB3: 0 | BC3: 0 | BD3: 0 | BE3: 0 | BF3: 0 | BG3: 0 | BH3: 0 | BI3: 0.07 | BJ3: 0.12 | BK3: 0.17 | BL3: 0.22 | BM3: 0.27 | BN3: 0.32 | BO3: 0.38 | BP3: 0.45 | BQ3: 0.53 | BR3: 0.63 | BS3: 0.76 | BT3: 0.93 | BU3: 1.13 | BV3: 1.37 | BW3: 1.65 | BX3: 1.97 | BY3: 2.31 | BZ3: 2.66 | CA3: 3.01 | CB3: 3.32 | CC3: 3.58 | CD3: 3.77 | CE3: 3.91 | CF3: 3.99 | CG3: 4.05 | CH3: 4.11 | CI3: 4.17 | CJ3: 4.26 | CK3: 4.36 | CL3: 4.45 | CM3: 4.52 | CN3: 4.52 | CO3: 4.44 | CP3: 4.26 | CQ3: 3.97 | CR3: 3.59 | CS3: 3.12 | CT3: 2.61 | CU3: 2.09 | CV3: 1.6 | CW3: 1.16 | CX3: 0.78 | CY3: 0.4 | CZ3: 0.02 | DA3: 0 | DB3: 0 | DC3: 0 | DD3: 0 | DE3: 0
A4: 3 | B4: Barend WJ silica | C4: 9/28/2016 11:56:22 AM | D4: 54.9 | E4: 230 | F4: 793 | G4: Emulsions | H4: MAL1063907 | I4: 0 | J4: 0 | K4: 0 | L4: 0 | M4: 0 | N4: 0 | O4: 0 | P4: 0 | Q4: 0 | R4: 0 | S4: 0 | T4: 0 | U4: 0 | V4: 0 | W4: 0 | X4: 0 | Y4: 0 | Z4: 0 | AA4: 0 | AB4: 0 | AC4: 0 | AD4: 0 | AE4: 0 | AF4: 0 | AG4: 0 | AH4: 0 | AI4: 0 | AJ4: 0 | AK4: 0 | AL4: 0 | AM4: 0 | AN4: 0 | AO4: 0 | AP4: 0 | AQ4: 0 | AR4: 0 | AS4: 0 | AT4: 0 | AU4: 0 | AV4: 0 | AW4: 0 | AX4: 0 | AY4: 0 | AZ4: 0 | BA4: 0 | BB4: 0 | BC4: 0 | BD4: 0 | BE4: 0 | BF4: 0 | BG4: 0 | BH4: 0 | BI4: 0.08 | BJ4: 0.13 | BK4: 0.18 | BL4: 0.23 | BM4: 0.28 | BN4: 0.32 | BO4: 0.37 | BP4: 0.42 | BQ4: 0.49 | BR4: 0.58 | BS4: 0.71 | BT4: 0.9 | BU4: 1.14 | BV4: 1.44 | BW4: 1.78 | BX4: 2.17 | BY4: 2.57 | BZ4: 2.96 | CA4: 3.3 | CB4: 3.58 | CC4: 3.78 | CD4: 3.91 | CE4: 3.97 | CF4: 3.99 | CG4: 4 | CH4: 4.02 | CI4: 4.08 | CJ4: 4.16 | CK4: 4.27 | CL4: 4.37 | CM4: 4.43 | CN4: 4.44 | CO4: 4.35 | CP4: 4.17 | CQ4: 3.87 | CR4: 3.48 | CS4: 3.01 | CT4: 2.5 | CU4: 1.99 | CV4: 1.5 | CW4: 1.07 | CX4: 0.7 | CY4: 0.33 | CZ4: 0 | DA4: 0 | DB4: 0 | DC4: 0 | DD4: 0 | DE4: 0
A5: 4 | B5: Barend WJ silica | C5: 9/28/2016 11:57:14 AM | D5: 55 | E5: 221 | F5: 779 | G5: Emulsions | H5: MAL1063907 | I5: 0 | J5: 0 | K5: 0 | L5: 0 | M5: 0 | N5: 0 | O5: 0 | P5: 0 | Q5: 0 | R5: 0 | S5: 0 | T5: 0 | U5: 0 | V5: 0 | W5: 0 | X5: 0 | Y5: 0 | Z5: 0 | AA5: 0 | AB5: 0 | AC5: 0 | AD5: 0 | AE5: 0 | AF5: 0 | AG5: 0 | AH5: 0 | AI5: 0 | AJ5: 0 | AK5: 0 | AL5: 0 | AM5: 0 | AN5: 0 | AO5: 0 | AP5: 0 | AQ5: 0 | AR5: 0 | AS5: 0 | AT5: 0 | AU5: 0 | AV5: 0 | AW5: 0 | AX5: 0 | AY5: 0 | AZ5: 0 | BA5: 0 | BB5: 0 | BC5: 0 | BD5: 0 | BE5: 0 | BF5: 0 | BG5: 0 | BH5: 0 | BI5: 0.07 | BJ5: 0.13 | BK5: 0.18 | BL5: 0.24 | BM5: 0.29 | BN5: 0.33 | BO5: 0.36 | BP5: 0.4 | BQ5: 0.46 | BR5: 0.54 | BS5: 0.66 | BT5: 0.85 | BU5: 1.11 | BV5: 1.45 | BW5: 1.85 | BX5: 2.3 | BY5: 2.77 | BZ5: 3.21 | CA5: 3.58 | CB5: 3.85 | CC5: 4.01 | CD5: 4.07 | CE5: 4.04 | CF5: 3.98 | CG5: 3.92 | CH5: 3.9 | CI5: 3.93 | CJ5: 4.03 | CK5: 4.16 | CL5: 4.29 | CM5: 4.39 | CN5: 4.41 | CO5: 4.32 | CP5: 4.11 | CQ5: 3.79 | CR5: 3.37 | CS5: 2.88 | CT5: 2.38 | CU5: 1.88 | CV5: 1.43 | CW5: 1.03 | CX5: 0.69 | CY5: 0.36 | CZ5: 0.02 | DA5: 0 | DB5: 0 | DC5: 0 | DD5: 0 | DE5: 0
A6: 5 | B6: Barend WJ silica | C6: 9/28/2016 11:58:07 AM | D6: 55.8 | E6: 227 | F6: 876 | G6: Emulsions | H6: MAL1063907 | I6: 0 | J6: 0 | K6: 0 | L6: 0 | M6: 0 | N6: 0 | O6: 0 | P6: 0 | Q6: 0 | R6: 0 | S6: 0 | T6: 0 | U6: 0 | V6: 0 | W6: 0 | X6: 0 | Y6: 0 | Z6: 0 | AA6: 0 | AB6: 0 | AC6: 0 | AD6: 0 | AE6: 0 | AF6: 0 | AG6: 0 | AH6: 0 | AI6: 0 | AJ6: 0 | AK6: 0 | AL6: 0 | AM6: 0 | AN6: 0 | AO6: 0 | AP6: 0 | AQ6: 0 | AR6: 0 | AS6: 0 | AT6: 0 | AU6: 0 | AV6: 0 | AW6: 0 | AX6: 0 | AY6: 0 | AZ6: 0 | BA6: 0 | BB6: 0 | BC6: 0 | BD6: 0 | BE6: 0 | BF6: 0 | BG6: 0 | BH6: 0 | BI6: 0.07 | BJ6: 0.12 | BK6: 0.18 | BL6: 0.24 | BM6: 0.28 | BN6: 0.32 | BO6: 0.35 | BP6: 0.38 | BQ6: 0.42 | BR6: 0.5 | BS6: 0.62 | BT6: 0.81 | BU6: 1.07 | BV6: 1.43 | BW6: 1.86 | BX6: 2.35 | BY6: 2.84 | BZ6: 3.29 | CA6: 3.66 | CB6: 3.91 | CC6: 4.03 | CD6: 4.02 | CE6: 3.94 | CF6: 3.82 | CG6: 3.71 | CH6: 3.66 | CI6: 3.68 | CJ6: 3.77 | CK6: 3.9 | CL6: 4.04 | CM6: 4.15 | CN6: 4.19 | CO6: 4.14 | CP6: 3.97 | CQ6: 3.69 | CR6: 3.33 | CS6: 2.9 | CT6: 2.46 | CU6: 2.03 | CV6: 1.63 | CW6: 1.28 | CX6: 0.98 | CY6: 0.72 | CZ6: 0.51 | DA6: 0.35 | DB6: 0.22 | DC6: 0.13 | DD6: 0.06 | DE6: 0
A7: 6 | B7: Average of 'Barend WJ silica' | C7: 9/28/2016 11:54:38 AM | D7: 55.7 | E7: 237 | F7: 841 | G7: Emulsions | H7: MAL1063907 | I7: 0 | J7: 0 | K7: 0 | L7: 0 | M7: 0 | N7: 0 | O7: 0 | P7: 0 | Q7: 0 | R7: 0 | S7: 0 | T7: 0 | U7: 0 | V7: 0 | W7: 0 | X7: 0 | Y7: 0 | Z7: 0 | AA7: 0 | AB7: 0 | AC7: 0 | AD7: 0 | AE7: 0 | AF7: 0 | AG7: 0 | AH7: 0 | AI7: 0 | AJ7: 0 | AK7: 0 | AL7: 0 | AM7: 0 | AN7: 0 | AO7: 0 | AP7: 0 | AQ7: 0 | AR7: 0 | AS7: 0 | AT7: 0 | AU7: 0 | AV7: 0 | AW7: 0 | AX7: 0 | AY7: 0 | AZ7: 0 | BA7: 0 | BB7: 0 | BC7: 0 | BD7: 0 | BE7: 0 | BF7: 0 | BG7: 0 | BH7: 0 | BI7: 0.07 | BJ7: 0.12 | BK7: 0.17 | BL7: 0.23 | BM7: 0.28 | BN7: 0.32 | BO7: 0.37 | BP7: 0.42 | BQ7: 0.49 | BR7: 0.58 | BS7: 0.7 | BT7: 0.87 | BU7: 1.1 | BV7: 1.38 | BW7: 1.72 | BX7: 2.1 | BY7: 2.5 | BZ7: 2.89 | CA7: 3.25 | CB7: 3.53 | CC7: 3.74 | CD7: 3.86 | CE7: 3.91 | CF7: 3.92 | CG7: 3.92 | CH7: 3.94 | CI7: 3.99 | CJ7: 4.08 | CK7: 4.2 | CL7: 4.31 | CM7: 4.39 | CN7: 4.4 | CO7: 4.33 | CP7: 4.14 | CQ7: 3.85 | CR7: 3.46 | CS7: 3.01 | CT7: 2.53 | CU7: 2.05 | CV7: 1.61 | CW7: 1.21 | CX7: 0.87 | CY7: 0.55 | CZ7: 0.26 | DA7: 0.17 | DB7: 0.12 | DC7: 0.07 | DD7: 0.03 | DE7: 0
A8: 7 | B8: Barend WJ silica | C8: 9/28/2016 11:59:14 AM | D8: 59.1 | E8: 274 | F8: 921 | G8: Emulsions | H8: MAL1063907 | I8: 0 | J8: 0 | K8: 0 | L8: 0 | M8: 0 | N8: 0 | O8: 0 | P8: 0 | Q8: 0 | R8: 0 | S8: 0 | T8: 0 | U8: 0 | V8: 0 | W8: 0 | X8: 0 | Y8: 0 | Z8: 0 | AA8: 0 | AB8: 0 | AC8: 0 | AD8: 0 | AE8: 0 | AF8: 0 | AG8: 0 | AH8: 0 | AI8: 0 | AJ8: 0 | AK8: 0 | AL8: 0 | AM8: 0 | AN8: 0 | AO8: 0 | AP8: 0 | AQ8: 0 | AR8: 0 | AS8: 0 | AT8: 0 | AU8: 0 | AV8: 0 | AW8: 0 | AX8: 0 | AY8: 0 | AZ8: 0 | BA8: 0 | BB8: 0 | BC8: 0 | BD8: 0 | BE8: 0 | BF8: 0 | BG8: 0 | BH8: 0 | BI8: 0.08 | BJ8: 0.12 | BK8: 0.17 | BL8: 0.22 | BM8: 0.27 | BN8: 0.33 | BO8: 0.38 | BP8: 0.45 | BQ8: 0.52 | BR8: 0.61 | BS8: 0.72 | BT8: 0.84 | BU8: 1 | BV8: 1.18 | BW8: 1.4 | BX8: 1.66 | BY8: 1.95 | BZ8: 2.26 | CA8: 2.58 | CB8: 2.9 | CC8: 3.18 | CD8: 3.42 | CE8: 3.61 | CF8: 3.75 | CG8: 3.87 | CH8: 3.98 | CI8: 4.1 | CJ8: 4.22 | CK8: 4.36 | CL8: 4.49 | CM8: 4.59 | CN8: 4.63 | CO8: 4.6 | CP8: 4.46 | CQ8: 4.21 | CR8: 3.86 | CS8: 3.43 | CT8: 2.95 | CU8: 2.45 | CV8: 1.96 | CW8: 1.49 | CX8: 1.08 | CY8: 0.73 | CZ8: 0.46 | DA8: 0.27 | DB8: 0.14 | DC8: 0.06 | DD8: 0 | DE8: 0
A9: 8 | B9: Barend WJ silica | C9: 9/28/2016 12:00:06 PM | D9: 57 | E9: 259 | F9: 828 | G9: Emulsions | H9: MAL1063907 | I9: 0 | J9: 0 | K9: 0 | L9: 0 | M9: 0 | N9: 0 | O9: 0 | P9: 0 | Q9: 0 | R9: 0 | S9: 0 | T9: 0 | U9: 0 | V9: 0 | W9: 0 | X9: 0 | Y9: 0 | Z9: 0 | AA9: 0 | AB9: 0 | AC9: 0 | AD9: 0 | AE9: 0 | AF9: 0 | AG9: 0 | AH9: 0 | AI9: 0 | AJ9: 0 | AK9: 0 | AL9: 0 | AM9: 0 | AN9: 0 | AO9: 0 | AP9: 0 | AQ9: 0 | AR9: 0 | AS9: 0 | AT9: 0 | AU9: 0 | AV9: 0 | AW9: 0 | AX9: 0 | AY9: 0 | AZ9: 0 | BA9: 0 | BB9: 0 | BC9: 0 | BD9: 0 | BE9: 0 | BF9: 0 | BG9: 0 | BH9: 0 | BI9: 0.08 | BJ9: 0.13 | BK9: 0.18 | BL9: 0.23 | BM9: 0.29 | BN9: 0.35 | BO9: 0.41 | BP9: 0.47 | BQ9: 0.55 | BR9: 0.64 | BS9: 0.75 | BT9: 0.88 | BU9: 1.04 | BV9: 1.23 | BW9: 1.47 | BX9: 1.75 | BY9: 2.06 | BZ9: 2.4 | CA9: 2.75 | CB9: 3.08 | CC9: 3.36 | CD9: 3.59 | CE9: 3.76 | CF9: 3.87 | CG9: 3.96 | CH9: 4.04 | CI9: 4.14 | CJ9: 4.26 | CK9: 4.41 | CL9: 4.57 | CM9: 4.69 | CN9: 4.76 | CO9: 4.73 | CP9: 4.57 | CQ9: 4.29 | CR9: 3.87 | CS9: 3.36 | CT9: 2.79 | CU9: 2.22 | CV9: 1.67 | CW9: 1.19 | CX9: 0.78 | CY9: 0.38 | CZ9: 0 | DA9: 0 | DB9: 0 | DC9: 0 | DD9: 0 | DE9: 0
A10: 9 | B10: Barend WJ silica | C10: 9/28/2016 12:00:58 PM | D10: 55 | E10: 242 | F10: 766 | G10: Emulsions | H10: MAL1063907 | I10: 0 | J10: 0 | K10: 0 | L10: 0 | M10: 0 | N10: 0 | O10: 0 | P10: 0 | Q10: 0 | R10: 0 | S10: 0 | T10: 0 | U10: 0 | V10: 0 | W10: 0 | X10: 0 | Y10: 0 | Z10: 0 | AA10: 0 | AB10: 0 | AC10: 0 | AD10: 0 | AE10: 0 | AF10: 0 | AG10: 0 | AH10: 0 | AI10: 0 | AJ10: 0 | AK10: 0 | AL10: 0 | AM10: 0 | AN10: 0 | AO10: 0 | AP10: 0 | AQ10: 0 | AR10: 0 | AS10: 0 | AT10: 0 | AU10: 0 | AV10: 0 | AW10: 0 | AX10: 0 | AY10: 0 | AZ10: 0 | BA10: 0 | BB10: 0 | BC10: 0 | BD10: 0 | BE10: 0 | BF10: 0 | BG10: 0 | BH10: 0 | BI10: 0.09 | BJ10: 0.14 | BK10: 0.19 | BL10: 0.25 | BM10: 0.3 | BN10: 0.36 | BO10: 0.43 | BP10: 0.5 | BQ10: 0.58 | BR10: 0.67 | BS10: 0.79 | BT10: 0.92 | BU10: 1.09 | BV10: 1.3 | BW10: 1.55 | BX10: 1.84 | BY10: 2.17 | BZ10: 2.53 | CA10: 2.89 | CB10: 3.24 | CC10: 3.53 | CD10: 3.77 | CE10: 3.94 | CF10: 4.05 | CG10: 4.12 | CH10: 4.18 | CI10: 4.26 | CJ10: 4.36 | CK10: 4.49 | CL10: 4.61 | CM10: 4.72 | CN10: 4.76 | CO10: 4.69 | CP10: 4.5 | CQ10: 4.17 | CR10: 3.71 | CS10: 3.15 | CT10: 2.54 | CU10: 1.93 | CV10: 1.38 | CW10: 0.9 | CX10: 0.43 | CY10: 0 | CZ10: 0 | DA10: 0 | DB10: 0 | DC10: 0 | DD10: 0 | DE10: 0
A11: 10 | B11: Barend WJ silica | C11: 9/28/2016 12:01:51 PM | D11: 54.8 | E11: 241 | F11: 806 | G11: Emulsions | H11: MAL1063907 | I11: 0 | J11: 0 | K11: 0 | L11: 0 | M11: 0 | N11: 0 | O11: 0 | P11: 0 | Q11: 0 | R11: 0 | S11: 0 | T11: 0 | U11: 0 | V11: 0 | W11: 0 | X11: 0 | Y11: 0 | Z11: 0 | AA11: 0 | AB11: 0 | AC11: 0 | AD11: 0 | AE11: 0 | AF11: 0 | AG11: 0 | AH11: 0 | AI11: 0 | AJ11: 0 | AK11: 0 | AL11: 0 | AM11: 0 | AN11: 0 | AO11: 0 | AP11: 0 | AQ11: 0 | AR11: 0 | AS11: 0 | AT11: 0 | AU11: 0 | AV11: 0 | AW11: 0 | AX11: 0 | AY11: 0 | AZ11: 0 | BA11: 0 | BB11: 0 | BC11: 0 | BD11: 0 | BE11: 0 | BF11: 0 | BG11: 0 | BH11: 0 | BI11: 0.09 | BJ11: 0.14 | BK11: 0.19 | BL11: 0.24 | BM11: 0.3 | BN11: 0.36 | BO11: 0.43 | BP11: 0.5 | BQ11: 0.58 | BR11: 0.68 | BS11: 0.79 | BT11: 0.93 | BU11: 1.1 | BV11: 1.31 | BW11: 1.56 | BX11: 1.85 | BY11: 2.18 | BZ11: 2.54 | CA11: 2.91 | CB11: 3.26 | CC11: 3.56 | CD11: 3.79 | CE11: 3.96 | CF11: 4.06 | CG11: 4.13 | CH11: 4.18 | CI11: 4.23 | CJ11: 4.31 | CK11: 4.4 | CL11: 4.48 | CM11: 4.55 | CN11: 4.55 | CO11: 4.47 | CP11: 4.29 | CQ11: 3.99 | CR11: 3.58 | CS11: 3.1 | CT11: 2.58 | CU11: 2.05 | CV11: 1.56 | CW11: 1.12 | CX11: 0.75 | CY11: 0.37 | CZ11: 0.01 | DA11: 0 | DB11: 0 | DC11: 0 | DD11: 0 | DE11: 0
A12: 11 | B12: Barend WJ silica | C12: 9/28/2016 12:02:43 PM | D12: 53.1 | E12: 226 | F12: 759 | G12: Emulsions | H12: MAL1063907 | I12: 0 | J12: 0 | K12: 0 | L12: 0 | M12: 0 | N12: 0 | O12: 0 | P12: 0 | Q12: 0 | R12: 0 | S12: 0 | T12: 0 | U12: 0 | V12: 0 | W12: 0 | X12: 0 | Y12: 0 | Z12: 0 | AA12: 0 | AB12: 0 | AC12: 0 | AD12: 0 | AE12: 0 | AF12: 0 | AG12: 0 | AH12: 0 | AI12: 0 | AJ12: 0 | AK12: 0 | AL12: 0 | AM12: 0 | AN12: 0 | AO12: 0 | AP12: 0 | AQ12: 0 | AR12: 0 | AS12: 0 | AT12: 0 | AU12: 0 | AV12: 0 | AW12: 0 | AX12: 0 | AY12: 0 | AZ12: 0 | BA12: 0 | BB12: 0 | BC12: 0 | BD12: 0 | BE12: 0 | BF12: 0 | BG12: 0 | BH12: 0 | BI12: 0.09 | BJ12: 0.14 | BK12: 0.2 | BL12: 0.26 | BM12: 0.32 | BN12: 0.38 | BO12: 0.44 | BP12: 0.52 | BQ12: 0.6 | BR12: 0.7 | BS12: 0.83 | BT12: 0.97 | BU12: 1.15 | BV12: 1.38 | BW12: 1.65 | BX12: 1.96 | BY12: 2.32 | BZ12: 2.7 | CA12: 3.08 | CB12: 3.43 | CC12: 3.74 | CD12: 3.97 | CE12: 4.12 | CF12: 4.2 | CG12: 4.24 | CH12: 4.26 | CI12: 4.28 | CJ12: 4.32 | CK12: 4.38 | CL12: 4.45 | CM12: 4.49 | CN12: 4.47 | CO12: 4.38 | CP12: 4.18 | CQ12: 3.87 | CR12: 3.46 | CS12: 2.96 | CT12: 2.42 | CU12: 1.87 | CV12: 1.37 | CW12: 0.93 | CX12: 0.48 | CY12: 0.04 | CZ12: 0 | DA12: 0 | DB12: 0 | DC12: 0 | DD12: 0 | DE12: 0
A13: 12 | B13: Average of 'Barend WJ silica' | C13: 9/28/2016 11:59:14 AM | D13: 55.6 | E13: 248 | F13: 815 | G13: Emulsions | H13: MAL1063907 | I13: 0 | J13: 0 | K13: 0 | L13: 0 | M13: 0 | N13: 0 | O13: 0 | P13: 0 | Q13: 0 | R13: 0 | S13: 0 | T13: 0 | U13: 0 | V13: 0 | W13: 0 | X13: 0 | Y13: 0 | Z13: 0 | AA13: 0 | AB13: 0 | AC13: 0 | AD13: 0 | AE13: 0 | AF13: 0 | AG13: 0 | AH13: 0 | AI13: 0 | AJ13: 0 | AK13: 0 | AL13: 0 | AM13: 0 | AN13: 0 | AO13: 0 | AP13: 0 | AQ13: 0 | AR13: 0 | AS13: 0 | AT13: 0 | AU13: 0 | AV13: 0 | AW13: 0 | AX13: 0 | AY13: 0 | AZ13: 0 | BA13: 0 | BB13: 0 | BC13: 0 | BD13: 0 | BE13: 0 | BF13: 0 | BG13: 0 | BH13: 0 | BI13: 0.08 | BJ13: 0.13 | BK13: 0.19 | BL13: 0.24 | BM13: 0.3 | BN13: 0.35 | BO13: 0.42 | BP13: 0.49 | BQ13: 0.57 | BR13: 0.66 | BS13: 0.77 | BT13: 0.91 | BU13: 1.08 | BV13: 1.28 | BW13: 1.52 | BX13: 1.81 | BY13: 2.14 | BZ13: 2.49 | CA13: 2.84 | CB13: 3.18 | CC13: 3.47 | CD13: 3.71 | CE13: 3.88 | CF13: 3.99 | CG13: 4.06 | CH13: 4.13 | CI13: 4.2 | CJ13: 4.3 | CK13: 4.41 | CL13: 4.52 | CM13: 4.61 | CN13: 4.64 | CO13: 4.58 | CP13: 4.4 | CQ13: 4.11 | CR13: 3.7 | CS13: 3.2 | CT13: 2.66 | CU13: 2.1 | CV13: 1.59 | CW13: 1.13 | CX13: 0.7 | CY13: 0.31 | CZ13: 0.09 | DA13: 0.05 | DB13: 0.03 | DC13: 0.01 | DD13: 0 | DE13: 0
A17: Record Number | B17: 6 | C17: 12
A18: Sample Name | B18: Average of 'Barend WJ silica' | C18: Average of 'Barend WJ silica'
A19: Measurement Date Time | B19: 9/28/2016 11:54:38 AM | C19: 9/28/2016 11:59:14 AM
A20: Dx (10) | B20: 55.7 | C20: 55.6
A21: Dx (50) | B21: 237 | C21: 248
A22: Dx (90) | B22: 841 | C22: 815
A23: Operator Name | B23: Emulsions | C23: Emulsions
A24: Instrument Serial No. | B24: MAL1063907 | C24: MAL1063907
A25: 0.01 | B25: 0 | C25: 0 | D25: =B25 -> 0
A26: 0.0114 | B26: 0 | C26: 0 | D26: =D25+B26 -> 0
A27: 0.0129 | B27: 0 | C27: 0 | D27: =D26+B27 -> 0
A28: 0.0147 | B28: 0 | C28: 0 | D28: 0
A29: 0.0167 | B29: 0 | C29: 0 | D29: 0
A30: 0.0189 | B30: 0 | C30: 0 | D30: 0
A31: 0.0215 | B31: 0 | C31: 0 | D31: 0
A32: 0.0244 | B32: 0 | C32: 0 | D32: 0
A33: 0.0278 | B33: 0 | C33: 0 | D33: 0
A34: 0.0315 | B34: 0 | C34: 0 | D34: 0
A35: 0.0358 | B35: 0 | C35: 0 | D35: 0
A36: 0.0407 | B36: 0 | C36: 0 | D36: 0
A37: 0.0463 | B37: 0 | C37: 0 | D37: 0
A38: 0.0526 | B38: 0 | C38: 0 | D38: 0
A39: 0.0597 | B39: 0 | C39: 0 | D39: 0
A40: 0.0679 | B40: 0 | C40: 0 | D40: 0
A41: 0.0771 | B41: 0 | C41: 0 | D41: 0
A42: 0.0876 | B42: 0 | C42: 0 | D42: 0
A43: 0.0995 | B43: 0 | C43: 0 | D43: 0
A44: 0.113 | B44: 0 | C44: 0 | D44: 0
A45: 0.128 | B45: 0 | C45: 0 | D45: 0
A46: 0.146 | B46: 0 | C46: 0 | D46: 0
A47: 0.166 | B47: 0 | C47: 0 | D47: 0
A48: 0.188 | B48: 0 | C48: 0 | D48: 0
A49: 0.214 | B49: 0 | C49: 0 | D49: 0
A50: 0.243 | B50: 0 | C50: 0 | D50: 0
A51: 0.276 | B51: 0 | C51: 0 | D51: 0
A52: 0.314 | B52: 0 | C52: 0 | D52: 0
A53: 0.357 | B53: 0 | C53: 0 | D53: 0
A54: 0.405 | B54: 0 | C54: 0 | D54: 0
A55: 0.46 | B55: 0 | C55: 0 | D55: 0
A56: 0.523 | B56: 0 | C56: 0 | D56: 0
A57: 0.594 | B57: 0 | C57: 0 | D57: 0
A58: 0.675 | B58: 0 | C58: 0 | D58: 0
A59: 0.767 | B59: 0 | C59: 0 | D59: 0
A60: 0.872 | B60: 0 | C60: 0 | D60: 0
A61: 0.991 | B61: 0 | C61: 0 | D61: 0
A62: 1.13 | B62: 0 | C62: 0 | D62: 0
A63: 1.28 | B63: 0 | C63: 0 | D63: 0
A64: 1.45 | B64: 0 | C64: 0 | D64: 0
A65: 1.65 | B65: 0 | C65: 0 | D65: 0
A66: 1.88 | B66: 0 | C66: 0 | D66: 0
A67: 2.13 | B67: 0 | C67: 0 | D67: 0
A68: 2.42 | B68: 0 | C68: 0 | D68: 0
A69: 2.75 | B69: 0 | C69: 0 | D69: 0
A70: 3.12 | B70: 0 | C70: 0 | D70: 0
A71: 3.55 | B71: 0 | C71: 0 | D71: 0
A72: 4.03 | B72: 0 | C72: 0 | D72: 0
A73: 4.58 | B73: 0 | C73: 0 | D73: 0
A74: 5.21 | B74: 0 | C74: 0 | D74: 0
A75: 5.92 | B75: 0 | C75: 0 | D75: 0
A76: 6.72 | B76: 0 | C76: 0 | D76: 0
A77: 7.64 | B77: 0.07 | C77: 0.08 | D77: 0.07
A78: 8.68 | B78: 0.12 | C78: 0.13 | D78: 0.19
A79: 9.86 | B79: 0.17 | C79: 0.19 | D79: 0.36
A80: 11.2 | B80: 0.23 | C80: 0.24 | D80: 0.59
A81: 12.7 | B81: 0.28 | C81: 0.3 | D81: 0.87
A82: 14.5 | B82: 0.32 | C82: 0.35 | D82: 1.19
A83: 16.4 | B83: 0.37 | C83: 0.42 | D83: 1.56
A84: 18.7 | B84: 0.42 | C84: 0.49 | D84: 1.98
A85: 21.2 | B85: 0.49 | C85: 0.57 | D85: 2.47
A86: 24.1 | B86: 0.58 | C86: 0.66 | D86: 3.05
A87: 27.4 | B87: 0.7 | C87: 0.77 | D87: 3.75
A88: 31.1 | B88: 0.87 | C88: 0.91 | D88: 4.62
A89: 35.3 | B89: 1.1 | C89: 1.08 | D89: 5.72
A90: 40.1 | B90: 1.38 | C90: 1.28 | D90: 7.1
A91: 45.6 | B91: 1.72 | C91: 1.52 | D91: =D90+B91 -> 8.82
A92: 51.8 | B92: 2.1 | C92: 1.81 | D92: 10.92
A93: 58.9 | B93: 2.5 | C93: 2.14 | D93: 13.42
A94: 66.9 | B94: 2.89 | C94: 2.49 | D94: 16.31
A95: 76 | B95: 3.25 | C95: 2.84 | D95: 19.56
A96: 86.4 | B96: 3.53 | C96: 3.18 | D96: 23.09
A97: 98.1 | B97: 3.74 | C97: 3.47 | D97: 26.83
A98: 111 | B98: 3.86 | C98: 3.71 | D98: 30.69
A99: 127 | B99: 3.91 | C99: 3.88 | D99: 34.6
A100: 144 | B100: 3.92 | C100: 3.99 | D100: 38.52
A101: 163 | B101: 3.92 | C101: 4.06 | D101: 42.44
A102: 186 | B102: 3.94 | C102: 4.13 | D102: 46.38
A103: 211 | B103: 3.99 | C103: 4.2 | D103: 50.37
A104: 240 | B104: 4.08 | C104: 4.3 | D104: 54.45
A105: 272 | B105: 4.2 | C105: 4.41 | D105: 58.65
A106: 310 | B106: 4.31 | C106: 4.52 | D106: 62.96
A107: 352 | B107: 4.39 | C107: 4.61 | D107: 67.35
A108: 400 | B108: 4.4 | C108: 4.64 | D108: 71.75
A109: 454 | B109: 4.33 | C109: 4.58 | D109: 76.08
A110: 516 | B110: 4.14 | C110: 4.4 | D110: 80.22
A111: 586 | B111: 3.85 | C111: 4.11 | D111: 84.07
A112: 666 | B112: 3.46 | C112: 3.7 | D112: 87.53
A113: 756 | B113: 3.01 | C113: 3.2 | D113: 90.54
A114: 859 | B114: 2.53 | C114: 2.66 | D114: 93.07
A115: 976 | B115: 2.05 | C115: 2.1 | D115: 95.12
A116: 1110 | B116: 1.61 | C116: 1.59 | D116: 96.73
A117: 1260 | B117: 1.21 | C117: 1.13 | D117: 97.94
A118: 1430 | B118: 0.87 | C118: 0.7 | D118: 98.81
A119: 1630 | B119: 0.55 | C119: 0.31 | D119: 99.36
A120: 1850 | B120: 0.26 | C120: 0.09 | D120: 99.62
A121: 2100 | B121: 0.17 | C121: 0.05 | D121: 99.79
A122: 2390 | B122: 0.12 | C122: 0.03 | D122: 99.91
A123: 2710 | B123: 0.07 | C123: 0.01 | D123: 99.98
A124: 3080 | B124: 0.03 | C124: 0 | D124: 100.01
A125: 3500 | B125: 0 | C125: 0 | D125: 100.01

Sheet FTIR-old
B1: =MAX(B4:B10000) -> 216.10576 | E1: =MIN(E4:E4000) -> 0.6927 | F1: =MIN(F4:F4000) -> -0.0073 | G1: Vermiculite | H1: =MAX(H4:H3604) -> 73.617265 | I1: 25 | K1: Peaks | P1: TEMUUJIN, J., OKADA, K. & MACKENZIE, K. J. D. 2003. Preparation of porous silica from vermiculite by selective leaching. Applied Clay Science, 22, 187-195.
B2: WJ Silica | C2: 0.5 | E2: 0.7 | I2: 0.1 | K2: Amorphous silica | L2: Phlogopite | M2: Vermiculite
E3: Phlogopite | F3: Phlogopite | I3: 5 | K3: 3344 | M3: 3412
A4: 4000 | B4: 100.74016 | C4: =B4/100+$C$2 -> 1.5074016 | D4: 2000 | E4: =F4+$E$2 -> 0.6951 | F4: -0.0049 | G4: 4000 | H4: 73.422208 | I4: =$I$3*(2-LOG10(H4+$I$1))+$I$2 -> 0.1345344812 | M4: 1645
A5: 3999 | B5: 100.75888 | C5: =B5/100+$C$2 -> 1.5075888 | D5: 1999 | E5: =F5+$E$2 -> 0.6953 | F5: -0.0047 | G5: 3999 | H5: 73.42186 | I5: =$I$3*(2-LOG10(H5+$I$1))+$I$2 -> 0.1345421591 | K5: 1200 (shoulder) | N5: shoulder at about 1200 cm-1 in the infrared spectrum of a film of amorphous silica to a longitudinal mode
A6: 3998 | B6: 100.78 | C6: 1.5078 | D6: 1998 | E6: 0.6954 | F6: -0.0046 | G6: 3998 | H6: 73.420912 | I6: 0.1345630749 | K6: 1051 | N6: Si-O asymmetric stretching vibration (Awazu 1999?)
A7: 3997 | B7: 100.79776 | C7: 1.5079776 | D7: 1997 | E7: 0.6954 | F7: -0.0046 | G7: 3997 | H7: 73.419686 | I7: 0.1345901244 | M7: 999 | N7: Si-O in plane vibration
A8: 3996 | B8: 100.80928 | C8: 1.5080928 | D8: 1996 | E8: 0.6953 | F8: -0.0047 | G8: 3996 | H8: 73.418362 | I8: 0.1346193365 | L8: 985
A9: 3995 | B9: 100.8136 | C9: 1.508136 | D9: 1995 | E9: 0.6954 | F9: -0.0046 | G9: 3995 | H9: 73.41675 | I9: 0.1346549035 | K9: 944 | N9: Terminal Si-O-H (silanol) groups (Ocaña et al., 1989) Wypich?
A10: 3994 | B10: 100.81024 | C10: 1.5081024 | D10: 1994 | E10: 0.6955 | F10: -0.0045 | G10: 3994 | H10: 73.414771 | I10: 0.1346985687 | K10: 792 | N10: associated with the distorted ring structure of the tetrahedral SiO (Wypich); Si-O bending vibration(Awazu 1999)
A11: 3993 | B11: 100.79968 | C11: 1.5079968 | D11: 1993 | E11: 0.6957 | F11: -0.0043 | G11: 3993 | H11: 73.41241 | I11: 0.1347506636 | K11: 652
A12: 3992 | B12: 100.78768 | C12: 1.5078768 | D12: 1992 | E12: 0.696 | F12: -0.004 | G12: 3992 | H12: 73.409702 | I12: 0.1348104165
A13: 3991 | B13: 100.78336 | C13: 1.5078336 | D13: 1991 | E13: 0.6961 | F13: -0.0039 | G13: 3991 | H13: 73.40669 | I13: 0.1348768792
A14: 3990 | B14: 100.79344 | C14: 1.5079344 | D14: 1990 | E14: 0.6962 | F14: -0.0038 | G14: 3990 | H14: 73.402914 | I14: 0.1349602032
A15: 3989 | B15: 100.81696 | C15: 1.5081696 | D15: 1989 | E15: 0.6962 | F15: -0.0038 | G15: 3989 | H15: 73.398353 | I15: 0.1350608538
A16: 3988 | B16: 100.8424 | C16: 1.508424 | D16: 1988 | E16: 0.6964 | F16: -0.0036 | G16: 3988 | H16: 73.393651 | I16: 0.1351646209
A17: 3987 | B17: 100.8544 | C17: 1.508544 | D17: 1987 | E17: 0.6967 | F17: -0.0033 | G17: 3987 | H17: 73.38908 | I17: 0.1352655017 | J17: =1/(E17-$K$17) -> -2.891008962 | K17: =MAX(E1352:E1454) -> 1.0426
A18: 3986 | B18: 100.84528 | C18: 1.5084528 | D18: 1986 | E18: 0.6968 | F18: -0.0032 | G18: 3986 | H18: 73.38436 | I18: 0.1353696758 | J18: -2.891844997
A19: 3985 | B19: 100.81936 | C19: 1.5081936 | D19: 1985 | E19: 0.6968 | F19: -0.0032 | G19: 3985 | H19: 73.379482 | I19: 0.1354773424 | J19: -2.891844997
A20: 3984 | B20: 100.79008 | C20: 1.5079008 | D20: 1984 | E20: 0.6967 | F20: -0.0033 | G20: 3984 | H20: 73.374624 | I20: 0.1355845728 | J20: -2.891008962
A21: 3983 | B21: 100.77136 | C21: 1.5077136 | D21: 1983 | E21: 0.6969 | F21: -0.0031 | G21: 3983 | H21: 73.369675 | I21: 0.1356938173 | J21: -2.892681516
A22: 3982 | B22: 100.7704 | C22: 1.507704 | D22: 1982 | E22: 0.6973 | F22: -0.0027 | G22: 3982 | H22: 73.364507 | I22: 0.1358079019 | J22: -2.896032436
A23: 3981 | B23: 100.78528 | C23: 1.5078528 | D23: 1981 | E23: 0.6978 | F23: -0.0022 | G23: 3981 | H23: 73.359103 | I23: 0.1359272026 | J23: -2.900232019
A24: 3980 | B24: 100.8064 | C24: 1.508064 | D24: 1980 | E24: 0.698 | F24: -0.002 | G24: 3980 | H24: 73.35344 | I24: 0.1360522282 | J24: -2.901915264
A25: 3979 | B25: 100.82176 | C25: 1.5082176 | D25: 1979 | E25: 0.6976 | F25: -0.0024 | G25: 3979 | H25: 73.347644 | I25: 0.1361801975 | J25: -2.898550725
A26: 3978 | B26: 100.81888 | C26: 1.5081888 | D26: 1978 | E26: 0.6968 | F26: -0.0032 | G26: 3978 | H26: 73.341967 | I26: 0.1363055468 | J26: -2.891844997
A27: 3977 | B27: 100.79824 | C27: 1.5079824 | D27: 1977 | E27: 0.696 | F27: -0.004 | G27: 3977 | H27: 73.336588 | I27: 0.1364243228 | J27: -2.885170225
A28: 3976 | B28: 100.77088 | C28: 1.5077088 | D28: 1976 | E28: 0.6956 | F28: -0.0044 | G28: 3976 | H28: 73.331295 | I28: 0.1365412062 | J28: -2.88184438
A29: 3975 | B29: 100.75264 | C29: 1.5075264 | D29: 1975 | E29: 0.6955 | F29: -0.0045 | G29: 3975 | H29: 73.325104 | I29: 0.1366779278 | J29: -2.881014117
A30: 3974 | B30: 100.75024 | C30: 1.5075024 | D30: 1974 | E30: 0.6956 | F30: -0.0044 | G30: 3974 | H30: 73.318067 | I30: 0.1368333428 | J30: -2.88184438
A31: 3973 | B31: 100.76128 | C31: 1.5076128 | D31: 1973 | E31: 0.6957 | F31: -0.0043 | G31: 3973 | H31: 73.311544 | I31: 0.1369774159 | J31: -2.882675123
A32: 3972 | B32: 100.77712 | C32: 1.5077712 | D32: 1972 | E32: 0.6955 | F32: -0.0045 | G32: 3972 | H32: 73.305155 | I32: 0.1371185385 | J32: -2.881014117
A33: 3971 | B33: 100.792 | C33: 1.50792 | D33: 1971 | E33: 0.6951 | F33: -0.0049 | G33: 3971 | H33: 73.297935 | I33: 0.1372780277 | J33: -2.877697842
A34: 3970 | B34: 100.80496 | C34: 1.5080496 | D34: 1970 | E34: 0.6946 | F34: -0.0054 | G34: 3970 | H34: 73.2927 | I34: 0.1373936757 | J34: -2.873563218
A35: 3969 | B35: 100.81504 | C35: 1.5081504 | D35: 1969 | E35: 0.6943 | F35: -0.0057 | G35: 3969 | H35: 73.287664 | I35: 0.1375049334 | J35: -2.871088142
A36: 3968 | B36: 100.82464 | C36: 1.5082464 | D36: 1968 | E36: 0.6945 | F36: -0.0055 | G36: 3968 | H36: 73.281545 | I36: 0.1376401248 | J36: -2.872737719
A37: 3967 | B37: 100.83184 | C37: 1.5083184 | D37: 1967 | E37: 0.6948 | F37: -0.0052 | G37: 3967 | H37: 73.275254 | I37: 0.1377791252 | J37: -2.875215641
A38: 3966 | B38: 100.83472 | C38: 1.5083472 | D38: 1966 | E38: 0.6951 | F38: -0.0049 | G38: 3966 | H38: 73.269921 | I38: 0.1378969654 | J38: -2.877697842
A39: 3965 | B39: 100.8304 | C39: 1.508304 | D39: 1965 | E39: 0.6953 | F39: -0.0047 | G39: 3965 | H39: 73.266064 | I39: 0.1379821953 | J39: -2.879355024
A40: 3964 | B40: 100.8184 | C40: 1.508184 | D40: 1964 | E40: 0.6952 | F40: -0.0048 | G40: 3964 | H40: 73.261148 | I40: 0.1380908312 | J40: -2.878526195
A41: 3963 | B41: 100.80352 | C41: 1.5080352 | D41: 1963 | E41: 0.6948 | F41: -0.0052 | G41: 3963 | H41: 73.255418 | I41: 0.1382174621 | J41: -2.875215641
A42: 3962 | B42: 100.79248 | C42: 1.5079248 | D42: 1962 | E42: 0.6942 | F42: -0.0058 | G42: 3962 | H42: 73.248552 | I42: 0.138369208 | J42: -2.870264064
A43: 3961 | B43: 100.79248 | C43: 1.5079248 | D43: 1961 | E43: 0.6938 | F43: -0.0062 | G43: 3961 | H43: 73.241391 | I43: 0.1385274849 | J43: -2.866972477
A44: 3960 | B44: 100.8064 | C44: 1.508064 | D44: 1960 | E44: 0.6937 | F44: -0.0063 | G44: 3960 | H44: 73.234611 | I44: 0.1386773514 | J44: -2.86615076
A45: 3959 | B45: 100.8304 | C45: 1.508304 | D45: 1959 | E45: 0.6937 | F45: -0.0063 | G45: 3959 | H45: 73.227963 | I45: 0.1388243102 | J45: -2.86615076
A46: 3958 | B46: 100.85296 | C46: 1.5085296 | D46: 1958 | E46: 0.6939 | F46: -0.0061 | G46: 3958 | H46: 73.221309 | I46: 0.1389714115 | J46: -2.867794666
A47: 3957 | B47: 100.86208 | C47: 1.5086208 | D47: 1957 | E47: 0.6941 | F47: -0.0059 | G47: 3957 | H47: 73.214532 | I47: 0.1391212423 | J47: -2.869440459
A48: 3956 | B48: 100.85296 | C48: 1.5085296 | D48: 1956 | E48: 0.6943 | F48: -0.0057 | G48: 3956 | H48: 73.207715 | I48: 0.1392719679 | J48: -2.871088142
A49: 3955 | B49: 100.8304 | C49: 1.508304 | D49: 1955 | E49: 0.6945 | F49: -0.0055 | G49: 3955 | H49: 73.200958 | I49: 0.1394213772 | J49: -2.872737719
A50: 3954 | B50: 100.80544 | C50: 1.5080544 | D50: 1954 | E50: 0.6945 | F50: -0.0055 | G50: 3954 | H50: 73.194514 | I50: 0.139563875 | J50: -2.872737719
A51: 3953 | B51: 100.78624 | C51: 1.5078624 | D51: 1953 | E51: 0.6945 | F51: -0.0055 | G51: 3953 | H51: 73.188325 | I51: 0.1397007428 | J51: -2.872737719
A52: 3952 | B52: 100.77568 | C52: 1.5077568 | D52: 1952 | E52: 0.6944 | F52: -0.0056 | G52: 3952 | H52: 73.182296 | I52: 0.1398340805 | J52: -2.871912694
A53: 3951 | B53: 100.7704 | C53: 1.507704 | D53: 1951 | E53: 0.6941 | F53: -0.0059 | G53: 3951 | H53: 73.176647 | I53: 0.1399590216 | J53: -2.869440459
A54: 3950 | B54: 100.76896 | C54: 1.5076896 | D54: 1950 | E54: 0.6938 | F54: -0.0062 | G54: 3950 | H54: 73.170038 | I54: 0.1401052045 | J54: -2.866972477
A55: 3949 | B55: 100.77472 | C55: 1.5077472 | D55: 1949 | E55: 0.6937 | F55: -0.0063 | G55: 3949 | H55: 73.162826 | I55: 0.1402647362 | J55: -2.86615076
A56: 3948 | B56: 100.79008 | C56: 1.5079008 | D56: 1948 | E56: 0.6937 | F56: -0.0063 | G56: 3948 | H56: 73.155349 | I56: 0.1404301422 | J56: -2.86615076
A57: 3947 | B57: 100.81024 | C57: 1.5081024 | D57: 1947 | E57: 0.6938 | F57: -0.0062 | G57: 3947 | H57: 73.146297 | I57: 0.1406304071 | J57: -2.866972477
A58: 3946 | B58: 100.8232 | C58: 1.508232 | D58: 1946 | E58: 0.6939 | F58: -0.0061 | G58: 3946 | H58: 73.138158 | I58: 0.1408104888 | J58: -2.867794666
A59: 3945 | B59: 100.81888 | C59: 1.5081888 | D59: 1945 | E59: 0.6939 | F59: -0.0061 | G59: 3945 | H59: 73.132132 | I59: 0.1409438283 | J59: -2.867794666
A60: 3944 | B60: 100.79728 | C60: 1.5079728 | D60: 1944 | E60: 0.6938 | F60: -0.0062 | G60: 3944 | H60: 73.12842 | I60: 0.1410259691 | J60: -2.866972477
A61: 3943 | B61: 100.77232 | C61: 1.5077232 | D61: 1943 | E61: 0.6937 | F61: -0.0063 | G61: 3943 | H61: 73.123675 | I61: 0.1411309732 | J61: -2.86615076
A62: 3942 | B62: 100.75984 | C62: 1.5075984 | D62: 1942 | E62: 0.6938 | F62: -0.0062 | G62: 3942 | H62: 73.113488 | I62: 0.1413564228 | J62: -2.866972477
A63: 3941 | B63: 100.76704 | C63: 1.5076704 | D63: 1941 | E63: 0.6941 | F63: -0.0059 | G63: 3941 | H63: 73.103225 | I63: 0.1415835779 | J63: -2.869440459
A64: 3940 | B64: 100.78816 | C64: 1.5078816 | D64: 1940 | E64: 0.6944 | F64: -0.0056 | G64: 3940 | H64: 73.096114 | I64: 0.1417409826 | J64: -2.871912694
A65: 3939 | B65: 100.80928 | C65: 1.5080928 | D65: 1939 | E65: 0.6945 | F65: -0.0055 | G65: 3939 | H65: 73.091485 | I65: 0.1418434533 | J65: -2.872737719
A66: 3938 | B66: 100.82032 | C66: 1.5082032 | D66: 1938 | E66: 0.6945 | F66: -0.0055 | G66: 3938 | H66: 73.087033 | I66: 0.1419420104 | J66: -2.872737719
A67: 3937 | B67: 100.8184 | C67: 1.508184 | D67: 1937 | E67: 0.6944 | F67: -0.0056 | G67: 3937 | H67: 73.082054 | I67: 0.1420522394 | J67: -2.871912694
A68: 3936 | B68: 100.80976 | C68: 1.5080976 | D68: 1936 | E68: 0.6944 | F68: -0.0056 | G68: 3936 | H68: 73.077237 | I68: 0.1421588873 | J68: -2.871912694
A69: 3935 | B69: 100.8016 | C69: =B69/100+$C$2 -> 1.508016 | D69: 1935 | E69: =F69+$E$2 -> 0.6944 | F69: -0.0056 | G69: 3935 | H69: 73.072054 | I69: =$I$3*(2-LOG10(H69+$I$1))+$I$2 -> 0.1422736442 | J69: -2.871912694
A70: 3934 | B70: 100.79728 | C70: 1.5079728 | D70: 1934 | E70: 0.6943 | F70: -0.0057 | G70: 3934 | H70: 73.067241 | I70: 0.1423802143 | J70: -2.871088142
A71: 3933 | B71: 100.7992 | C71: 1.507992 | D71: 1933 | E71: 0.6942 | F71: -0.0058 | G71: 3933 | H71: 73.063398 | I71: 0.1424653103 | J71: -2.870264064
A72: 3932 | B72: 100.80784 | C72: 1.5080784 | D72: 1932 | E72: 0.6942 | F72: -0.0058 | G72: 3932 | H72: 73.055484 | I72: 0.1426405615 | J72: -2.870264064
A73: 3931 | B73: 100.82464 | C73: 1.5082464 | D73: 1931 | E73: 0.6942 | F73: -0.0058 | G73: 3931 | H73: 73.045459 | I73: 0.1428625799 | J73: -2.870264064
A74: 3930 | B74: 100.8448 | C74: 1.508448 | D74: 1930 | E74: 0.6942 | F74: -0.0058 | G74: 3930 | H74: 73.036276 | I74: 0.143065971 | J74: -2.870264064
A75: 3929 | B75: 100.85968 | C75: 1.5085968 | D75: 1929 | E75: 0.6943 | F75: -0.0057 | G75: 3929 | H75: 73.027157 | I75: 0.1432679633 | J75: -2.871088142
A76: 3928 | B76: 100.8616 | C76: 1.508616 | D76: 1928 | E76: 0.6942 | F76: -0.0058 | G76: 3928 | H76: 73.020521 | I76: 0.1434149672 | J76: -2.870264064
A77: 3927 | B77: 100.8496 | C77: 1.508496 | D77: 1927 | E77: 0.6941 | F77: -0.0059 | G77: 3927 | H77: 73.017079 | I77: 0.14349122 | J77: -2.869440459
A78: 3926 | B78: 100.828 | C78: 1.50828 | D78: 1926 | E78: 0.694 | F78: -0.006 | G78: 3926 | H78: 73.018425 | I78: 0.1434614009 | J78: -2.868617326
A79: 3925 | B79: 100.80304 | C79: 1.5080304 | D79: 1925 | E79: 0.6939 | F79: -0.0061 | G79: 3925 | H79: 73.019899 | I79: 0.1434287466 | J79: -2.867794666
A80: 3924 | B80: 100.78192 | C80: 1.5078192 | D80: 1924 | E80: 0.6939 | F80: -0.0061 | G80: 3924 | H80: 73.01343 | I80: 0.1435720616 | J80: -2.867794666
A81: 3923 | B81: 100.76992 | C81: 1.5076992 | D81: 1923 | E81: 0.6941 | F81: -0.0059 | G81: 3923 | H81: 72.998926 | I81: 0.1438934192 | J81: =1/(E81-$K$17) -> -2.869440459
A82: 3922 | B82: 100.7704 | C82: 1.507704 | D82: 1922 | E82: 0.6942 | F82: -0.0058 | G82: 3922 | H82: 72.9894 | I82: 0.1441045078 | J82: -2.870264064
A83: 3921 | B83: 100.77904 | C83: 1.5077904 | D83: 1921 | E83: 0.6942 | F83: -0.0058 | G83: 3921 | H83: 72.995938 | I83: 0.1439596287 | J83: -2.870264064
A84: 3920 | B84: 100.78768 | C84: 1.5078768 | D84: 1920 | E84: 0.6942 | F84: -0.0058 | G84: 3920 | H84: 73.001415 | I84: 0.1438382684 | J84: -2.870264064
A85: 3919 | B85: 100.78672 | C85: 1.5078672 | D85: 1919 | E85: 0.6942 | F85: -0.0058 | G85: 3919 | H85: 72.99582 | I85: 0.1439622435 | J85: -2.870264064
A86: 3918 | B86: 100.77616 | C86: 1.5077616 | D86: 1918 | E86: 0.6943 | F86: -0.0057 | G86: 3918 | H86: 72.995471 | I86: 0.1439699769 | J86: -2.871088142
A87: 3917 | B87: 100.76704 | C87: 1.5076704 | D87: 1917 | E87: 0.6945 | F87: -0.0055 | G87: 3917 | H87: 72.98634 | I87: 0.1441723193 | J87: -2.872737719
A88: 3916 | B88: 100.77328 | C88: 1.5077328 | D88: 1916 | E88: 0.6946 | F88: -0.0054 | G88: 3916 | H88: 72.962082 | I88: 0.1447099667 | J88: -2.873563218
A89: 3915 | B89: 100.7968 | C89: 1.507968 | D89: 1915 | E89: 0.6946 | F89: -0.0054 | G89: 3915 | H89: 72.938023 | I89: 0.145243335 | J89: -2.873563218
A90: 3914 | B90: 100.82512 | C90: 1.5082512 | D90: 1914 | E90: 0.6944 | F90: -0.0056 | G90: 3914 | H90: 72.927917 | I90: 0.1454674158 | J90: -2.871912694
A91: 3913 | B91: 100.84144 | C91: 1.5084144 | D91: 1913 | E91: 0.6942 | F91: -0.0058 | G91: 3913 | H91: 72.934195 | I91: 0.1453282107 | J91: -2.870264064
A92: 3912 | B92: 100.83712 | C92: 1.5083712 | D92: 1912 | E92: 0.6941 | F92: -0.0059 | G92: 3912 | H92: 72.943869 | I92: 0.1451137219 | J92: -2.869440459
A93: 3911 | B93: 100.81456 | C93: 1.5081456 | D93: 1911 | E93: 0.694 | F93: -0.006 | G93: 3911 | H93: 72.946422 | I93: 0.1450571212 | J93: -2.868617326
A94: 3910 | B94: 100.78624 | C94: 1.5078624 | D94: 1910 | E94: 0.6939 | F94: -0.0061 | G94: 3910 | H94: 72.943056 | I94: 0.1451317467 | J94: -2.867794666
A95: 3909 | B95: 100.76272 | C95: 1.5076272 | D95: 1909 | E95: 0.6939 | F95: -0.0061 | G95: 3909 | H95: 72.938265 | I95: 0.1452379694 | J95: -2.867794666
A96: 3908 | B96: 100.75168 | C96: 1.5075168 | D96: 1908 | E96: 0.6939 | F96: -0.0061 | G96: 3908 | H96: 72.940818 | I96: 0.1451813654 | J96: -2.867794666
A97: 3907 | B97: 100.75408 | C97: 1.5075408 | D97: 1907 | E97: 0.694 | F97: -0.006 | G97: 3907 | H97: 72.956229 | I97: 0.1448397108 | J97: -2.868617326
A98: 3906 | B98: 100.76512 | C98: 1.5076512 | D98: 1906 | E98: 0.6942 | F98: -0.0058 | G98: 3906 | H98: 72.973196 | I98: 0.1444636226 | J98: -2.870264064
A99: 3905 | B99: 100.77328 | C99: 1.5077328 | D99: 1905 | E99: 0.6943 | F99: -0.0057 | G99: 3905 | H99: 72.978791 | I99: 0.1443396189 | J99: -2.871088142
A100: 3904 | B100: 100.77088 | C100: 1.5077088 | D100: 1904 | E100: 0.6945 | F100: -0.0055 | G100: 3904 | H100: 72.944646 | I100: 0.1450964954 | J100: -2.872737719
A101: 3903 | B101: 100.76032 | C101: 1.5076032 | D101: 1903 | E101: 0.6944 | F101: -0.0056 | G101: 3903 | H101: 72.916799 | I101: 0.1457139625 | J101: -2.871912694
A102: 3902 | B102: 100.75456 | C102: 1.5075456 | D102: 1902 | E102: 0.6943 | F102: -0.0057 | G102: 3902 | H102: 72.890863 | I102: 0.1462892138 | J102: -2.871088142
A103: 3901 | B103: 100.76704 | C103: 1.5076704 | D103: 1901 | E103: 0.6942 | F103: -0.0058 | G103: 3901 | H103: 72.864342 | I103: 0.1468775979 | J103: -2.870264064
A104: 3900 | B104: 100.7992 | C104: 1.507992 | D104: 1900 | E104: 0.6941 | F104: -0.0059 | G104: 3900 | H104: 72.869458 | I104: 0.146764084 | J104: -2.869440459
A105: 3899 | B105: 100.83904 | C105: 1.5083904 | D105: 1899 | E105: 0.6941 | F105: -0.0059 | G105: 3899 | H105: 72.857362 | I105: 0.1470324798 | J105: -2.869440459
A106: 3898 | B106: 100.86832 | C106: 1.5086832 | D106: 1898 | E106: 0.6941 | F106: -0.0059 | G106: 3898 | H106: 72.836041 | I106: 0.1475056481 | J106: -2.869440459
A107: 3897 | B107: 100.87888 | C107: 1.5087888 | D107: 1897 | E107: 0.6943 | F107: -0.0057 | G107: 3897 | H107: 72.822688 | I107: 0.1478020384 | J107: -2.871088142
A108: 3896 | B108: 100.87264 | C108: 1.5087264 | D108: 1896 | E108: 0.6945 | F108: -0.0055 | G108: 3896 | H108: 72.822852 | I108: 0.1477983979 | J108: -2.872737719
A109: 3895 | B109: 100.85968 | C109: 1.5085968 | D109: 1895 | E109: 0.6945 | F109: -0.0055 | G109: 3895 | H109: 72.828485 | I109: 0.1476733602 | J109: -2.872737719
A110: 3894 | B110: 100.8472 | C110: 1.508472 | D110: 1894 | E110: 0.6944 | F110: -0.0056 | G110: 3894 | H110: 72.829993 | I110: 0.1476398877 | J110: -2.871912694
A111: 3893 | B111: 100.83808 | C111: 1.5083808 | D111: 1893 | E111: 0.6941 | F111: -0.0059 | G111: 3893 | H111: 72.829543 | I111: 0.1476498761 | J111: -2.869440459
A112: 3892 | B112: 100.82944 | C112: 1.5082944 | D112: 1892 | E112: 0.6939 | F112: -0.0061 | G112: 3892 | H112: 72.826462 | I112: 0.1477182646 | J112: -2.867794666
A113: 3891 | B113: 100.82032 | C113: 1.5082032 | D113: 1891 | E113: 0.6936 | F113: -0.0064 | G113: 3891 | H113: 72.81315 | I113: 0.1480137737 | J113: -2.865329513
A114: 3890 | B114: 100.8136 | C114: 1.508136 | D114: 1890 | E114: 0.6935 | F114: -0.0065 | G114: 3890 | H114: 72.799379 | I114: 0.1483195143 | J114: -2.864508737
A115: 3889 | B115: 100.81552 | C115: 1.5081552 | D115: 1889 | E115: 0.6935 | F115: -0.0065 | G115: 3889 | H115: 72.791547 | I115: 0.1484934178 | J115: -2.864508737
A116: 3888 | B116: 100.82752 | C116: 1.5082752 | D116: 1888 | E116: 0.6936 | F116: -0.0064 | G116: 3888 | H116: 72.78657 | I116: 0.1486039354 | J116: -2.865329513
A117: 3887 | B117: 100.84528 | C117: 1.5084528 | D117: 1887 | E117: 0.6938 | F117: -0.0062 | G117: 3887 | H117: 72.781559 | I117: 0.1487152138 | J117: -2.866972477
A118: 3886 | B118: 100.85392 | C118: 1.5085392 | D118: 1886 | E118: 0.6938 | F118: -0.0062 | G118: 3886 | H118: 72.774107 | I118: 0.1488807095 | J118: -2.866972477
A119: 3885 | B119: 100.84144 | C119: 1.5084144 | D119: 1885 | E119: 0.6939 | F119: -0.0061 | G119: 3885 | H119: 72.765126 | I119: 0.1490801783 | J119: -2.867794666
A120: 3884 | B120: 100.81024 | C120: 1.5081024 | D120: 1884 | E120: 0.694 | F120: -0.006 | G120: 3884 | H120: 72.756744 | I120: 0.1492663599 | J120: -2.868617326
A121: 3883 | B121: 100.77712 | C121: 1.5077712 | D121: 1883 | E121: 0.694 | F121: -0.006 | G121: 3883 | H121: 72.749317 | I121: 0.1494313423 | J121: -2.868617326
A122: 3882 | B122: 100.76128 | C122: 1.5076128 | D122: 1882 | E122: 0.6941 | F122: -0.0059 | G122: 3882 | H122: 72.742886 | I122: 0.1495742097 | J122: -2.869440459
A123: 3881 | B123: 100.77184 | C123: 1.5077184 | D123: 1881 | E123: 0.6942 | F123: -0.0058 | G123: 3881 | H123: 72.736599 | I123: 0.1497138873 | J123: -2.870264064
A124: 3880 | B124: 100.79776 | C124: 1.5079776 | D124: 1880 | E124: 0.6942 | F124: -0.0058 | G124: 3880 | H124: 72.728989 | I124: 0.1498829698 | J124: -2.870264064
A125: 3879 | B125: 100.81648 | C125: 1.5081648 | D125: 1879 | E125: 0.6941 | F125: -0.0059 | G125: 3879 | H125: 72.720081 | I125: 0.1500809086 | J125: -2.869440459
A126: 3878 | B126: 100.81408 | C126: 1.5081408 | D126: 1878 | E126: 0.694 | F126: -0.006 | G126: 3878 | H126: 72.712172 | I126: 0.1502566644 | J126: -2.868617326
A127: 3877 | B127: 100.79296 | C127: 1.5079296 | D127: 1877 | E127: 0.694 | F127: -0.006 | G127: 3877 | H127: 72.706015 | I127: 0.1503934966 | J127: -2.868617326
A128: 3876 | B128: 100.76512 | C128: 1.5076512 | D128: 1876 | E128: 0.6942 | F128: -0.0058 | G128: 3876 | H128: 72.701191 | I128: 0.1505007105 | J128: -2.870264064
A129: 3875 | B129: 100.74352 | C129: 1.5074352 | D129: 1875 | E129: 0.6943 | F129: -0.0057 | G129: 3875 | H129: 72.697639 | I129: 0.1505796574 | J129: -2.871088142
A130: 3874 | B130: 100.73488 | C130: 1.5073488 | D130: 1874 | E130: 0.6942 | F130: -0.0058 | G130: 3874 | H130: 72.692576 | I130: 0.1506921929 | J130: -2.870264064
A131: 3873 | B131: 100.73776 | C131: 1.5073776 | D131: 1873 | E131: 0.6941 | F131: -0.0059 | G131: 3873 | H131: 72.68517 | I131: 0.1508568168 | J131: -2.869440459
A132: 3872 | B132: 100.7488 | C132: 1.507488 | D132: 1872 | E132: 0.6938 | F132: -0.0062 | G132: 3872 | H132: 72.676557 | I132: 0.1510482862 | J132: -2.866972477
A133: 3871 | B133: 100.7656 | C133: =B133/100+$C$2 -> 1.507656 | D133: 1871 | E133: =F133+$E$2 -> 0.6935 | F133: -0.0065 | G133: 3871 | H133: 72.666967 | I133: =$I$3*(2-LOG10(H133+$I$1))+$I$2 -> 0.1512614944 | J133: -2.864508737
A134: 3870 | B134: 100.78096 | C134: 1.5078096 | D134: 1870 | E134: 0.6934 | F134: -0.0066 | G134: 3870 | H134: 72.65654 | I134: 0.1514933348 | J134: -2.863688431
A135: 3869 | B135: 100.7848 | C135: 1.507848 | D135: 1869 | E135: 0.6934 | F135: -0.0066 | G135: 3869 | H135: 72.644094 | I135: 0.1517700994 | J135: -2.863688431
A136: 3868 | B136: 100.77616 | C136: 1.5077616 | D136: 1868 | E136: 0.6936 | F136: -0.0064 | G136: 3868 | H136: 72.628643 | I136: 0.1521137359 | J136: -2.865329513
A137: 3867 | B137: 100.76176 | C137: 1.5076176 | D137: 1867 | E137: 0.6938 | F137: -0.0062 | G137: 3867 | H137: 72.614356 | I137: 0.1524315329 | J137: -2.866972477
A138: 3866 | B138: 100.75216 | C138: 1.5075216 | D138: 1866 | E138: 0.6939 | F138: -0.0061 | G138: 3866 | H138: 72.606792 | I138: 0.1525998038 | J138: -2.867794666
A139: 3865 | B139: 100.74832 | C139: 1.5074832 | D139: 1865 | E139: 0.694 | F139: -0.006 | G139: 3865 | H139: 72.601643 | I139: 0.1527143574 | J139: -2.868617326
A140: 3864 | B140: 100.744 | C140: 1.50744 | D140: 1864 | E140: 0.6941 | F140: -0.0059 | G140: 3864 | H140: 72.587312 | I140: 0.1530332214 | J140: -2.869440459
A141: 3863 | B141: 100.73056 | C141: 1.5073056 | D141: 1863 | E141: 0.694 | F141: -0.006 | G141: 3863 | H141: 72.570745 | I141: 0.1534018947 | J141: -2.868617326
A142: 3862 | B142: 100.70992 | C142: 1.5070992 | D142: 1862 | E142: 0.694 | F142: -0.006 | G142: 3862 | H142: 72.556998 | I142: 0.1537078608 | J142: -2.868617326
A143: 3861 | B143: 100.69312 | C143: 1.5069312 | D143: 1861 | E143: 0.694 | F143: -0.006 | G143: 3861 | H143: 72.542058 | I143: 0.1540404282 | J143: -2.868617326
A144: 3860 | B144: 100.69312 | C144: 1.5069312 | D144: 1860 | E144: 0.6939 | F144: -0.0061 | G144: 3860 | H144: 72.53219 | I144: 0.1542601199 | J144: -2.867794666
A145: 3859 | B145: 100.71232 | C145: 1.5071232 | D145: 1859 | E145: 0.6939 | F145: -0.0061 | G145: 3859 | H145: 72.531288 | I145: 0.1542802022 | J145: =1/(E145-$K$17) -> -2.867794666
A146: 3858 | B146: 100.74304 | C146: 1.5074304 | D146: 1858 | E146: 0.6939 | F146: -0.0061 | G146: 3858 | H146: 72.542965 | I146: 0.1540202368 | J146: -2.867794666
A147: 3857 | B147: 100.76944 | C147: 1.5076944 | D147: 1857 | E147: 0.6939 | F147: -0.0061 | G147: 3857 | H147: 72.545189 | I147: 0.1539707273 | J147: -2.867794666
A148: 3856 | B148: 100.77664 | C148: 1.5077664 | D148: 1856 | E148: 0.694 | F148: -0.006 | G148: 3856 | H148: 72.544084 | I148: 0.1539953261 | J148: -2.868617326
A149: 3855 | B149: 100.7608 | C149: 1.507608 | D149: 1855 | E149: 0.694 | F149: -0.006 | G149: 3855 | H149: 72.56694 | I149: 0.1534865781 | J149: -2.868617326
A150: 3854 | B150: 100.73968 | C150: 1.5073968 | D150: 1854 | E150: 0.6939 | F150: -0.0061 | G150: 3854 | H150: 72.577926 | I150: 0.1532420849 | J150: -2.867794666
A151: 3853 | B151: 100.73968 | C151: 1.5073968 | D151: 1853 | E151: 0.6939 | F151: -0.0061 | G151: 3853 | H151: 72.536932 | I151: 0.1541545458 | J151: -2.867794666
A152: 3852 | B152: 100.76368 | C152: 1.5076368 | D152: 1852 | E152: 0.6939 | F152: -0.0061 | G152: 3852 | H152: 72.425549 | I152: 0.1566356912 | J152: -2.867794666
A153: 3851 | B153: 100.79104 | C153: 1.5079104 | D153: 1851 | E153: 0.6939 | F153: -0.0061 | G153: 3851 | H153: 72.344388 | I153: 0.1584454046 | J153: -2.867794666
A154: 3850 | B154: 100.80592 | C154: 1.5080592 | D154: 1850 | E154: 0.6938 | F154: -0.0062 | G154: 3850 | H154: 72.35069 | I154: 0.1583048298 | J154: -2.866972477
A155: 3849 | B155: 100.80256 | C155: 1.5080256 | D155: 1849 | E155: 0.6939 | F155: -0.0061 | G155: 3849 | H155: 72.369467 | I155: 0.1578860366 | J155: -2.867794666
A156: 3848 | B156: 100.78384 | C156: 1.5078384 | D156: 1848 | E156: 0.6939 | F156: -0.0061 | G156: 3848 | H156: 72.387215 | I156: 0.1574902679 | J156: -2.867794666
A157: 3847 | B157: 100.75888 | C157: 1.5075888 | D157: 1847 | E157: 0.6939 | F157: -0.0061 | G157: 3847 | H157: 72.403028 | I157: 0.1571377093 | J157: -2.867794666
A158: 3846 | B158: 100.74304 | C158: 1.5074304 | D158: 1846 | E158: 0.6938 | F158: -0.0062 | G158: 3846 | H158: 72.417993 | I158: 0.1568041099 | J158: -2.866972477
A159: 3845 | B159: 100.74736 | C159: 1.5074736 | D159: 1845 | E159: 0.6936 | F159: -0.0064 | G159: 3845 | H159: 72.439647 | I159: 0.1563214903 | J159: -2.865329513
A160: 3844 | B160: 100.7704 | C160: 1.507704 | D160: 1844 | E160: 0.6936 | F160: -0.0064 | G160: 3844 | H160: 72.449376 | I160: 0.1561046873 | J160: -2.865329513
A161: 3843 | B161: 100.79632 | C161: 1.5079632 | D161: 1843 | E161: 0.6937 | F161: -0.0063 | G161: 3843 | H161: 72.420826 | I161: 0.1567409625 | J161: -2.86615076
A162: 3842 | B162: 100.80448 | C162: 1.5080448 | D162: 1842 | E162: 0.6938 | F162: -0.0062 | G162: 3842 | H162: 72.404048 | I162: 0.1571149698 | J162: -2.866972477
A163: 3841 | B163: 100.78768 | C163: 1.5078768 | D163: 1841 | E163: 0.694 | F163: -0.006 | G163: 3841 | H163: 72.404139 | I163: 0.1571129411 | J163: -2.868617326
A164: 3840 | B164: 100.75744 | C164: 1.5075744 | D164: 1840 | E164: 0.694 | F164: -0.006 | G164: 3840 | H164: 72.396111 | I164: 0.1572919202 | J164: -2.868617326
A165: 3839 | B165: 100.73536 | C165: 1.5073536 | D165: 1839 | E165: 0.694 | F165: -0.006 | G165: 3839 | H165: 72.391289 | I165: 0.1573994306 | J165: -2.868617326
A166: 3838 | B166: 100.7344 | C166: 1.507344 | D166: 1838 | E166: 0.6939 | F166: -0.0061 | G166: 3838 | H166: 72.375121 | I166: 0.1577599483 | J166: -2.867794666
A167: 3837 | B167: 100.75024 | C167: 1.5075024 | D167: 1837 | E167: 0.6939 | F167: -0.0061 | G167: 3837 | H167: 72.336048 | I167: 0.1586314539 | J167: -2.867794666
A168: 3836 | B168: 100.76944 | C168: 1.5076944 | D168: 1836 | E168: 0.6939 | F168: -0.0061 | G168: 3836 | H168: 72.326239 | I168: 0.1588502942 | J168: -2.867794666
A169: 3835 | B169: 100.78432 | C169: 1.5078432 | D169: 1835 | E169: 0.694 | F169: -0.006 | G169: 3835 | H169: 72.319229 | I169: 0.1590067019 | J169: -2.868617326
A170: 3834 | B170: 100.79728 | C170: 1.5079728 | D170: 1834 | E170: 0.6941 | F170: -0.0059 | G170: 3834 | H170: 72.311155 | I170: 0.1591868635 | J170: -2.869440459
A171: 3833 | B171: 100.80928 | C171: 1.5080928 | D171: 1833 | E171: 0.6941 | F171: -0.0059 | G171: 3833 | H171: 72.309374 | I171: 0.1592266064 | J171: -2.869440459
A172: 3832 | B172: 100.81744 | C172: 1.5081744 | D172: 1832 | E172: 0.6939 | F172: -0.0061 | G172: 3832 | H172: 72.306162 | I172: 0.1592982839 | J172: -2.867794666
A173: 3831 | B173: 100.81504 | C173: 1.5081504 | D173: 1831 | E173: 0.6938 | F173: -0.0062 | G173: 3831 | H173: 72.300139 | I173: 0.1594326966 | J173: -2.866972477
A174: 3830 | B174: 100.8016 | C174: 1.508016 | D174: 1830 | E174: 0.6937 | F174: -0.0063 | G174: 3830 | H174: 72.294728 | I174: 0.1595534586 | J174: -2.86615076
A175: 3829 | B175: 100.78432 | C175: 1.5078432 | D175: 1829 | E175: 0.6938 | F175: -0.0062 | G175: 3829 | H175: 72.289683 | I175: 0.1596660584 | J175: -2.866972477
A176: 3828 | B176: 100.7752 | C176: 1.507752 | D176: 1828 | E176: 0.694 | F176: -0.006 | G176: 3828 | H176: 72.283402 | I176: 0.1598062527 | J176: -2.868617326
A177: 3827 | B177: 100.78048 | C177: 1.5078048 | D177: 1827 | E177: 0.694 | F177: -0.006 | G177: 3827 | H177: 72.275693 | I177: 0.1599783328 | J177: -2.868617326
A178: 3826 | B178: 100.79296 | C178: 1.5079296 | D178: 1826 | E178: 0.694 | F178: -0.006 | G178: 3826 | H178: 72.26671 | I178: 0.1601788684 | J178: -2.868617326
A179: 3825 | B179: 100.79968 | C179: 1.5079968 | D179: 1825 | E179: 0.694 | F179: -0.006 | G179: 3825 | H179: 72.257097 | I179: 0.1603934885 | J179: -2.868617326
A180: 3824 | B180: 100.79392 | C180: 1.5079392 | D180: 1824 | E180: 0.6941 | F180: -0.0059 | G180: 3824 | H180: 72.247531 | I180: 0.1606070804 | J180: -2.869440459
A181: 3823 | B181: 100.78336 | C181: 1.5078336 | D181: 1823 | E181: 0.6942 | F181: -0.0058 | G181: 3823 | H181: 72.23861 | I181: 0.1608062895 | J181: -2.870264064
A182: 3822 | B182: 100.78384 | C182: 1.5078384 | D182: 1822 | E182: 0.6943 | F182: -0.0057 | G182: 3822 | H182: 72.230255 | I182: 0.1609928762 | J182: -2.871088142
A183: 3821 | B183: 100.79968 | C183: 1.5079968 | D183: 1821 | E183: 0.6944 | F183: -0.0056 | G183: 3821 | H183: 72.220974 | I183: 0.1612001615 | J183: -2.871912694
A184: 3820 | B184: 100.81312 | C184: 1.5081312 | D184: 1820 | E184: 0.6944 | F184: -0.0056 | G184: 3820 | H184: 72.210077 | I184: 0.1614435643 | J184: -2.871912694
A185: 3819 | B185: 100.80592 | C185: 1.5080592 | D185: 1819 | E185: 0.6943 | F185: -0.0057 | G185: 3819 | H185: 72.199108 | I185: 0.161688603 | J185: -2.871088142
A186: 3818 | B186: 100.78 | C186: 1.5078 | D186: 1818 | E186: 0.6941 | F186: -0.0059 | G186: 3818 | H186: 72.189222 | I186: 0.1619094719 | J186: -2.869440459
A187: 3817 | B187: 100.75264 | C187: 1.5075264 | D187: 1817 | E187: 0.6941 | F187: -0.0059 | G187: 3817 | H187: 72.181091 | I187: 0.1620911483 | J187: -2.869440459
A188: 3816 | B188: 100.74688 | C188: 1.5074688 | D188: 1816 | E188: 0.6941 | F188: -0.0059 | G188: 3816 | H188: 72.173619 | I188: 0.1622581135 | J188: -2.869440459
A189: 3815 | B189: 100.76896 | C189: 1.5076896 | D189: 1815 | E189: 0.6941 | F189: -0.0059 | G189: 3815 | H189: 72.162666 | I189: 0.1625028865 | J189: -2.869440459
A190: 3814 | B190: 100.80736 | C190: 1.5080736 | D190: 1814 | E190: 0.6941 | F190: -0.0059 | G190: 3814 | H190: 72.15027 | I190: 0.1627799404 | J190: -2.869440459
A191: 3813 | B191: 100.84624 | C191: 1.5084624 | D191: 1813 | E191: 0.6941 | F191: -0.0059 | G191: 3813 | H191: 72.14013 | I191: 0.1630065983 | J191: -2.869440459
A192: 3812 | B192: 100.87456 | C192: 1.5087456 | D192: 1812 | E192: 0.6941 | F192: -0.0059 | G192: 3812 | H192: 72.132367 | I192: 0.1631801395 | J192: -2.869440459
A193: 3811 | B193: 100.88656 | C193: 1.5088656 | D193: 1811 | E193: 0.6942 | F193: -0.0058 | G193: 3811 | H193: 72.124851 | I193: 0.1633481722 | J193: -2.870264064
A194: 3810 | B194: 100.87696 | C194: 1.5087696 | D194: 1810 | E194: 0.6942 | F194: -0.0058 | G194: 3810 | H194: 72.117147 | I194: 0.1635204215 | J194: -2.870264064
A195: 3809 | B195: 100.84624 | C195: 1.5084624 | D195: 1809 | E195: 0.6942 | F195: -0.0058 | G195: 3809 | H195: 72.109285 | I195: 0.1636962175 | J195: -2.870264064
A196: 3808 | B196: 100.80448 | C196: 1.5080448 | D196: 1808 | E196: 0.6941 | F196: -0.0059 | G196: 3808 | H196: 72.100926 | I196: 0.1638831422 | J196: -2.869440459
A197: 3807 | B197: 100.76896 | C197: =B197/100+$C$2 -> 1.5076896 | D197: 1807 | E197: =F197+$E$2 -> 0.6941 | F197: -0.0059 | G197: 3807 | H197: 72.089125 | I197: =$I$3*(2-LOG10(H197+$I$1))+$I$2 -> 0.1641470645 | J197: -2.869440459
A198: 3806 | B198: 100.74784 | C198: 1.5074784 | D198: 1806 | E198: 0.694 | F198: -0.006 | G198: 3806 | H198: 72.073286 | I198: 0.1645013447 | J198: -2.868617326
A199: 3805 | B199: 100.73632 | C199: 1.5073632 | D199: 1805 | E199: 0.694 | F199: -0.006 | G199: 3805 | H199: 72.058457 | I199: 0.1648330861 | J199: -2.868617326
A200: 3804 | B200: 100.72816 | C200: 1.5072816 | D200: 1804 | E200: 0.6942 | F200: -0.0058 | G200: 3804 | H200: 72.046654 | I200: 0.1650971687 | J200: -2.870264064
... 3404 more rows

Sheet FTIR
A1: Phlogopite fine powder | C1: 1 | D1: Amorphous silica | F1: 2 | G1: Vermiculite | H1: =MAX(H4:H3604) -> 73.617265 | I1: 25
A2: cm-1 | B2: A | C2: 0.02 | D2: cm-1 | E2: A | F2: 0.28 | I2: 0.6
I3: 5
A4: 4000 | B4: 0.0043 | C4: =B4*$C$1+$C$2 -> 0.0243 | D4: 4000 | E4: 0.0014 | F4: =E4*$F$1+$F$2 -> 0.2828 | G4: 4000 | H4: 73.422208 | I4: =$I$3*(2-LOG10(H4+$I$1))+$I$2 -> 0.6345344812
A5: 3999 | B5: 0.0044 | C5: =B5*$C$1+$C$2 -> 0.0244 | D5: 3999 | E5: 0.0015 | F5: =E5*$F$1+$F$2 -> 0.283 | G5: 3999 | H5: 73.42186 | I5: =$I$3*(2-LOG10(H5+$I$1))+$I$2 -> 0.6345421591
A6: 3998 | B6: 0.0044 | C6: 0.0244 | D6: 3998 | E6: 0.0016 | F6: 0.2832 | G6: 3998 | H6: 73.420912 | I6: 0.6345630749
A7: 3997 | B7: 0.0045 | C7: 0.0245 | D7: 3997 | E7: 0.0017 | F7: 0.2834 | G7: 3997 | H7: 73.419686 | I7: 0.6345901244
A8: 3996 | B8: 0.0045 | C8: 0.0245 | D8: 3996 | E8: 0.0017 | F8: 0.2834 | G8: 3996 | H8: 73.418362 | I8: 0.6346193365
A9: 3995 | B9: 0.0045 | C9: 0.0245 | D9: 3995 | E9: 0.0016 | F9: 0.2832 | G9: 3995 | H9: 73.41675 | I9: 0.6346549035
A10: 3994 | B10: 0.0046 | C10: 0.0246 | D10: 3994 | E10: 0.0016 | F10: 0.2832 | G10: 3994 | H10: 73.414771 | I10: 0.6346985687
A11: 3993 | B11: 0.0047 | C11: 0.0247 | D11: 3993 | E11: 0.0016 | F11: 0.2832 | G11: 3993 | H11: 73.41241 | I11: 0.6347506636
A12: 3992 | B12: 0.0048 | C12: 0.0248 | D12: 3992 | E12: 0.0016 | F12: 0.2832 | G12: 3992 | H12: 73.409702 | I12: 0.6348104165
A13: 3991 | B13: 0.0047 | C13: 0.0247 | D13: 3991 | E13: 0.0016 | F13: 0.2832 | G13: 3991 | H13: 73.40669 | I13: 0.6348768792
A14: 3990 | B14: 0.0046 | C14: 0.0246 | D14: 3990 | E14: 0.0015 | F14: 0.283 | G14: 3990 | H14: 73.402914 | I14: 0.6349602032
A15: 3989 | B15: 0.0044 | C15: 0.0244 | D15: 3989 | E15: 0.0015 | F15: 0.283 | G15: 3989 | H15: 73.398353 | I15: 0.6350608538
A16: 3988 | B16: 0.0042 | C16: 0.0242 | D16: 3988 | E16: 0.0015 | F16: 0.283 | G16: 3988 | H16: 73.393651 | I16: 0.6351646209
A17: 3987 | B17: 0.0041 | C17: 0.0241 | D17: 3987 | E17: 0.0014 | F17: 0.2828 | G17: 3987 | H17: 73.38908 | I17: 0.6352655017
A18: 3986 | B18: 0.004 | C18: 0.024 | D18: 3986 | E18: 0.0013 | F18: 0.2826 | G18: 3986 | H18: 73.38436 | I18: 0.6353696758
A19: 3985 | B19: 0.004 | C19: 0.024 | D19: 3985 | E19: 0.0012 | F19: 0.2824 | G19: 3985 | H19: 73.379482 | I19: 0.6354773424
A20: 3984 | B20: 0.004 | C20: 0.024 | D20: 3984 | E20: 0.0012 | F20: 0.2824 | G20: 3984 | H20: 73.374624 | I20: 0.6355845728
A21: 3983 | B21: 0.0042 | C21: 0.0242 | D21: 3983 | E21: 0.0012 | F21: 0.2824 | G21: 3983 | H21: 73.369675 | I21: 0.6356938173
A22: 3982 | B22: 0.0044 | C22: 0.0244 | D22: 3982 | E22: 0.0012 | F22: 0.2824 | G22: 3982 | H22: 73.364507 | I22: 0.6358079019
A23: 3981 | B23: 0.0045 | C23: 0.0245 | D23: 3981 | E23: 0.0012 | F23: 0.2824 | G23: 3981 | H23: 73.359103 | I23: 0.6359272026
A24: 3980 | B24: 0.0045 | C24: 0.0245 | D24: 3980 | E24: 0.0011 | F24: 0.2822 | G24: 3980 | H24: 73.35344 | I24: 0.6360522282
A25: 3979 | B25: 0.0044 | C25: 0.0244 | D25: 3979 | E25: 0.0011 | F25: 0.2822 | G25: 3979 | H25: 73.347644 | I25: 0.6361801975
A26: 3978 | B26: 0.0043 | C26: 0.0243 | D26: 3978 | E26: 0.0011 | F26: 0.2822 | G26: 3978 | H26: 73.341967 | I26: 0.6363055468
A27: 3977 | B27: 0.0043 | C27: 0.0243 | D27: 3977 | E27: 0.0011 | F27: 0.2822 | G27: 3977 | H27: 73.336588 | I27: 0.6364243228
A28: 3976 | B28: 0.0043 | C28: 0.0243 | D28: 3976 | E28: 0.0011 | F28: 0.2822 | G28: 3976 | H28: 73.331295 | I28: 0.6365412062
A29: 3975 | B29: 0.0043 | C29: 0.0243 | D29: 3975 | E29: 0.0011 | F29: 0.2822 | G29: 3975 | H29: 73.325104 | I29: 0.6366779278
A30: 3974 | B30: 0.0042 | C30: 0.0242 | D30: 3974 | E30: 0.001 | F30: 0.282 | G30: 3974 | H30: 73.318067 | I30: 0.6368333428
A31: 3973 | B31: 0.0042 | C31: 0.0242 | D31: 3973 | E31: 0.0009 | F31: 0.2818 | G31: 3973 | H31: 73.311544 | I31: 0.6369774159
A32: 3972 | B32: 0.0042 | C32: 0.0242 | D32: 3972 | E32: 0.0009 | F32: 0.2818 | G32: 3972 | H32: 73.305155 | I32: 0.6371185385
A33: 3971 | B33: 0.0043 | C33: 0.0243 | D33: 3971 | E33: 0.001 | F33: 0.282 | G33: 3971 | H33: 73.297935 | I33: 0.6372780277
A34: 3970 | B34: 0.0043 | C34: 0.0243 | D34: 3970 | E34: 0.0011 | F34: 0.2822 | G34: 3970 | H34: 73.2927 | I34: 0.6373936757
A35: 3969 | B35: 0.0043 | C35: 0.0243 | D35: 3969 | E35: 0.0012 | F35: 0.2824 | G35: 3969 | H35: 73.287664 | I35: 0.6375049334
A36: 3968 | B36: 0.0042 | C36: 0.0242 | D36: 3968 | E36: 0.0014 | F36: 0.2828 | G36: 3968 | H36: 73.281545 | I36: 0.6376401248
A37: 3967 | B37: 0.0042 | C37: 0.0242 | D37: 3967 | E37: 0.0016 | F37: 0.2832 | G37: 3967 | H37: 73.275254 | I37: 0.6377791252
A38: 3966 | B38: 0.0042 | C38: 0.0242 | D38: 3966 | E38: 0.0017 | F38: 0.2834 | G38: 3966 | H38: 73.269921 | I38: 0.6378969654
A39: 3965 | B39: 0.0044 | C39: 0.0244 | D39: 3965 | E39: 0.0018 | F39: 0.2836 | G39: 3965 | H39: 73.266064 | I39: 0.6379821953
A40: 3964 | B40: 0.0046 | C40: 0.0246 | D40: 3964 | E40: 0.0017 | F40: 0.2834 | G40: 3964 | H40: 73.261148 | I40: 0.6380908312
A41: 3963 | B41: 0.0047 | C41: 0.0247 | D41: 3963 | E41: 0.0015 | F41: 0.283 | G41: 3963 | H41: 73.255418 | I41: 0.6382174621
A42: 3962 | B42: 0.0048 | C42: 0.0248 | D42: 3962 | E42: 0.0014 | F42: 0.2828 | G42: 3962 | H42: 73.248552 | I42: 0.638369208
A43: 3961 | B43: 0.0048 | C43: 0.0248 | D43: 3961 | E43: 0.0014 | F43: 0.2828 | G43: 3961 | H43: 73.241391 | I43: 0.6385274849
A44: 3960 | B44: 0.0048 | C44: 0.0248 | D44: 3960 | E44: 0.0015 | F44: 0.283 | G44: 3960 | H44: 73.234611 | I44: 0.6386773514
A45: 3959 | B45: 0.0048 | C45: 0.0248 | D45: 3959 | E45: 0.0016 | F45: 0.2832 | G45: 3959 | H45: 73.227963 | I45: 0.6388243102
A46: 3958 | B46: 0.0048 | C46: 0.0248 | D46: 3958 | E46: 0.0016 | F46: 0.2832 | G46: 3958 | H46: 73.221309 | I46: 0.6389714115
A47: 3957 | B47: 0.0047 | C47: 0.0247 | D47: 3957 | E47: 0.0016 | F47: 0.2832 | G47: 3957 | H47: 73.214532 | I47: 0.6391212423
A48: 3956 | B48: 0.0047 | C48: 0.0247 | D48: 3956 | E48: 0.0014 | F48: 0.2828 | G48: 3956 | H48: 73.207715 | I48: 0.6392719679
A49: 3955 | B49: 0.0047 | C49: 0.0247 | D49: 3955 | E49: 0.0014 | F49: 0.2828 | G49: 3955 | H49: 73.200958 | I49: 0.6394213772
A50: 3954 | B50: 0.0047 | C50: 0.0247 | D50: 3954 | E50: 0.0014 | F50: 0.2828 | G50: 3954 | H50: 73.194514 | I50: 0.639563875
A51: 3953 | B51: 0.0048 | C51: 0.0248 | D51: 3953 | E51: 0.0015 | F51: 0.283 | G51: 3953 | H51: 73.188325 | I51: 0.6397007428
A52: 3952 | B52: 0.0049 | C52: 0.0249 | D52: 3952 | E52: 0.0017 | F52: 0.2834 | G52: 3952 | H52: 73.182296 | I52: 0.6398340805
A53: 3951 | B53: 0.005 | C53: 0.025 | D53: 3951 | E53: 0.0019 | F53: 0.2838 | G53: 3951 | H53: 73.176647 | I53: 0.6399590216
A54: 3950 | B54: 0.005 | C54: 0.025 | D54: 3950 | E54: 0.002 | F54: 0.284 | G54: 3950 | H54: 73.170038 | I54: 0.6401052045
A55: 3949 | B55: 0.005 | C55: 0.025 | D55: 3949 | E55: 0.002 | F55: 0.284 | G55: 3949 | H55: 73.162826 | I55: 0.6402647362
A56: 3948 | B56: 0.0049 | C56: 0.0249 | D56: 3948 | E56: 0.0019 | F56: 0.2838 | G56: 3948 | H56: 73.155349 | I56: 0.6404301422
A57: 3947 | B57: 0.0049 | C57: 0.0249 | D57: 3947 | E57: 0.0018 | F57: 0.2836 | G57: 3947 | H57: 73.146297 | I57: 0.6406304071
A58: 3946 | B58: 0.0048 | C58: 0.0248 | D58: 3946 | E58: 0.0017 | F58: 0.2834 | G58: 3946 | H58: 73.138158 | I58: 0.6408104888
A59: 3945 | B59: 0.0048 | C59: 0.0248 | D59: 3945 | E59: 0.0016 | F59: 0.2832 | G59: 3945 | H59: 73.132132 | I59: 0.6409438283
A60: 3944 | B60: 0.0047 | C60: 0.0247 | D60: 3944 | E60: 0.0014 | F60: 0.2828 | G60: 3944 | H60: 73.12842 | I60: 0.6410259691
A61: 3943 | B61: 0.0046 | C61: 0.0246 | D61: 3943 | E61: 0.0013 | F61: 0.2826 | G61: 3943 | H61: 73.123675 | I61: 0.6411309732
A62: 3942 | B62: 0.0045 | C62: 0.0245 | D62: 3942 | E62: 0.0013 | F62: 0.2826 | G62: 3942 | H62: 73.113488 | I62: 0.6413564228
A63: 3941 | B63: 0.0044 | C63: 0.0244 | D63: 3941 | E63: 0.0013 | F63: 0.2826 | G63: 3941 | H63: 73.103225 | I63: 0.6415835779
A64: 3940 | B64: 0.0045 | C64: 0.0245 | D64: 3940 | E64: 0.0015 | F64: 0.283 | G64: 3940 | H64: 73.096114 | I64: 0.6417409826
A65: 3939 | B65: 0.0045 | C65: 0.0245 | D65: 3939 | E65: 0.0016 | F65: 0.2832 | G65: 3939 | H65: 73.091485 | I65: 0.6418434533
A66: 3938 | B66: 0.0044 | C66: 0.0244 | D66: 3938 | E66: 0.0016 | F66: 0.2832 | G66: 3938 | H66: 73.087033 | I66: 0.6419420104
A67: 3937 | B67: 0.0043 | C67: 0.0243 | D67: 3937 | E67: 0.0016 | F67: 0.2832 | G67: 3937 | H67: 73.082054 | I67: 0.6420522394
A68: 3936 | B68: 0.0042 | C68: 0.0242 | D68: 3936 | E68: 0.0015 | F68: 0.283 | G68: 3936 | H68: 73.077237 | I68: 0.6421588873
A69: 3935 | B69: 0.0043 | C69: =B69*$C$1+$C$2 -> 0.0243 | D69: 3935 | E69: 0.0015 | F69: =E69*$F$1+$F$2 -> 0.283 | G69: 3935 | H69: 73.072054 | I69: =$I$3*(2-LOG10(H69+$I$1))+$I$2 -> 0.6422736442
A70: 3934 | B70: 0.0043 | C70: 0.0243 | D70: 3934 | E70: 0.0014 | F70: 0.2828 | G70: 3934 | H70: 73.067241 | I70: 0.6423802143
A71: 3933 | B71: 0.0045 | C71: 0.0245 | D71: 3933 | E71: 0.0014 | F71: 0.2828 | G71: 3933 | H71: 73.063398 | I71: 0.6424653103
A72: 3932 | B72: 0.0045 | C72: 0.0245 | D72: 3932 | E72: 0.0013 | F72: 0.2826 | G72: 3932 | H72: 73.055484 | I72: 0.6426405615
A73: 3931 | B73: 0.0045 | C73: 0.0245 | D73: 3931 | E73: 0.0013 | F73: 0.2826 | G73: 3931 | H73: 73.045459 | I73: 0.6428625799
A74: 3930 | B74: 0.0046 | C74: 0.0246 | D74: 3930 | E74: 0.0013 | F74: 0.2826 | G74: 3930 | H74: 73.036276 | I74: 0.643065971
A75: 3929 | B75: 0.0047 | C75: 0.0247 | D75: 3929 | E75: 0.0014 | F75: 0.2828 | G75: 3929 | H75: 73.027157 | I75: 0.6432679633
A76: 3928 | B76: 0.0048 | C76: 0.0248 | D76: 3928 | E76: 0.0016 | F76: 0.2832 | G76: 3928 | H76: 73.020521 | I76: 0.6434149672
A77: 3927 | B77: 0.005 | C77: 0.025 | D77: 3927 | E77: 0.0018 | F77: 0.2836 | G77: 3927 | H77: 73.017079 | I77: 0.64349122
A78: 3926 | B78: 0.0052 | C78: 0.0252 | D78: 3926 | E78: 0.0019 | F78: 0.2838 | G78: 3926 | H78: 73.018425 | I78: 0.6434614009
A79: 3925 | B79: 0.0053 | C79: 0.0253 | D79: 3925 | E79: 0.002 | F79: 0.284 | G79: 3925 | H79: 73.019899 | I79: 0.6434287466
A80: 3924 | B80: 0.0052 | C80: 0.0252 | D80: 3924 | E80: 0.0019 | F80: 0.2838 | G80: 3924 | H80: 73.01343 | I80: 0.6435720616
A81: 3923 | B81: 0.005 | C81: 0.025 | D81: 3923 | E81: 0.0017 | F81: 0.2834 | G81: 3923 | H81: 72.998926 | I81: 0.6438934192
A82: 3922 | B82: 0.0048 | C82: 0.0248 | D82: 3922 | E82: 0.0015 | F82: 0.283 | G82: 3922 | H82: 72.9894 | I82: 0.6441045078
A83: 3921 | B83: 0.0045 | C83: 0.0245 | D83: 3921 | E83: 0.0013 | F83: 0.2826 | G83: 3921 | H83: 72.995938 | I83: 0.6439596287
A84: 3920 | B84: 0.0044 | C84: 0.0244 | D84: 3920 | E84: 0.0012 | F84: 0.2824 | G84: 3920 | H84: 73.001415 | I84: 0.6438382684
A85: 3919 | B85: 0.0043 | C85: 0.0243 | D85: 3919 | E85: 0.0012 | F85: 0.2824 | G85: 3919 | H85: 72.99582 | I85: 0.6439622435
A86: 3918 | B86: 0.0042 | C86: 0.0242 | D86: 3918 | E86: 0.0013 | F86: 0.2826 | G86: 3918 | H86: 72.995471 | I86: 0.6439699769
A87: 3917 | B87: 0.0043 | C87: 0.0243 | D87: 3917 | E87: 0.0014 | F87: 0.2828 | G87: 3917 | H87: 72.98634 | I87: 0.6441723193
A88: 3916 | B88: 0.0044 | C88: 0.0244 | D88: 3916 | E88: 0.0015 | F88: 0.283 | G88: 3916 | H88: 72.962082 | I88: 0.6447099667
A89: 3915 | B89: 0.0045 | C89: 0.0245 | D89: 3915 | E89: 0.0016 | F89: 0.2832 | G89: 3915 | H89: 72.938023 | I89: 0.645243335
A90: 3914 | B90: 0.0046 | C90: 0.0246 | D90: 3914 | E90: 0.0017 | F90: 0.2834 | G90: 3914 | H90: 72.927917 | I90: 0.6454674158
A91: 3913 | B91: 0.0047 | C91: 0.0247 | D91: 3913 | E91: 0.0018 | F91: 0.2836 | G91: 3913 | H91: 72.934195 | I91: 0.6453282107
A92: 3912 | B92: 0.0046 | C92: 0.0246 | D92: 3912 | E92: 0.0019 | F92: 0.2838 | G92: 3912 | H92: 72.943869 | I92: 0.6451137219
A93: 3911 | B93: 0.0046 | C93: 0.0246 | D93: 3911 | E93: 0.0019 | F93: 0.2838 | G93: 3911 | H93: 72.946422 | I93: 0.6450571212
A94: 3910 | B94: 0.0046 | C94: 0.0246 | D94: 3910 | E94: 0.0019 | F94: 0.2838 | G94: 3910 | H94: 72.943056 | I94: 0.6451317467
A95: 3909 | B95: 0.0046 | C95: 0.0246 | D95: 3909 | E95: 0.0019 | F95: 0.2838 | G95: 3909 | H95: 72.938265 | I95: 0.6452379694
A96: 3908 | B96: 0.0045 | C96: 0.0245 | D96: 3908 | E96: 0.0019 | F96: 0.2838 | G96: 3908 | H96: 72.940818 | I96: 0.6451813654
A97: 3907 | B97: 0.0043 | C97: 0.0243 | D97: 3907 | E97: 0.0019 | F97: 0.2838 | G97: 3907 | H97: 72.956229 | I97: 0.6448397108
A98: 3906 | B98: 0.0041 | C98: 0.0241 | D98: 3906 | E98: 0.0018 | F98: 0.2836 | G98: 3906 | H98: 72.973196 | I98: 0.6444636226
A99: 3905 | B99: 0.0041 | C99: 0.0241 | D99: 3905 | E99: 0.0018 | F99: 0.2836 | G99: 3905 | H99: 72.978791 | I99: 0.6443396189
A100: 3904 | B100: 0.0043 | C100: 0.0243 | D100: 3904 | E100: 0.0019 | F100: 0.2838 | G100: 3904 | H100: 72.944646 | I100: 0.6450964954
A101: 3903 | B101: 0.0046 | C101: 0.0246 | D101: 3903 | E101: 0.0019 | F101: 0.2838 | G101: 3903 | H101: 72.916799 | I101: 0.6457139625
A102: 3902 | B102: 0.0049 | C102: 0.0249 | D102: 3902 | E102: 0.0019 | F102: 0.2838 | G102: 3902 | H102: 72.890863 | I102: 0.6462892138
A103: 3901 | B103: 0.0049 | C103: 0.0249 | D103: 3901 | E103: 0.0018 | F103: 0.2836 | G103: 3901 | H103: 72.864342 | I103: 0.6468775979
A104: 3900 | B104: 0.0049 | C104: 0.0249 | D104: 3900 | E104: 0.0017 | F104: 0.2834 | G104: 3900 | H104: 72.869458 | I104: 0.646764084
A105: 3899 | B105: 0.0049 | C105: 0.0249 | D105: 3899 | E105: 0.0015 | F105: 0.283 | G105: 3899 | H105: 72.857362 | I105: 0.6470324798
A106: 3898 | B106: 0.0048 | C106: 0.0248 | D106: 3898 | E106: 0.0014 | F106: 0.2828 | G106: 3898 | H106: 72.836041 | I106: 0.6475056481
A107: 3897 | B107: 0.0047 | C107: 0.0247 | D107: 3897 | E107: 0.0013 | F107: 0.2826 | G107: 3897 | H107: 72.822688 | I107: 0.6478020384
A108: 3896 | B108: 0.0046 | C108: 0.0246 | D108: 3896 | E108: 0.0013 | F108: 0.2826 | G108: 3896 | H108: 72.822852 | I108: 0.6477983979
A109: 3895 | B109: 0.0045 | C109: 0.0245 | D109: 3895 | E109: 0.0012 | F109: 0.2824 | G109: 3895 | H109: 72.828485 | I109: 0.6476733602
A110: 3894 | B110: 0.0044 | C110: 0.0244 | D110: 3894 | E110: 0.0013 | F110: 0.2826 | G110: 3894 | H110: 72.829993 | I110: 0.6476398877
A111: 3893 | B111: 0.0044 | C111: 0.0244 | D111: 3893 | E111: 0.0014 | F111: 0.2828 | G111: 3893 | H111: 72.829543 | I111: 0.6476498761
A112: 3892 | B112: 0.0046 | C112: 0.0246 | D112: 3892 | E112: 0.0016 | F112: 0.2832 | G112: 3892 | H112: 72.826462 | I112: 0.6477182646
A113: 3891 | B113: 0.0049 | C113: 0.0249 | D113: 3891 | E113: 0.0017 | F113: 0.2834 | G113: 3891 | H113: 72.81315 | I113: 0.6480137737
A114: 3890 | B114: 0.005 | C114: 0.025 | D114: 3890 | E114: 0.0019 | F114: 0.2838 | G114: 3890 | H114: 72.799379 | I114: 0.6483195143
A115: 3889 | B115: 0.005 | C115: 0.025 | D115: 3889 | E115: 0.0019 | F115: 0.2838 | G115: 3889 | H115: 72.791547 | I115: 0.6484934178
A116: 3888 | B116: 0.0047 | C116: 0.0247 | D116: 3888 | E116: 0.0018 | F116: 0.2836 | G116: 3888 | H116: 72.78657 | I116: 0.6486039354
A117: 3887 | B117: 0.0044 | C117: 0.0244 | D117: 3887 | E117: 0.0017 | F117: 0.2834 | G117: 3887 | H117: 72.781559 | I117: 0.6487152138
A118: 3886 | B118: 0.0044 | C118: 0.0244 | D118: 3886 | E118: 0.0015 | F118: 0.283 | G118: 3886 | H118: 72.774107 | I118: 0.6488807095
A119: 3885 | B119: 0.0047 | C119: 0.0247 | D119: 3885 | E119: 0.0016 | F119: 0.2832 | G119: 3885 | H119: 72.765126 | I119: 0.6490801783
A120: 3884 | B120: 0.005 | C120: 0.025 | D120: 3884 | E120: 0.0018 | F120: 0.2836 | G120: 3884 | H120: 72.756744 | I120: 0.6492663599
A121: 3883 | B121: 0.005 | C121: 0.025 | D121: 3883 | E121: 0.002 | F121: 0.284 | G121: 3883 | H121: 72.749317 | I121: 0.6494313423
A122: 3882 | B122: 0.0048 | C122: 0.0248 | D122: 3882 | E122: 0.002 | F122: 0.284 | G122: 3882 | H122: 72.742886 | I122: 0.6495742097
A123: 3881 | B123: 0.0046 | C123: 0.0246 | D123: 3881 | E123: 0.0019 | F123: 0.2838 | G123: 3881 | H123: 72.736599 | I123: 0.6497138873
A124: 3880 | B124: 0.0045 | C124: 0.0245 | D124: 3880 | E124: 0.0018 | F124: 0.2836 | G124: 3880 | H124: 72.728989 | I124: 0.6498829698
A125: 3879 | B125: 0.0046 | C125: 0.0246 | D125: 3879 | E125: 0.0019 | F125: 0.2838 | G125: 3879 | H125: 72.720081 | I125: 0.6500809086
A126: 3878 | B126: 0.0047 | C126: 0.0247 | D126: 3878 | E126: 0.0021 | F126: 0.2842 | G126: 3878 | H126: 72.712172 | I126: 0.6502566644
A127: 3877 | B127: 0.0049 | C127: 0.0249 | D127: 3877 | E127: 0.0024 | F127: 0.2848 | G127: 3877 | H127: 72.706015 | I127: 0.6503934966
A128: 3876 | B128: 0.005 | C128: 0.025 | D128: 3876 | E128: 0.0026 | F128: 0.2852 | G128: 3876 | H128: 72.701191 | I128: 0.6505007105
A129: 3875 | B129: 0.0052 | C129: 0.0252 | D129: 3875 | E129: 0.0026 | F129: 0.2852 | G129: 3875 | H129: 72.697639 | I129: 0.6505796574
A130: 3874 | B130: 0.0053 | C130: 0.0253 | D130: 3874 | E130: 0.0025 | F130: 0.285 | G130: 3874 | H130: 72.692576 | I130: 0.6506921929
A131: 3873 | B131: 0.0052 | C131: 0.0252 | D131: 3873 | E131: 0.0023 | F131: 0.2846 | G131: 3873 | H131: 72.68517 | I131: 0.6508568168
A132: 3872 | B132: 0.0051 | C132: 0.0251 | D132: 3872 | E132: 0.002 | F132: 0.284 | G132: 3872 | H132: 72.676557 | I132: 0.6510482862
A133: 3871 | B133: 0.0049 | C133: =B133*$C$1+$C$2 -> 0.0249 | D133: 3871 | E133: 0.0016 | F133: =E133*$F$1+$F$2 -> 0.2832 | G133: 3871 | H133: 72.666967 | I133: =$I$3*(2-LOG10(H133+$I$1))+$I$2 -> 0.6512614944
A134: 3870 | B134: 0.0049 | C134: 0.0249 | D134: 3870 | E134: 0.0013 | F134: 0.2826 | G134: 3870 | H134: 72.65654 | I134: 0.6514933348
A135: 3869 | B135: 0.005 | C135: 0.025 | D135: 3869 | E135: 0.0011 | F135: 0.2822 | G135: 3869 | H135: 72.644094 | I135: 0.6517700994
A136: 3868 | B136: 0.0049 | C136: 0.0249 | D136: 3868 | E136: 0.0012 | F136: 0.2824 | G136: 3868 | H136: 72.628643 | I136: 0.6521137359
A137: 3867 | B137: 0.0048 | C137: 0.0248 | D137: 3867 | E137: 0.0014 | F137: 0.2828 | G137: 3867 | H137: 72.614356 | I137: 0.6524315329
A138: 3866 | B138: 0.0047 | C138: 0.0247 | D138: 3866 | E138: 0.0016 | F138: 0.2832 | G138: 3866 | H138: 72.606792 | I138: 0.6525998038
A139: 3865 | B139: 0.0047 | C139: 0.0247 | D139: 3865 | E139: 0.0018 | F139: 0.2836 | G139: 3865 | H139: 72.601643 | I139: 0.6527143574
A140: 3864 | B140: 0.0047 | C140: 0.0247 | D140: 3864 | E140: 0.002 | F140: 0.284 | G140: 3864 | H140: 72.587312 | I140: 0.6530332214
A141: 3863 | B141: 0.0047 | C141: 0.0247 | D141: 3863 | E141: 0.0019 | F141: 0.2838 | G141: 3863 | H141: 72.570745 | I141: 0.6534018947
A142: 3862 | B142: 0.0046 | C142: 0.0246 | D142: 3862 | E142: 0.0017 | F142: 0.2834 | G142: 3862 | H142: 72.556998 | I142: 0.6537078608
A143: 3861 | B143: 0.0044 | C143: 0.0244 | D143: 3861 | E143: 0.0014 | F143: 0.2828 | G143: 3861 | H143: 72.542058 | I143: 0.6540404282
A144: 3860 | B144: 0.0042 | C144: 0.0242 | D144: 3860 | E144: 0.001 | F144: 0.282 | G144: 3860 | H144: 72.53219 | I144: 0.6542601199
A145: 3859 | B145: 0.0041 | C145: 0.0241 | D145: 3859 | E145: 0.0006 | F145: 0.2812 | G145: 3859 | H145: 72.531288 | I145: 0.6542802022
A146: 3858 | B146: 0.0041 | C146: 0.0241 | D146: 3858 | E146: 0.0003 | F146: 0.2806 | G146: 3858 | H146: 72.542965 | I146: 0.6540202368
A147: 3857 | B147: 0.004 | C147: 0.024 | D147: 3857 | E147: 0.0001 | F147: 0.2802 | G147: 3857 | H147: 72.545189 | I147: 0.6539707273
A148: 3856 | B148: 0.0039 | C148: 0.0239 | D148: 3856 | E148: 0.0001 | F148: 0.2802 | G148: 3856 | H148: 72.544084 | I148: 0.6539953261
A149: 3855 | B149: 0.0038 | C149: 0.0238 | D149: 3855 | E149: 0.0001 | F149: 0.2802 | G149: 3855 | H149: 72.56694 | I149: 0.6534865781
A150: 3854 | B150: 0.0039 | C150: 0.0239 | D150: 3854 | E150: 0.0001 | F150: 0.2802 | G150: 3854 | H150: 72.577926 | I150: 0.6532420849
A151: 3853 | B151: 0.004 | C151: 0.024 | D151: 3853 | E151: 0.0002 | F151: 0.2804 | G151: 3853 | H151: 72.536932 | I151: 0.6541545458
A152: 3852 | B152: 0.0041 | C152: 0.0241 | D152: 3852 | E152: 0.0005 | F152: 0.281 | G152: 3852 | H152: 72.425549 | I152: 0.6566356912
A153: 3851 | B153: 0.0042 | C153: 0.0242 | D153: 3851 | E153: 0.0009 | F153: 0.2818 | G153: 3851 | H153: 72.344388 | I153: 0.6584454046
A154: 3850 | B154: 0.0044 | C154: 0.0244 | D154: 3850 | E154: 0.0013 | F154: 0.2826 | G154: 3850 | H154: 72.35069 | I154: 0.6583048298
A155: 3849 | B155: 0.0045 | C155: 0.0245 | D155: 3849 | E155: 0.0017 | F155: 0.2834 | G155: 3849 | H155: 72.369467 | I155: 0.6578860366
A156: 3848 | B156: 0.0047 | C156: 0.0247 | D156: 3848 | E156: 0.002 | F156: 0.284 | G156: 3848 | H156: 72.387215 | I156: 0.6574902679
A157: 3847 | B157: 0.0049 | C157: 0.0249 | D157: 3847 | E157: 0.0021 | F157: 0.2842 | G157: 3847 | H157: 72.403028 | I157: 0.6571377093
A158: 3846 | B158: 0.0052 | C158: 0.0252 | D158: 3846 | E158: 0.0022 | F158: 0.2844 | G158: 3846 | H158: 72.417993 | I158: 0.6568041099
A159: 3845 | B159: 0.0054 | C159: 0.0254 | D159: 3845 | E159: 0.0021 | F159: 0.2842 | G159: 3845 | H159: 72.439647 | I159: 0.6563214903
A160: 3844 | B160: 0.0055 | C160: 0.0255 | D160: 3844 | E160: 0.0019 | F160: 0.2838 | G160: 3844 | H160: 72.449376 | I160: 0.6561046873
A161: 3843 | B161: 0.0054 | C161: 0.0254 | D161: 3843 | E161: 0.0019 | F161: 0.2838 | G161: 3843 | H161: 72.420826 | I161: 0.6567409625
A162: 3842 | B162: 0.0053 | C162: 0.0253 | D162: 3842 | E162: 0.002 | F162: 0.284 | G162: 3842 | H162: 72.404048 | I162: 0.6571149698
A163: 3841 | B163: 0.0051 | C163: 0.0251 | D163: 3841 | E163: 0.0023 | F163: 0.2846 | G163: 3841 | H163: 72.404139 | I163: 0.6571129411
A164: 3840 | B164: 0.0048 | C164: 0.0248 | D164: 3840 | E164: 0.0025 | F164: 0.285 | G164: 3840 | H164: 72.396111 | I164: 0.6572919202
A165: 3839 | B165: 0.0044 | C165: 0.0244 | D165: 3839 | E165: 0.0027 | F165: 0.2854 | G165: 3839 | H165: 72.391289 | I165: 0.6573994306
A166: 3838 | B166: 0.0041 | C166: 0.0241 | D166: 3838 | E166: 0.0026 | F166: 0.2852 | G166: 3838 | H166: 72.375121 | I166: 0.6577599483
A167: 3837 | B167: 0.004 | C167: 0.024 | D167: 3837 | E167: 0.0025 | F167: 0.285 | G167: 3837 | H167: 72.336048 | I167: 0.6586314539
A168: 3836 | B168: 0.0041 | C168: 0.0241 | D168: 3836 | E168: 0.0025 | F168: 0.285 | G168: 3836 | H168: 72.326239 | I168: 0.6588502942
A169: 3835 | B169: 0.0044 | C169: 0.0244 | D169: 3835 | E169: 0.0024 | F169: 0.2848 | G169: 3835 | H169: 72.319229 | I169: 0.6590067019
A170: 3834 | B170: 0.0046 | C170: 0.0246 | D170: 3834 | E170: 0.0024 | F170: 0.2848 | G170: 3834 | H170: 72.311155 | I170: 0.6591868635
A171: 3833 | B171: 0.0047 | C171: 0.0247 | D171: 3833 | E171: 0.0023 | F171: 0.2846 | G171: 3833 | H171: 72.309374 | I171: 0.6592266064
A172: 3832 | B172: 0.0048 | C172: 0.0248 | D172: 3832 | E172: 0.0023 | F172: 0.2846 | G172: 3832 | H172: 72.306162 | I172: 0.6592982839
A173: 3831 | B173: 0.0049 | C173: 0.0249 | D173: 3831 | E173: 0.0023 | F173: 0.2846 | G173: 3831 | H173: 72.300139 | I173: 0.6594326966
A174: 3830 | B174: 0.005 | C174: 0.025 | D174: 3830 | E174: 0.0024 | F174: 0.2848 | G174: 3830 | H174: 72.294728 | I174: 0.6595534586
A175: 3829 | B175: 0.0051 | C175: 0.0251 | D175: 3829 | E175: 0.0025 | F175: 0.285 | G175: 3829 | H175: 72.289683 | I175: 0.6596660584
A176: 3828 | B176: 0.0052 | C176: 0.0252 | D176: 3828 | E176: 0.0025 | F176: 0.285 | G176: 3828 | H176: 72.283402 | I176: 0.6598062527
A177: 3827 | B177: 0.0052 | C177: 0.0252 | D177: 3827 | E177: 0.0024 | F177: 0.2848 | G177: 3827 | H177: 72.275693 | I177: 0.6599783328
A178: 3826 | B178: 0.0051 | C178: 0.0251 | D178: 3826 | E178: 0.0023 | F178: 0.2846 | G178: 3826 | H178: 72.26671 | I178: 0.6601788684
A179: 3825 | B179: 0.0051 | C179: 0.0251 | D179: 3825 | E179: 0.0023 | F179: 0.2846 | G179: 3825 | H179: 72.257097 | I179: 0.6603934885
A180: 3824 | B180: 0.0052 | C180: 0.0252 | D180: 3824 | E180: 0.0026 | F180: 0.2852 | G180: 3824 | H180: 72.247531 | I180: 0.6606070804
A181: 3823 | B181: 0.0055 | C181: 0.0255 | D181: 3823 | E181: 0.0028 | F181: 0.2856 | G181: 3823 | H181: 72.23861 | I181: 0.6608062895
A182: 3822 | B182: 0.006 | C182: 0.026 | D182: 3822 | E182: 0.003 | F182: 0.286 | G182: 3822 | H182: 72.230255 | I182: 0.6609928762
A183: 3821 | B183: 0.0062 | C183: 0.0262 | D183: 3821 | E183: 0.003 | F183: 0.286 | G183: 3821 | H183: 72.220974 | I183: 0.6612001615
A184: 3820 | B184: 0.0062 | C184: 0.0262 | D184: 3820 | E184: 0.0028 | F184: 0.2856 | G184: 3820 | H184: 72.210077 | I184: 0.6614435643
A185: 3819 | B185: 0.0058 | C185: 0.0258 | D185: 3819 | E185: 0.0027 | F185: 0.2854 | G185: 3819 | H185: 72.199108 | I185: 0.661688603
A186: 3818 | B186: 0.0054 | C186: 0.0254 | D186: 3818 | E186: 0.0025 | F186: 0.285 | G186: 3818 | H186: 72.189222 | I186: 0.6619094719
A187: 3817 | B187: 0.0051 | C187: 0.0251 | D187: 3817 | E187: 0.0023 | F187: 0.2846 | G187: 3817 | H187: 72.181091 | I187: 0.6620911483
A188: 3816 | B188: 0.0048 | C188: 0.0248 | D188: 3816 | E188: 0.002 | F188: 0.284 | G188: 3816 | H188: 72.173619 | I188: 0.6622581135
A189: 3815 | B189: 0.0047 | C189: 0.0247 | D189: 3815 | E189: 0.0017 | F189: 0.2834 | G189: 3815 | H189: 72.162666 | I189: 0.6625028865
A190: 3814 | B190: 0.0045 | C190: 0.0245 | D190: 3814 | E190: 0.0015 | F190: 0.283 | G190: 3814 | H190: 72.15027 | I190: 0.6627799404
A191: 3813 | B191: 0.0044 | C191: 0.0244 | D191: 3813 | E191: 0.0013 | F191: 0.2826 | G191: 3813 | H191: 72.14013 | I191: 0.6630065983
A192: 3812 | B192: 0.0044 | C192: 0.0244 | D192: 3812 | E192: 0.0011 | F192: 0.2822 | G192: 3812 | H192: 72.132367 | I192: 0.6631801395
A193: 3811 | B193: 0.0044 | C193: 0.0244 | D193: 3811 | E193: 0.0011 | F193: 0.2822 | G193: 3811 | H193: 72.124851 | I193: 0.6633481722
A194: 3810 | B194: 0.0045 | C194: 0.0245 | D194: 3810 | E194: 0.0014 | F194: 0.2828 | G194: 3810 | H194: 72.117147 | I194: 0.6635204215
A195: 3809 | B195: 0.0046 | C195: 0.0246 | D195: 3809 | E195: 0.0017 | F195: 0.2834 | G195: 3809 | H195: 72.109285 | I195: 0.6636962175
A196: 3808 | B196: 0.0049 | C196: 0.0249 | D196: 3808 | E196: 0.002 | F196: 0.284 | G196: 3808 | H196: 72.100926 | I196: 0.6638831422
A197: 3807 | B197: 0.005 | C197: =B197*$C$1+$C$2 -> 0.025 | D197: 3807 | E197: 0.0021 | F197: =E197*$F$1+$F$2 -> 0.2842 | G197: 3807 | H197: 72.089125 | I197: =$I$3*(2-LOG10(H197+$I$1))+$I$2 -> 0.6641470645
A198: 3806 | B198: 0.0049 | C198: 0.0249 | D198: 3806 | E198: 0.0021 | F198: 0.2842 | G198: 3806 | H198: 72.073286 | I198: 0.6645013447
A199: 3805 | B199: 0.0046 | C199: 0.0246 | D199: 3805 | E199: 0.002 | F199: 0.284 | G199: 3805 | H199: 72.058457 | I199: 0.6648330861
A200: 3804 | B200: 0.0042 | C200: 0.0242 | D200: 3804 | E200: 0.0018 | F200: 0.2836 | G200: 3804 | H200: 72.046654 | I200: 0.6650971687
... 3404 more rows

Sheet TGA
A1: T | B1: TGA | C1: DTG | I1: 20.42873955 | J1: 99.97959051 | K1: 16.64538483
A2: 20.39637947 | B2: 100 | I2: 20.54932594 | J2: 99.9246603 | K2: 23.30697297
A3: 20.39637947 | B3: 99.9971846 | I3: 20.98817253 | J3: 99.86634991 | K3: 23.53300969
A4: 20.40291405 | B4: 99.99436065 | I4: 21.67759705 | J4: 99.80898084 | K4: 23.32732215
A5: 20.40981674 | B5: 99.99144256 | I5: 22.51567078 | J5: 99.75023401 | K5: 24.16724813
A6: 20.4156723 | B6: 99.98846457 | I6: 23.43016624 | J6: 99.68857766 | K6: 25.39351957
A7: 20.42325401 | B7: 99.98549514 | I7: 24.40698242 | J7: 99.62441398 | K7: 26.48717916
A8: 20.42621231 | B8: 99.9825685 | C8: 12.60396134 | I8: 25.49460411 | J8: 99.5577173 | K8: 27.2243458
A9: 20.42873955 | B9: 99.97959051 | C9: 16.64538483 | D9: =A9 -> 20.42873955 | E9: =B9 -> 99.97959051 | F9: 16.64538483 | I9: 26.61587524 | J9: 99.48683603 | K9: 29.64142603
A10: 20.43188286 | B10: 99.97650983 | C10: 19.24067633 | I10: 27.79034805 | J10: 99.41113692 | K10: 31.63278264
A11: 20.4329319 | B11: 99.9734805 | C11: 20.48879495 | I11: 29.00931358 | J11: 99.33142437 | K11: 33.19348501
A12: 20.42584229 | B12: 99.97045972 | C12: 20.98208818 | I12: 30.23957825 | J12: 99.24626929 | K12: 34.6741356
A13: 20.4275074 | B13: 99.96743894 | C13: 21.21281134 | I13: 31.52539444 | J13: 99.15767412 | K13: 36.67263754
A14: 20.42904854 | B14: 99.96430692 | C14: 21.39355669 | I14: 32.79553604 | J14: 99.06348238 | K14: 38.81256702
A15: 20.43286896 | B15: 99.96121768 | C15: 21.57475141 | I15: 34.08810806 | J15: 98.96411339 | K15: 41.46743334
A16: 20.43385506 | B16: 99.95803432 | C16: 21.76230607 | I16: 35.37426758 | J16: 98.85735078 | K16: 45.00074022
A17: 20.43872452 | B17: 99.9547397 | C17: 21.95591391 | I17: 36.71284485 | J17: 98.74374221 | K17: 46.09504454
A18: 20.44858551 | B18: 99.95160768 | C18: 22.15299851 | I18: 38.03667831 | J18: 98.62659087 | K18: 49.1015204
A19: 20.45326996 | B19: 99.94832162 | C19: 22.34872024 | I19: 39.34175873 | J19: 98.49778429 | K19: 53.85515356
A20: 20.45783043 | B20: 99.94503557 | C20: 22.53712377 | I20: 40.66857147 | J20: 98.36162687 | K20: 55.67149306
A21: 20.47311211 | B21: 99.9417923 | C21: 22.71277022 | I21: 42.01993942 | J21: 98.21978731 | K21: 59.24923123
A22: 20.49874687 | B22: 99.93844634 | C22: 22.87186002 | I22: 43.31348419 | J22: 98.0684062 | K22: 62.47733588
A23: 20.5149498 | B23: 99.93504903 | C23: 23.01223123 | I23: 44.63734818 | J23: 97.9108124 | K23: 64.84512233
A24: 20.51341057 | B24: 99.93165173 | C24: 23.13248454 | I24: 45.97817612 | J24: 97.74611592 | K24: 67.40245483
A25: 20.52899742 | B25: 99.92826298 | C25: 23.23118348 | I25: 47.30763626 | J25: 97.57475319 | K25: 70.10419143
A26: 20.54932594 | B26: 99.9246603 | C26: 23.30697297 | D26: =A26 -> 20.54932594 | E26: =B26 -> 99.9246603 | F26: =C26 -> 23.30697297 | I26: 48.6287384 | J26: 97.39565454 | K26: 74.18366526
A27: 20.56645012 | B27: 99.92131434 | C27: 23.35960414 | I27: 49.95662308 | J27: 97.20821239 | K27: 76.50559181
A28: 20.5852375 | B28: 99.91791704 | C28: 23.39103343 | I28: 51.27310181 | J28: 97.01570423 | K28: 78.88604402
A29: 20.60716248 | B29: 99.91446839 | C29: 23.40569197 | I29: 52.60870743 | J29: 96.81605916 | K29: 82.21619978
A30: 20.6353054 | B30: 99.91101974 | C30: 23.40965058 | I30: 53.92251587 | J30: 96.60884933 | K30: 84.3925961
A31: 20.65888786 | B31: 99.9075711 | C31: 23.40915554 | I31: 55.23662567 | J31: 96.39746346 | K31: 85.78785323
A32: 20.67600441 | B32: 99.90421658 | C32: 23.40936552 | I32: 56.56400681 | J32: 96.18226952 | K32: 88.05837307
A33: 20.69447327 | B33: 99.90081928 | C33: 23.4138775 | I33: 57.88245392 | J33: 95.96066607 | K33: 90.06669246
A34: 20.72395897 | B34: 99.89742197 | C34: 23.42492779 | I34: 59.21249771 | J34: 95.73545138 | K34: 91.50424322
A35: 20.75934982 | B35: 99.89401611 | C35: 23.44356569 | I35: 60.50427628 | J35: 95.50503376 | K35: 93.97831259
A36: 20.79171944 | B36: 99.89056746 | C36: 23.46927779 | I36: 61.85713196 | J36: 95.27038877 | K36: 94.56105339
A37: 20.81996155 | B37: 99.8871616 | C37: 23.49940115 | I37: 63.18332672 | J37: 95.03642838 | K37: 94.38894541
A38: 20.84094048 | B38: 99.88371295 | C38: 23.52923044 | I38: 64.5039444 | J38: 94.80068804 | K38: 95.64474348
A39: 20.864748 | B39: 99.88025575 | C39: 23.55326085 | I39: 65.85739899 | J39: 94.56234623 | K39: 95.94451222
A40: 20.88621521 | B40: 99.87685845 | C40: 23.56697606 | I40: 67.18357086 | J40: 94.32521103 | K40: 95.13626798
A41: 20.90823555 | B41: 99.87340124 | C41: 23.56807092 | I41: 68.501297 | J41: 94.08978731 | K41: 94.56160467
A42: 20.94408798 | B42: 99.86990125 | C42: 23.55642241 | I42: 69.86632538 | J42: 93.85495405 | K42: 94.36364584
A43: 20.98817253 | B43: 99.86634991 | C43: 23.53300969 | D43: =A43 -> 20.98817253 | E43: =B43 -> 99.86634991 | F43: =C43 -> 23.53300969 | I43: 71.19999695 | J43: 93.62142153 | K43: 93.37735229
A44: 21.03009796 | B44: 99.86299539 | C44: 23.49865759 | I44: 72.53920746 | J44: 93.39154303 | K44: 91.87009113
A45: 21.05874062 | B45: 99.8594954 | C45: 23.4535597 | I45: 73.87689972 | J45: 93.1650105 | K45: 90.34510999
A46: 21.08363152 | B46: 99.85608954 | C46: 23.39796054 | I46: 75.26490021 | J46: 92.94249995 | K46: 89.08190437
A47: 21.12111473 | B47: 99.85269224 | C47: 23.33346194 | I47: 76.61916351 | J47: 92.72410554 | K47: 86.88968522
A48: 21.1612339 | B48: 99.84934628 | C48: 23.26387402 | I48: 77.95887756 | J48: 92.51193239 | K48: 84.67918369
A49: 21.19790649 | B49: 99.84588907 | C49: 23.19487147 | I49: 79.30860138 | J49: 92.30361864 | K49: 82.86345923
A50: 21.2426796 | B50: 99.84259446 | C50: 23.13263813 | I50: 80.70093536 | J50: 92.10151759 | K50: 79.46090656
A51: 21.28891754 | B51: 99.83908591 | C51: 23.08235353 | I51: 82.06989288 | J51: 91.90729794 | K51: 76.97461383
A52: 21.32642746 | B52: 99.83573995 | C52: 23.04732688 | I52: 83.42964172 | J52: 91.71846948 | K52: 75.1506573
A53: 21.35085869 | B53: 99.83248812 | C53: 23.02904195 | I53: 84.81629181 | J53: 91.53432194 | K53: 73.00241244
A54: 21.39050674 | B54: 99.82909082 | C54: 23.02781096 | I54: 86.20368958 | J54: 91.3580558 | K54: 69.22214376
A55: 21.44027328 | B55: 99.82578765 | C55: 23.04345284 | I55: 87.56732941 | J55: 91.19066373 | K55: 66.36547124
A56: 21.48732758 | B56: 99.82249303 | C56: 23.07551283 | I56: 88.97979736 | J56: 91.02760172 | K56: 64.31040057
A57: 21.53492546 | B57: 99.81912996 | C57: 23.12293264 | I57: 90.37207031 | J57: 90.87300302 | K57: 59.75276368
A58: 21.5780983 | B58: 99.8157241 | C58: 23.18347605 | I58: 91.78774261 | J58: 90.72909256 | K58: 56.55685517
A59: 21.62671852 | B59: 99.81237814 | C59: 23.25334869 | I59: 93.19965363 | J59: 90.59186546 | K59: 53.89217399
A60: 21.67759705 | B60: 99.80898084 | C60: 23.32732215 | D60: =A60 -> 21.67759705 | E60: =B60 -> 99.80898084 | F60: =C60 -> 23.32732215 | I60: 94.59000397 | J60: 90.46138162 | K60: 51.0979243
A61: 21.73311996 | B61: 99.80547229 | C61: 23.39945206 | I61: 95.94135284 | J61: 90.33798335 | K61: 48.23974706
A62: 21.77760124 | B62: 99.80206642 | C62: 23.4642508 | I62: 97.39547729 | J62: 90.22230388 | K62: 45.31325696
A63: 21.82636261 | B63: 99.79866056 | C63: 23.51793002 | I63: 98.82024384 | J63: 90.11320508 | K63: 42.6873831
A64: 21.86868286 | B64: 99.79515201 | C64: 23.55917666 | I64: 100.2308502 | J64: 90.01037889 | K64: 40.19030379
A65: 21.90891457 | B65: 99.79174615 | C65: 23.58908638 | I65: 101.6500473 | J65: 89.91400501 | K65: 37.84741686
A66: 21.9562397 | B66: 99.78824616 | C66: 23.61036776 | I66: 103.0325546 | J66: 89.82196975 | K66: 35.80823729
A67: 21.99186325 | B67: 99.78478895 | C67: 23.62640221 | I67: 104.4551086 | J67: 89.7360445 | K67: 33.3763439
A68: 22.04363823 | B68: 99.7812804 | C68: 23.64076591 | I68: 105.8810196 | J68: 89.65527938 | K68: 31.77321249
A69: 22.10714722 | B69: 99.77792589 | C69: 23.65731834 | I69: 107.2990036 | J69: 89.57847636 | K69: 29.91384183
A70: 22.15718269 | B70: 99.77446868 | C70: 23.68035755 | I70: 108.7177963 | J70: 89.50486527 | K70: 29.08049374
A71: 22.18531418 | B71: 99.77101148 | C71: 23.71420153 | I71: 110.1217422 | J71: 89.43516492 | K71: 26.75367077
A72: 22.22976875 | B72: 99.76755427 | C72: 23.7620688 | I72: 111.5583572 | J72: 89.37255014 | K72: 24.55499481
A73: 22.28992462 | B73: 99.76409707 | C73: 23.82487695 | I73: 112.964035 | J73: 89.312862 | K73: 24.06310413
A74: 22.3493309 | B74: 99.76064842 | C74: 23.90083326 | I74: 114.399971 | J74: 89.25401249 | K74: 23.03845512
A75: 22.40597153 | B75: 99.75719121 | C75: 23.9861454 | I75: 115.841011 | J75: 89.19781578 | K75: 22.22302569
A76: 22.45410919 | B76: 99.75368266 | C76: 24.07632711 | I76: 117.2829742 | J76: 89.14323643 | K76: 21.91998076
A77: 22.51567078 | B77: 99.75023401 | C77: 24.16724813 | D77: =A77 -> 22.51567078 | E77: =B77 -> 99.75023401 | F77: =C77 -> 24.16724813 | I77: 118.7113571 | J77: 89.09063385 | K77: 20.38511922
A78: 22.56348038 | B78: 99.74656287 | C78: 24.25552834 | I78: 120.1288528 | J78: 89.04090657 | K78: 19.81829661
A79: 22.59559059 | B79: 99.74305432 | C79: 24.33853422 | I79: 121.5730057 | J79: 88.99373797 | K79: 18.13072543
A80: 22.64167404 | B80: 99.73939174 | C80: 24.41444633 | I80: 122.9927216 | J80: 88.9511048 | K80: 16.41209076
A81: 22.70403862 | B81: 99.73588319 | C81: 24.48257836 | I81: 124.4116135 | J81: 88.91075647 | K81: 16.48175172
A82: 22.76382446 | B82: 99.73227195 | C82: 24.5437381 | I82: 125.8636322 | J82: 88.86921866 | K82: 16.84939294
A83: 22.81042099 | B83: 99.72860081 | C83: 24.6002531 | I83: 127.2563019 | J83: 88.82788623 | K83: 15.98738085
A84: 22.86243629 | B84: 99.72509226 | C84: 24.65542762 | I84: 128.7054749 | J84: 88.78967726 | K84: 15.08176496
A85: 22.91431808 | B85: 99.72147246 | C85: 24.71257535 | I85: 130.1315918 | J85: 88.75360766 | K85: 14.24675234
A86: 22.97953224 | B86: 99.71791256 | C86: 24.77412206 | I86: 131.5523224 | J86: 88.71925809 | K86: 13.76113406
A87: 23.03333664 | B87: 99.71429277 | C87: 24.84125124 | I87: 132.988205 | J87: 88.6852765 | K87: 13.4687775
A88: 23.09492302 | B88: 99.71068153 | C88: 24.91411833 | I88: 134.4304657 | J88: 88.65155163 | K88: 13.17509919
A89: 23.1467514 | B89: 99.70701894 | C89: 24.99219683 | I89: 135.8510895 | J89: 88.61933287 | K89: 12.72164892
A90: 23.19199181 | B90: 99.70340771 | C90: 25.07432568 | I90: 137.2923584 | J90: 88.58946741 | K90: 11.75552457
A91: 23.234972 | B91: 99.69968522 | C91: 25.15849262 | I91: 138.7216797 | J91: 88.56038067 | K91: 11.63268734
A92: 23.29662704 | B92: 99.69602263 | C92: 25.24180208 | I92: 140.1244049 | J92: 88.53127682 | K92: 11.47964118
A93: 23.36800003 | B93: 99.6922488 | C93: 25.32100554 | I93: 141.5667267 | J93: 88.50422675 | K93: 10.29928195
A94: 23.43016624 | B94: 99.68857766 | C94: 25.39351957 | D94: =A94 -> 23.43016624 | E94: =B94 -> 99.68857766 | F94: =C94 -> 25.39351957 | I94: 142.9852142 | J94: 88.47893952 | K94: 10.2176739
A95: 23.4905529 | B95: 99.68491508 | C95: 25.45843826 | I95: 144.4361115 | J95: 88.45349825 | K95: 10.30543733
A96: 23.54423523 | B96: 99.68119259 | C96: 25.51692454 | I96: 145.8904266 | J96: 88.42924647 | K96: 9.299522658
A97: 23.60270882 | B97: 99.67736742 | C97: 25.57158274 | I97: 147.2889404 | J97: 88.40620129 | K97: 8.488412113
A98: 23.66444588 | B98: 99.67364493 | C98: 25.6249807 | I98: 148.750824 | J98: 88.38674167 | K98: 7.44557306
A99: 23.72756577 | B99: 99.66992244 | C99: 25.67820242 | I99: 150.1753387 | J99: 88.36765858 | K99: 9.08671277
A100: 23.79096985 | B100: 99.66614861 | C100: 25.7305463 | I100: 151.6311188 | J100: 88.34496425 | K100: 8.676267291
A101: 23.85751343 | B101: 99.66238334 | C101: 25.78074618 | I101: 153.086853 | J101: 88.32555598 | K101: 7.135429462
A102: 23.91560364 | B102: 99.65866085 | C102: 25.8288316 | I102: 154.5173798 | J102: 88.30770516 | K102: 7.346116273
A103: 23.95953941 | B103: 99.65494693 | C103: 25.87712359 | I103: 155.9515991 | J103: 88.28897292 | K103: 7.544069426
A104: 24.00765419 | B104: 99.65107041 | C104: 25.92950631 | I104: 157.4091797 | J104: 88.27054875 | K104: 7.530851785
A105: 24.05503082 | B105: 99.64729657 | C105: 25.98946945 | I105: 158.8733063 | J105: 88.25227862 | K105: 6.468996147
A106: 24.10894585 | B106: 99.64342005 | C106: 26.05836671 | I106: 160.3130798 | J106: 88.23864662 | K106: 5.230927515
A107: 24.15884781 | B107: 99.63970613 | C107: 26.13515643 | I107: 161.7688751 | J107: 88.22552807 | K107: 5.879995333
A108: 24.21443558 | B108: 99.63582961 | C108: 26.21769129 | I108: 163.253418 | J108: 88.21163078 | K108: 5.409015158
A109: 24.28273582 | B109: 99.63211568 | C109: 26.30433004 | I109: 164.6691895 | J109: 88.19632152 | K109: 6.67917641
A110: 24.34901619 | B110: 99.6282905 | C110: 26.39440608 | I110: 166.1449127 | J110: 88.17960029 | K110: 5.703786821
A111: 24.40698242 | B111: 99.62441398 | C111: 26.48717916 | D111: =A111 -> 24.40698242 | E111: =B111 -> 99.62441398 | F111: =C111 -> 26.48717916 | I111: 167.5828857 | J111: 88.16755997 | K111: 4.549366663
A112: 24.46517563 | B112: 99.62048612 | C112: 26.58027098 | I112: 169.0745239 | J112: 88.15432161 | K112: 5.769974422
A113: 24.52002335 | B113: 99.61655825 | C113: 26.66896618 | I113: 170.5236969 | J113: 88.13905514 | K113: 6.2545112
A114: 24.58290863 | B114: 99.61268173 | C114: 26.74700689 | I114: 171.9633942 | J114: 88.12304417 | K114: 6.61088669
A115: 24.65890503 | B115: 99.60885656 | C115: 26.80848841 | I115: 173.4160004 | J115: 88.10782049 | K115: 5.265871469
A116: 24.71987724 | B116: 99.60477466 | C116: 26.84989631 | I116: 174.9017944 | J116: 88.09619948 | K116: 4.939248775
A117: 24.78573036 | B117: 99.60079545 | C117: 26.8713282 | I117: 176.3492889 | J117: 88.08320073 | K117: 5.402156288
A118: 24.85537338 | B118: 99.59691893 | C118: 26.87640358 | I118: 177.8130035 | J118: 88.07115186 | K118: 4.78930278
A119: 24.91713905 | B119: 99.59293972 | C119: 26.87107287 | I119: 179.2694855 | J119: 88.0587778 | K119: 5.052603572
A120: 24.98311806 | B120: 99.5890033 | C120: 26.86206438 | I120: 180.7396698 | J120: 88.04630961 | K120: 4.821913009
A121: 25.0453949 | B121: 99.58502409 | C121: 26.85570189 | I121: 182.2059631 | J121: 88.03402968 | K121: 5.290820567
A122: 25.10318565 | B122: 99.58119891 | C122: 26.85740437 | I122: 183.6542358 | J122: 88.02060306 | K122: 5.477351437
A123: 25.17261314 | B123: 99.57726249 | C123: 26.8717253 | I123: 185.1307068 | J123: 88.00738182 | K123: 4.92918879
A124: 25.2434063 | B124: 99.57343731 | C124: 26.90251085 | I124: 186.6048126 | J124: 87.99530727 | K124: 4.486629448
A125: 25.30295753 | B125: 99.56961214 | C125: 26.95272669 | I125: 188.0916595 | J125: 87.98353223 | K125: 4.940175312
A126: 25.37473869 | B126: 99.56562437 | C126: 27.02383809 | I126: 189.5413513 | J126: 87.97134644 | K126: 4.880224179
A127: 25.44311905 | B127: 99.56164516 | C127: 27.11521968 | I127: 191.0116425 | J127: 87.95926334 | K127: 4.565857724
A128: 25.49460411 | B128: 99.5577173 | C128: 27.2243458 | D128: =A128 -> 25.49460411 | E128: =B128 -> 99.5577173 | F128: =C128 -> 27.2243458 | I128: 192.4811554 | J128: 87.94737705 | K128: 5.038299281
A129: 25.55939484 | B129: 99.55372953 | C129: 27.34797952 | I129: 193.9358826 | J129: 87.93350544 | K129: 6.051505016
A130: 25.63308334 | B130: 99.54975032 | C130: 27.48361228 | I130: 195.3984375 | J130: 87.91786244 | K130: 5.987610535
A131: 25.70771217 | B131: 99.54571977 | C131: 27.63003614 | I131: 196.8842621 | J131: 87.9037769 | K131: 5.588609494
A132: 25.77774239 | B132: 99.54168066 | C132: 27.78666413 | I132: 198.3634186 | J132: 87.89030749 | K132: 5.264898434
A133: 25.83264542 | B133: 99.53753886 | C133: 27.95235265 | I133: 199.8472748 | J133: 87.87726595 | K133: 5.129773946
A134: 25.88669014 | B134: 99.5335083 | C134: 28.12485764 | I134: 201.3011169 | J134: 87.86514006 | K134: 5.144103353
A135: 25.9586525 | B135: 99.52946919 | C135: 28.30132221 | I135: 202.7716217 | J135: 87.85084058 | K135: 6.422105762
A136: 26.02157021 | B136: 99.52538729 | C136: 28.47914159 | I136: 204.2446442 | J136: 87.8352746 | K136: 5.910494293
A137: 26.08441162 | B137: 99.5211428 | C137: 28.65621797 | I137: 205.7368011 | J137: 87.82127462 | K137: 5.959574149
A138: 26.15823555 | B138: 99.51688975 | C138: 28.83025474 | I138: 207.2035522 | J138: 87.80517808 | K138: 6.724975913
A139: 26.22254372 | B139: 99.51270517 | C139: 28.99770041 | I139: 208.6760406 | J139: 87.78928692 | K139: 6.185372903
A140: 26.27812195 | B140: 99.50835799 | C140: 29.15339866 | I140: 210.1526947 | J140: 87.7744312 | K140: 5.474627928
A141: 26.3334465 | B141: 99.5041135 | C141: 29.29160066 | I141: 211.6338806 | J141: 87.76072218 | K141: 6.21954097
A142: 26.39764595 | B142: 99.49986901 | C142: 29.40806332 | I142: 213.1234894 | J142: 87.74419777 | K142: 7.230685078
A143: 26.47653389 | B143: 99.49541914 | C143: 29.50213014 | I143: 214.6077881 | J143: 87.72733961 | K143: 5.962266314
A144: 26.55305672 | B144: 99.4911233 | C144: 29.57754355 | I144: 216.0773468 | J144: 87.71278341 | K144: 6.311877444
A145: 26.61587524 | B145: 99.48683603 | C145: 29.64142603 | D145: =A145 -> 26.61587524 | E145: =B145 -> 99.48683603 | F145: =C145 -> 29.64142603 | I145: 217.5433044 | J145: 87.69613919 | K145: 6.961329924
A146: 26.68413544 | B146: 99.48242895 | C146: 29.7019448 | I146: 219.0375214 | J146: 87.67812578 | K146: 7.236678514
A147: 26.75621414 | B147: 99.47808177 | C147: 29.76587258 | I147: 220.5040588 | J147: 87.65959892 | K147: 7.470883924
A148: 26.83168602 | B148: 99.4736319 | C148: 29.83716555 | I148: 221.9855957 | J148: 87.64262096 | K148: 6.683663827
A149: 26.89868546 | B149: 99.46943875 | C149: 29.917054 | I149: 223.4567566 | J149: 87.626165 | K149: 6.778246223
A150: 26.96656609 | B150: 99.46514292 | C150: 30.0054088 | I150: 224.9629059 | J150: 87.60855379 | K150: 6.844298495
A151: 27.03987503 | B151: 99.46079574 | C151: 30.10249305 | I151: 226.424881 | J151: 87.59095114 | K151: 7.135137622
A152: 27.12016487 | B152: 99.45634587 | C152: 30.2098655 | I152: 227.9068756 | J152: 87.57352819 | K152: 7.035762997
A153: 27.18899918 | B153: 99.45199869 | C153: 30.32964643 | I153: 229.4158173 | J153: 87.55653312 | K153: 6.781068138
A154: 27.26319504 | B154: 99.44748892 | C154: 30.46261816 | I154: 230.8708954 | J154: 87.53879355 | K154: 7.283831567
A155: 27.3349781 | B155: 99.44293636 | C155: 30.60674281 | I155: 232.3498993 | J155: 87.51981315 | K155: 7.533766658
A156: 27.39902496 | B156: 99.43848649 | C156: 30.75748332 | I156: 233.8331146 | J156: 87.50196233 | K156: 6.978038416
A157: 27.45755577 | B157: 99.43403663 | C157: 30.90982864 | I157: 235.3153381 | J157: 87.48452227 | K157: 7.198390354
A158: 27.52073288 | B158: 99.42947551 | C158: 31.06047159 | I158: 236.7996826 | J158: 87.46739883 | K158: 6.714101229
A159: 27.58580589 | B159: 99.42502564 | C159: 31.20847715 | I159: 238.2872009 | J159: 87.44985608 | K159: 7.449970153
A160: 27.65683365 | B160: 99.42051587 | C160: 31.35404962 | I160: 239.7803192 | J160: 87.43136345 | K160: 7.68996568
A161: 27.72610855 | B161: 99.41580072 | C161: 31.49647755 | I161: 241.2579651 | J161: 87.41287083 | K161: 7.519500668
A162: 27.79034805 | B162: 99.41113692 | C162: 31.63278264 | D162: =A162 -> 27.79034805 | E162: =B162 -> 99.41113692 | F162: =C162 -> 31.63278264 | I162: 242.7281494 | J162: 87.39479751 | K162: 7.012821735
A163: 27.8551693 | B163: 99.4066357 | C163: 31.75786272 | I163: 244.2132874 | J163: 87.37837579 | K163: 6.56218391
A164: 27.9222374 | B164: 99.40186921 | C164: 31.86586459 | I164: 245.6881256 | J164: 87.36184281 | K164: 6.834173334
A165: 27.98523331 | B165: 99.39724819 | C165: 31.95200009 | I165: 247.1639252 | J165: 87.34395777 | K165: 7.28398872
A166: 28.05178833 | B166: 99.3924817 | C166: 32.01410695 | I166: 248.6550293 | J166: 87.32554216 | K166: 7.240720797
A167: 28.12160492 | B167: 99.38771521 | C167: 32.05353537 | I167: 250.1308594 | J167: 87.30867544 | K167: 6.737116188
A168: 28.18466568 | B168: 99.38305996 | C168: 32.07517507 | I168: 251.6360321 | J168: 87.29076472 | K168: 7.969965905
A169: 28.24884224 | B169: 99.37840471 | C169: 32.08667947 | I169: 253.1222534 | J169: 87.26994447 | K169: 8.532895527
A170: 28.32050705 | B170: 99.37363822 | C170: 32.09721249 | I170: 254.611557 | J170: 87.24972324 | K170: 7.902738903
A171: 28.40262985 | B171: 99.36893163 | C171: 32.11618881 | I171: 256.0933533 | J171: 87.2303492 | K171: 7.467295768
A172: 28.47776031 | B172: 99.36426782 | C172: 32.15236012 | I172: 257.6061096 | J172: 87.21179667 | K172: 7.896520349
A173: 28.55923462 | B173: 99.35966392 | C173: 32.21325652 | I173: 259.0927429 | J173: 87.19167813 | K173: 8.329903514
A174: 28.6404438 | B174: 99.35506002 | C174: 32.30466117 | I174: 260.5966492 | J174: 87.17102903 | K174: 7.818137783
A175: 28.71341896 | B175: 99.35039621 | C175: 32.42977316 | I175: 262.0532532 | J175: 87.15287014 | K175: 6.714615276
A176: 28.7775135 | B176: 99.34568106 | C176: 32.58810024 | I176: 263.5189819 | J176: 87.13691052 | K176: 7.374310146
A177: 28.84646416 | B177: 99.34086322 | C177: 32.77466632 | I177: 265.0257263 | J177: 87.11719418 | K177: 8.192351878
A178: 28.92181396 | B178: 99.33613952 | C178: 32.9803243 | I178: 266.5183411 | J178: 87.0971441 | K178: 7.97918882
A179: 29.00931358 | B179: 99.33142437 | C179: 33.19348501 | D179: =A179 -> 29.00931358 | E179: =B179 -> 99.33142437 | F179: =C179 -> 33.19348501 | I179: 268.0058899 | J179: 87.07616125 | K179: 8.57199761
A180: 29.08431435 | B180: 99.32644394 | C180: 33.40260961 | I180: 269.4730835 | J180: 87.05621386 | K180: 7.422760908
A181: 29.15121841 | B181: 99.32151485 | C181: 33.59816216 | I181: 270.9577637 | J181: 87.03783248 | K181: 7.350463168
A182: 29.22184372 | B182: 99.31654298 | C182: 33.77313526 | I182: 272.4497986 | J182: 87.01871516 | K182: 7.86087487
A183: 29.28918457 | B183: 99.31151121 | C183: 33.92254477 | I183: 273.9125671 | J183: 86.99760396 | K183: 8.692329456
A184: 29.34998512 | B184: 99.30653933 | C184: 34.04319618 | I184: 275.3917236 | J184: 86.97585095 | K184: 8.986970143
A185: 29.41794205 | B185: 99.30145622 | C185: 34.13450584 | I185: 276.8934021 | J185: 86.95390967 | K185: 9.010174123
A186: 29.50567818 | B186: 99.29653569 | C186: 34.19967577 | I186: 278.349823 | J186: 86.93288404 | K186: 8.176889149
A187: 29.58763504 | B187: 99.29145257 | C187: 34.24568813 | I187: 279.8414612 | J187: 86.91217504 | K187: 8.428247742
A188: 29.66156769 | B188: 99.28653204 | C188: 34.28138967 | I188: 281.3670044 | J188: 86.89061885 | K188: 8.594018545
A189: 29.73275375 | B189: 99.28144892 | C189: 34.31460146 | I189: 282.8451843 | J189: 86.86957611 | K189: 8.816120232
A190: 29.80415726 | B190: 99.2764257 | C190: 34.35007062 | I190: 284.3319092 | J190: 86.8467363 | K190: 9.113294961
A191: 29.8675499 | B191: 99.27145383 | C191: 34.38941575 | I191: 285.8217163 | J191: 86.82454686 | K191: 8.374527415
A192: 29.93743324 | B192: 99.26648196 | C192: 34.43274126 | I192: 287.3215332 | J192: 86.80307625 | K192: 8.897051647
A193: 30.01735115 | B193: 99.26156143 | C193: 34.48057831 | I193: 288.8308411 | J193: 86.78086113 | K193: 9.172018247
A194: 30.10227013 | B194: 99.25642697 | C194: 34.53486563 | I194: 290.3009338 | J194: 86.75749077 | K194: 9.686089833
A195: 30.18130684 | B195: 99.25134385 | C195: 34.59852383 | I195: 291.8019104 | J195: 86.73358984 | K195: 9.399722745
A196: 30.23957825 | B196: 99.24626929 | C196: 34.6741356 | D196: =A196 -> 30.23957825 | E196: =B196 -> 99.24626929 | F196: =C196 -> 34.6741356 | I196: 293.3102417 | J196: 86.7110581 | K196: 8.876969801
A197: 30.30663872 | B197: 99.24119473 | C197: 34.76276086 | I197: 294.7745056 | J197: 86.68881731 | K197: 9.09095736
A198: 30.38342285 | B198: 99.23616295 | C198: 34.86372191 | I198: 296.2703247 | J198: 86.6658577 | K198: 9.002863572
A199: 30.46260643 | B199: 99.23103705 | C199: 34.97542212 | I199: 297.758728 | J199: 86.64444699 | K199: 8.97321746
A200: 30.54282379 | B200: 99.22601383 | C200: 35.09646307 | I200: 299.2433472 | J200: 86.62179545 | K200: 9.203700435
... 13763 more rows

Sheet TGA (raw)
B1: T | C1: TGA | D1: DTG | F1: 0 | I1: Module | J1: STA
A2: 0.000244140625 | B2: =J24 -> 20.39637947 | C2: =N24 -> 100 | E2: =M24 -> 19.37695312 | I2: Channel | J2: STA-Measure
A3: 0.0029296875 | B3: =J25 -> 20.39637947 | C3: 99.9971846 | E3: 19.48242188 | I3: Data Name | J3: Barend_du_Plesis_Silica_I_10Cmin_N2_03
A4: 0.01611328125 | B4: 20.40291405 | C4: 99.99436065 | E4: 19.734375 | I4: Measurement Time | J4: 2016/09/27 11:47:40 AM
A5: 0.0537109375 | B5: 20.40981674 | C5: 99.99144256 | E5: 19.91601562 | I5: Sample Name | J5: Barend_du_Plesis_Silica_I_10Cmin_N2_03
A6: 0.1208496094 | B6: 20.4156723 | C6: 99.98846457 | E6: 20.12695312 | I6: Sample Weight | J6: 5.707 | K6: mg
A7: 0.193359375 | B7: 20.42325401 | C7: 99.98549514 | E7: 20.2265625 | I7: Reference Name | J7: empty
A8: 0.2255859375 | B8: 20.42621231 | C8: 99.9825685 | D8: =($A$2*(G2+G14)+$A$3*(G3+G13)+$A$4*(G4+G12)+$A$5*(G5+G11)+$A$6*(G6+G10)+$A$7*(G7+G9)+$A$8*G8) -> 12.60396134 | E8: 20.3671875 | F8: =$A$2*(E2+E14)+$A$3*(E3+E13)+$A$4*(E4+E12)+$A$5*(E5+E11)+$A$6*(E6+E10)+$A$7*(E7+E9)+$A$8*E8+$F$1 -> 20.39315128 | G8: =F8 -> 20.39315128 | I8: Reference Weight | J8: 170.8 | K8: mg
A9: 0.193359375 | B9: 20.42873955 | C9: 99.97959051 | D9: =($A$2*(G3+G15)+$A$3*(G4+G14)+$A$4*(G5+G13)+$A$5*(G6+G12)+$A$6*(G7+G11)+$A$7*(G8+G10)+$A$8*G9) -> 16.64538483 | E9: 20.578125 | F9: 20.5495162 | G9: =F9 -> 20.5495162 | I9: Temperature Program | K9: Cel | L9: Cel | M9: Cel/min | N9: min | O9: s | P9: Gas1 | Q9: Cel/min | R9: Store
A10: 0.1208496094 | B10: 20.43188286 | C10: 99.97650983 | D10: 19.24067633 | E10: 20.6953125 | F10: 20.70857477 | G10: 20.70857477 | J10: 1 | K10: 30 | L10: 1000 | M10: 10 | N10: 5 | O10: 0.5 | P10: On | Q10: 10 | R10: On
A11: 0.0537109375 | B11: 20.4329319 | C11: 99.9734805 | D11: 20.48879495 | E11: 20.8359375 | F11: 20.87239552 | G11: 20.87239552 | J11: 2 | K11: 1000 | L11: 1000 | M11: 10 | N11: 15 | O11: 0.5 | P11: On | Q11: 10 | R11: On
A12: 0.01611328125 | B12: 20.42584229 | C12: 99.97045972 | D12: 20.98208818 | E12: 21.05859375 | F12: 21.04122734 | G12: 21.04122734 | J12: Temperature Program Mode | K12: Ramp
A13: 0.0029296875 | B13: 20.4275074 | C13: 99.96743894 | D13: 21.21281134 | E13: 21.19921875 | F13: 21.21316338 | G13: 21.21316338 | J13: Cooling unit | K13: none
A14: 0.000244140625 | B14: 20.42904854 | C14: 99.96430692 | D14: 21.39355669 | E14: 21.41015625 | F14: 21.38652992 | G14: 21.38652992 | I14: Operator Name | J14: Gerard Puts
B15: 20.43286896 | C15: 99.96121768 | D15: 21.57475141 | E15: 21.55078125 | F15: 21.56333113 | G15: 21.56333113 | I15: Organization Name
B16: 20.43385506 | C16: 99.95803432 | D16: 21.76230607 | E16: 21.69726562 | F16: 21.74875975 | G16: 21.74875975 | I16: Comment | J16: Operator: Gerard Puts
B17: 20.43872452 | C17: 99.9547397 | D17: 21.95591391 | E17: 21.91992188 | F17: 21.94617891 | G17: 21.94617891 | J17: Nitrogen: 200
B18: 20.44858551 | C18: 99.95160768 | D18: 22.15299851 | E18: 22.17773438 | F18: 22.15296364 | G18: 22.15296364 | J18: Oxygen: 200
B19: 20.45326996 | C19: 99.94832162 | D19: 22.34872024 | E19: 22.359375 | F19: 22.36100292 | G19: 22.36100292 | J19: Pan: Alumina
B20: 20.45783043 | C20: 99.94503557 | D20: 22.53712377 | E20: 22.56445312 | F20: 22.56000137 | G20: 22.56000137
B21: 20.47311211 | C21: 99.9417923 | D21: 22.71277022 | E21: 22.8515625 | F21: 22.74120855 | G21: 22.74120855
B22: 20.49874687 | C22: 99.93844634 | D22: 22.87186002 | E22: 22.88671875 | F22: 22.90087509 | G22: 22.90087509 | I22: Time | J22: Temp. | K22: uV | L22: ug | M22: ug/min | Q22: ug/min
B23: 20.5149498 | C23: 99.93504903 | D23: 23.01223123 | E23: 23.06835938 | F23: 23.04072475 | G23: 23.04072475 | I23: min | J23: Cel | K23: DTA | L23: TG | M23: DTG | Q23: DTG
B24: 20.51341057 | C24: 99.93165173 | D24: 23.13248454 | E24: 23.1796875 | F24: 23.16336823 | G24: 23.16336823 | I24: 0 | J24: 20.39637947 | K24: 0.009301662445 | L24: 5705.927002 | M24: 19.37695312 | N24: =L24/L$24*100 -> 100 | O24: 0.000244140625 | Q24: 19.37695312
B25: 20.52899742 | C25: 99.92826298 | D25: 23.23118348 | E25: 23.29101562 | F25: 23.26702738 | G25: 23.26702738 | I25: 0.008333333333 | J25: 20.39637947 | K25: 0.009615421295 | L25: 5705.766357 | M25: 19.48242188 | N25: =L25/L$24*100 -> 99.9971846 | O25: 0.0029296875 | Q25: 19.48242188
B26: 20.54932594 | C26: 99.9246603 | D26: 23.30697297 | E26: 23.43164062 | F26: 23.34596729 | G26: 23.34596729 | I26: 0.01666666667 | J26: 20.40291405 | K26: 0.009313583374 | L26: 5705.605225 | M26: 19.734375 | N26: 99.99436065 | O26: 0.01611328125 | Q26: 19.734375
B27: 20.56645012 | C27: 99.92131434 | D27: 23.35960414 | E27: 23.4375 | F27: 23.39607239 | G27: 23.39607239 | I27: 0.025 | J27: 20.40981674 | K27: 0.009583473206 | L27: 5705.438721 | M27: 19.91601562 | N27: 99.99144256 | O27: 0.0537109375 | Q27: 19.91601562
B28: 20.5852375 | C28: 99.91791704 | D28: 23.39103343 | E28: 23.4375 | F28: 23.41903067 | G28: 23.41903067 | I28: 0.03333333333 | J28: 20.4156723 | K28: 0.0102596283 | L28: 5705.268799 | M28: 20.12695312 | N28: 99.98846457 | O28: 0.1208496094 | Q28: 20.12695312
B29: 20.60716248 | C29: 99.91446839 | D29: 23.40569197 | E29: 23.4375 | F29: 23.42175436 | G29: 23.42175436 | I29: 0.04166666667 | J29: 20.42325401 | K29: 0.01109576225 | L29: 5705.099365 | M29: 20.2265625 | N29: 99.98549514 | O29: 0.193359375 | Q29: 20.2265625
B30: 20.6353054 | C30: 99.91101974 | D30: 23.40965058 | E30: 23.44921875 | F30: 23.4137764 | G30: 23.4137764 | I30: 0.05 | J30: 20.42621231 | K30: 0.01198124886 | L30: 5704.932373 | M30: 20.3671875 | N30: 99.9825685 | O30: 0.2255859375 | Q30: 20.3671875 | R30: =$O$24*(Q24+Q36)+$O$25*(Q25+Q35)+$O$26*(Q26+Q34)+$O$27*(Q27+Q33)+$O$28*(Q28+Q32)+$O$29*(Q29+Q31)+$O$30*Q30+$Q$1 -> 20.39315128
B31: 20.65888786 | C31: 99.9075711 | D31: 23.40915554 | E31: 23.34375 | F31: 23.40475273 | G31: 23.40475273 | I31: 0.05833333333 | J31: 20.42873955 | K31: 0.01269483566 | L31: 5704.762451 | M31: 20.578125 | N31: 99.97959051 | O31: 0.193359375 | Q31: 20.578125 | R31: =$O$24*(Q25+Q37)+$O$25*(Q26+Q36)+$O$26*(Q27+Q35)+$O$27*(Q28+Q34)+$O$28*(Q29+Q33)+$O$29*(Q30+Q32)+$O$30*Q31+$Q$1 -> 20.5495162
B32: 20.67600441 | C32: 99.90421658 | D32: 23.40936552 | E32: 23.38476562 | F32: 23.40110922 | G32: 23.40110922 | I32: 0.06666666667 | J32: 20.43188286 | K32: 0.01333880424 | L32: 5704.58667 | M32: 20.6953125 | N32: 99.97650983 | O32: 0.1208496094 | Q32: 20.6953125 | R32: 20.70857477
B33: 20.69447327 | C33: 99.90081928 | D33: 23.4138775 | E33: 23.41992188 | F33: 23.40396166 | G33: 23.40396166 | I33: 0.075 | J33: 20.4329319 | K33: 0.01440024376 | L33: 5704.413818 | M33: 20.8359375 | N33: 99.9734805 | O33: 0.0537109375 | Q33: 20.8359375 | R33: 20.87239552
B34: 20.72395897 | C34: 99.89742197 | D34: 23.42492779 | E34: 23.42578125 | F34: 23.41245174 | G34: 23.41245174 | I34: 0.08333333333 | J34: 20.42584229 | K34: 0.01635360718 | L34: 5704.241455 | M34: 21.05859375 | N34: 99.97045972 | O34: 0.01611328125 | Q34: 21.05859375 | R34: 21.04122734
B35: 20.75934982 | C35: 99.89401611 | D35: 23.44356569 | E35: 23.390625 | F35: 23.4289856 | G35: 23.4289856 | I35: 0.09166666667 | J35: 20.4275074 | K35: 0.01774930954 | L35: 5704.069092 | M35: 21.19921875 | N35: 99.96743894 | O35: 0.0029296875 | Q35: 21.19921875 | R35: 21.21316338
B36: 20.79171944 | C36: 99.89056746 | D36: 23.46927779 | E36: 23.39648438 | F36: 23.45784473 | G36: 23.45784473 | I36: 0.1 | J36: 20.42904854 | K36: 0.01951670647 | L36: 5703.890381 | M36: 21.41015625 | N36: 99.96430692 | O36: 0.000244140625 | Q36: 21.41015625 | R36: 21.38652992
B37: 20.81996155 | C37: 99.8871616 | D37: 23.49940115 | E37: 23.49609375 | F37: 23.49798346 | G37: 23.49798346 | I37: 0.1083333333 | J37: 20.43286896 | K37: 0.02095484734 | L37: 5703.714111 | M37: 21.55078125 | N37: 99.96121768 | Q37: 21.55078125 | R37: 21.56333113
B38: 20.84094048 | C38: 99.88371295 | D38: 23.52923044 | E38: 23.6015625 | F38: 23.54031372 | G38: 23.54031372 | I38: 0.1166666667 | J38: 20.43385506 | K38: 0.02252936363 | L38: 5703.532471 | M38: 21.69726562 | N38: 99.95803432 | Q38: 21.69726562 | R38: 21.74875975
B39: 20.864748 | C39: 99.88025575 | D39: 23.55326085 | E39: 23.57226562 | F39: 23.57336712 | G39: 23.57336712 | I39: 0.125 | J39: 20.43872452 | K39: 0.02387070656 | L39: 5703.344482 | M39: 21.91992188 | N39: 99.9547397 | Q39: 21.91992188 | R39: 21.94617891
B40: 20.88621521 | C40: 99.87685845 | D40: 23.56697606 | E40: 23.63671875 | F40: 23.58998394 | G40: 23.58998394 | I40: 0.1333333333 | J40: 20.44858551 | K40: 0.02483868599 | L40: 5703.165771 | M40: 22.17773438 | N40: 99.95160768 | Q40: 22.17773438 | R40: 22.15296364
B41: 20.90823555 | C41: 99.87340124 | D41: 23.56807092 | E41: 23.60742188 | F41: 23.5888896 | G41: 23.5888896 | I41: 0.1416666667 | J41: 20.45326996 | K41: 0.02644634247 | L41: 5702.978271 | M41: 22.359375 | N41: 99.94832162 | Q41: 22.359375 | R41: 22.36100292
B42: 20.94408798 | C42: 99.86990125 | D42: 23.55642241 | E42: 23.6015625 | F42: 23.57294655 | G42: 23.57294655 | I42: 0.15 | J42: 20.45783043 | K42: 0.0281522274 | L42: 5702.790771 | M42: 22.56445312 | N42: 99.94503557 | Q42: 22.56445312 | R42: 22.56000137
B43: 20.98817253 | C43: 99.86634991 | D43: 23.53300969 | E43: 23.53125 | F43: 23.54683256 | G43: 23.54683256 | I43: 0.1583333333 | J43: 20.47311211 | K43: 0.02917361259 | L43: 5702.605713 | M43: 22.8515625 | N43: 99.9417923 | Q43: 22.8515625 | R43: 22.74120855
B44: 21.03009796 | C44: 99.86299539 | D44: 23.49865759 | E44: 23.53125 | F44: 23.51367044 | G44: 23.51367044 | I44: 0.1666666667 | J44: 20.49874687 | K44: 0.02990078926 | L44: 5702.414795 | M44: 22.88671875 | N44: 99.93844634 | Q44: 22.88671875 | R44: 22.90087509
B45: 21.05874062 | C45: 99.8594954 | D45: 23.4535597 | E45: 23.4609375 | F45: 23.47180223 | G45: 23.47180223 | I45: 0.175 | J45: 20.5149498 | K45: 0.03187680244 | L45: 5702.220947 | M45: 23.06835938 | N45: 99.93504903 | Q45: 23.06835938 | R45: 23.04072475
B46: 21.08363152 | C46: 99.85608954 | D46: 23.39796054 | E46: 23.49609375 | F46: 23.41619253 | G46: 23.41619253 | I46: 0.1833333333 | J46: 20.51341057 | K46: 0.03536319733 | L46: 5702.0271 | M46: 23.1796875 | N46: 99.93165173 | Q46: 23.1796875 | R46: 23.16336823
B47: 21.12111473 | C47: 99.85269224 | D47: 23.33346194 | E47: 23.390625 | F47: 23.34490585 | G47: 23.34490585 | I47: 0.1916666667 | J47: 20.52899742 | K47: 0.03790140152 | L47: 5701.83374 | M47: 23.29101562 | N47: 99.92826298 | Q47: 23.29101562 | R47: 23.26702738
B48: 21.1612339 | C48: 99.84934628 | D48: 23.26387402 | E48: 23.18554688 | F48: 23.26352549 | G48: 23.26352549 | I48: 0.2 | J48: 20.54932594 | K48: 0.04015946388 | L48: 5701.628174 | M48: 23.43164062 | N48: 99.9246603 | Q48: 23.43164062 | R48: 23.34596729
B49: 21.19790649 | C49: 99.84588907 | D49: 23.19487147 | E49: 23.21484375 | F49: 23.18240547 | G49: 23.18240547 | I49: 0.2083333333 | J49: 20.56645012 | K49: 0.04261851311 | L49: 5701.437256 | M49: 23.4375 | N49: 99.92131434 | Q49: 23.4375 | R49: 23.39607239
B50: 21.2426796 | C50: 99.84259446 | D50: 23.13263813 | E50: 23.08007812 | F50: 23.11120176 | G50: 23.11120176 | I50: 0.2166666667 | J50: 20.5852375 | K50: 0.04523849487 | L50: 5701.243408 | M50: 23.4375 | N50: 99.91791704 | Q50: 23.4375 | R50: 23.41903067
B51: 21.28891754 | C51: 99.83908591 | D51: 23.08235353 | E51: 23.00390625 | F51: 23.0563488 | G51: 23.0563488 | I51: 0.225 | J51: 20.60716248 | K51: 0.04808545113 | L51: 5701.046631 | M51: 23.4375 | N51: 99.91446839 | Q51: 23.4375 | R51: 23.42175436
B52: 21.32642746 | C52: 99.83573995 | D52: 23.04732688 | E52: 22.98046875 | F52: 23.02066326 | G52: 23.02066326 | I52: 0.2333333333 | J52: 20.6353054 | K52: 0.05115890503 | L52: 5700.849854 | M52: 23.44921875 | N52: 99.91101974 | Q52: 23.44921875 | R52: 23.4137764
B53: 21.35085869 | C53: 99.83248812 | D53: 23.02904195 | E53: 23.02148438 | F53: 23.0035429 | G53: 23.0035429 | I53: 0.2416666667 | J53: 20.65888786 | K53: 0.05506157875 | L53: 5700.653076 | M53: 23.34375 | N53: 99.9075711 | Q53: 23.34375 | R53: 23.40475273
B54: 21.39050674 | C54: 99.82909082 | D54: 23.02781096 | E54: 22.9453125 | F54: 23.00296926 | G54: 23.00296926 | I54: 0.25 | J54: 20.67600441 | K54: 0.05967569351 | L54: 5700.46167 | M54: 23.38476562 | N54: 99.90421658 | Q54: 23.38476562 | R54: 23.40110922
B55: 21.44027328 | C55: 99.82578765 | D55: 23.04345284 | E55: 23.015625 | F55: 23.01827431 | G55: 23.01827431 | I55: 0.2583333333 | J55: 20.69447327 | K55: 0.06408166885 | L55: 5700.267822 | M55: 23.41992188 | N55: 99.90081928 | Q55: 23.41992188 | R55: 23.40396166
B56: 21.48732758 | C56: 99.82249303 | D56: 23.07551283 | E56: 23.015625 | F56: 23.05056238 | G56: 23.05056238 | I56: 0.2666666667 | J56: 20.72395897 | K56: 0.06822156906 | L56: 5700.073975 | M56: 23.42578125 | N56: 99.89742197 | Q56: 23.42578125 | R56: 23.41245174
B57: 21.53492546 | C57: 99.81912996 | D57: 23.12293264 | E57: 23.05664062 | F57: 23.10064173 | G57: 23.10064173 | I57: 0.275 | J57: 20.75934982 | K57: 0.07231426239 | L57: 5699.879639 | M57: 23.390625 | N57: 99.89401611 | Q57: 23.390625 | R57: 23.4289856
B58: 21.5780983 | C58: 99.8157241 | D58: 23.18347605 | E58: 23.16210938 | F58: 23.16705322 | G58: 23.16705322 | I58: 0.2833333333 | J58: 20.79171944 | K58: 0.07696723938 | L58: 5699.682861 | M58: 23.39648438 | N58: 99.89056746 | Q58: 23.39648438 | R58: 23.45784473
B59: 21.62671852 | C59: 99.81237814 | D59: 23.25334869 | E59: 23.23828125 | F59: 23.24571848 | G59: 23.24571848 | I59: 0.2916666667 | J59: 20.81996155 | K59: 0.08250331879 | L59: 5699.488525 | M59: 23.49609375 | N59: 99.8871616 | Q59: 23.49609375 | R59: 23.49798346
B60: 21.67759705 | C60: 99.80898084 | D60: 23.32732215 | E60: 23.30859375 | F60: 23.33040762 | G60: 23.33040762 | I60: 0.3 | J60: 20.84094048 | K60: 0.08884215355 | L60: 5699.291748 | M60: 23.6015625 | N60: 99.88371295 | Q60: 23.6015625 | R60: 23.54031372
B61: 21.73311996 | C61: 99.80547229 | D61: 23.39945206 | E61: 23.44921875 | F61: 23.4131155 | G61: 23.4131155 | I61: 0.3083333333 | J61: 20.864748 | K61: 0.09529876709 | L61: 5699.094482 | M61: 23.57226562 | N61: 99.88025575 | Q61: 23.57226562 | R61: 23.57336712
B62: 21.77760124 | C62: 99.80206642 | D62: 23.4642508 | E62: 23.51367188 | F62: 23.48530626 | G62: 23.48530626 | I62: 0.3166666667 | J62: 20.88621521 | K62: 0.1021840572 | L62: 5698.900635 | M62: 23.63671875 | N62: 99.87685845 | Q62: 23.63671875 | R62: 23.58998394
B63: 21.82636261 | C63: 99.79866056 | D63: 23.51793002 | E63: 23.58398438 | F63: 23.54080868 | G63: 23.54080868 | I63: 0.325 | J63: 20.90823555 | K63: 0.1090683937 | L63: 5698.703369 | M63: 23.60742188 | N63: 99.87340124 | Q63: 23.60742188 | R63: 23.5888896
B64: 21.86868286 | C64: 99.79515201 | D64: 23.55917666 | E64: 23.58984375 | F64: 23.57847548 | G64: 23.57847548 | I64: 0.3333333333 | J64: 20.94408798 | K64: 0.1150066853 | L64: 5698.503662 | M64: 23.6015625 | N64: 99.86990125 | Q64: 23.6015625 | R64: 23.57294655
B65: 21.90891457 | C65: 99.79174615 | D65: 23.58908638 | E65: 23.63085938 | F65: 23.60209322 | G65: 23.60209322 | I65: 0.3416666667 | J65: 20.98817253 | K65: 0.1212179661 | L65: 5698.301025 | M65: 23.53125 | N65: 99.86634991 | Q65: 23.53125 | R65: 23.54683256
B66: 21.9562397 | C66: =N88 -> 99.78824616 | D66: 23.61036776 | E66: =M88 -> 23.59570312 | F66: 23.61747122 | G66: 23.61747122 | I66: 0.35 | J66: 21.03009796 | K66: 0.1277934313 | L66: 5698.109619 | M66: 23.53125 | N66: 99.86299539 | Q66: 23.53125 | R66: 23.51367044
B67: =J89 -> 21.99186325 | C67: 99.78478895 | D67: 23.62640221 | E67: 23.63085938 | F67: 23.62906551 | G67: 23.62906551 | I67: 0.3583333333 | J67: 21.05874062 | K67: 0.1355012655 | L67: 5697.909912 | M67: 23.4609375 | N67: 99.8594954 | Q67: 23.4609375 | R67: 23.47180223
B68: 22.04363823 | C68: 99.7812804 | D68: 23.64076591 | E68: 23.66601562 | F68: 23.63895464 | G68: 23.63895464 | I68: 0.3666666667 | J68: 21.08363152 | K68: 0.143625021 | L68: 5697.715576 | M68: 23.49609375 | N68: 99.85608954 | Q68: 23.49609375 | R68: 23.41619253
B69: 22.10714722 | C69: 99.77792589 | D69: 23.65731834 | E69: 23.625 | F69: 23.64888382 | G69: 23.64888382 | I69: 0.375 | J69: 21.12111473 | K69: 0.150857687 | L69: 5697.521729 | M69: 23.390625 | N69: 99.85269224 | Q69: 23.390625 | R69: 23.34490585
B70: 22.15718269 | C70: 99.77446868 | D70: 23.68035755 | E70: 23.66015625 | F70: 23.66310024 | G70: 23.66310024 | I70: 0.3833333333 | J70: 21.1612339 | K70: 0.1583870649 | L70: 5697.330811 | M70: 23.18554688 | N70: 99.84934628 | Q70: 23.18554688 | R70: 23.26352549
B71: 22.18531418 | C71: 99.77101148 | D71: 23.71420153 | E71: 23.66601562 | F71: 23.68900537 | G71: 23.68900537 | I71: 0.3916666667 | J71: 21.19790649 | K71: 0.1668418646 | L71: 5697.133545 | M71: 23.21484375 | N71: 99.84588907 | Q71: 23.21484375 | R71: 23.18240547
B72: 22.22976875 | C72: 99.76755427 | D72: 23.7620688 | E72: 23.66015625 | F72: =$A$2*(E66+E78)+$A$3*(E67+E77)+$A$4*(E68+E76)+$A$5*(E69+E75)+$A$6*(E70+E74)+$A$7*(E71+E73)+$A$8*E72+$F$1 -> 23.73425961 | G72: 23.73425961 | I72: 0.4 | J72: 21.2426796 | K72: 0.1744817495 | L72: 5696.945557 | M72: 23.08007812 | N72: 99.84259446 | Q72: 23.08007812 | R72: 23.11120176
B73: 22.28992462 | C73: 99.76409707 | D73: =($A$2*(G67+G79)+$A$3*(G68+G78)+$A$4*(G69+G77)+$A$5*(G70+G76)+$A$6*(G71+G75)+$A$7*(G72+G74)+$A$8*G73) -> 23.82487695 | E73: 23.77148438 | F73: 23.8017025 | G73: =F73 -> 23.8017025 | I73: 0.4083333333 | J73: 21.28891754 | K73: 0.1822975874 | L73: 5696.745361 | M73: 23.00390625 | N73: 99.83908591 | Q73: 23.00390625 | R73: 23.0563488
B74: 22.3493309 | C74: 99.76064842 | D74: 23.90083326 | E74: 23.87695312 | F74: 23.88669491 | G74: 23.88669491 | I74: 0.4166666667 | J74: 21.32642746 | K74: 0.1911689043 | L74: 5696.554443 | M74: 22.98046875 | N74: 99.83573995 | Q74: 22.98046875 | R74: 23.02066326
B75: 22.40597153 | C75: 99.75719121 | D75: 23.9861454 | E75: 24.01757812 | F75: 23.98054504 | G75: 23.98054504 | I75: 0.425 | J75: 21.35085869 | K75: 0.2011681795 | L75: 5696.368896 | M75: 23.02148438 | N75: 99.83248812 | Q75: 23.02148438 | R75: 23.0035429
B76: 22.45410919 | C76: 99.75368266 | D76: 24.07632711 | E76: 24.05273438 | F76: 24.0765481 | G76: 24.0765481 | I76: 0.4333333333 | J76: 21.39050674 | K76: 0.2101095915 | L76: 5696.175049 | M76: 22.9453125 | N76: 99.82909082 | Q76: 22.9453125 | R76: 23.00296926
B77: 22.51567078 | C77: 99.75023401 | D77: 24.16724813 | E77: 24.15820312 | F77: 24.17173576 | G77: 24.17173576 | I77: 0.4416666667 | J77: 21.44027328 | K77: 0.2182824612 | L77: 5695.986572 | M77: 23.015625 | N77: 99.82578765 | Q77: 23.015625 | R77: 23.01827431
B78: 22.56348038 | C78: 99.74656287 | D78: 24.25552834 | E78: 24.3046875 | F78: 24.2640667 | G78: 24.2640667 | I78: 0.45 | J78: 21.48732758 | K78: 0.2268968821 | L78: 5695.798584 | M78: 23.015625 | N78: 99.82249303 | Q78: 23.015625 | R78: 23.05056238
B79: 22.59559059 | C79: 99.74305432 | D79: 24.33853422 | E79: 24.34570312 | F79: 24.35058832 | G79: 24.35058832 | I79: 0.4583333333 | J79: 21.53492546 | K79: 0.2359451056 | L79: 5695.606689 | M79: 23.05664062 | N79: 99.81912996 | Q79: 23.05664062 | R79: 23.10064173
B80: 22.64167404 | C80: 99.73939174 | D80: 24.41444633 | E80: 24.45703125 | F80: 24.42839384 | G80: 24.42839384 | I80: 0.4666666667 | J80: 21.5780983 | K80: 0.2457385063 | L80: 5695.412354 | M80: 23.16210938 | N80: 99.8157241 | Q80: 23.16210938 | R80: 23.16705322
B81: 22.70403862 | C81: 99.73588319 | D81: 24.48257836 | E81: 24.4921875 | F81: 24.4957509 | G81: 24.4957509 | I81: 0.475 | J81: 21.62671852 | K81: 0.2547295094 | L81: 5695.221436 | M81: 23.23828125 | N81: 99.81237814 | Q81: 23.23828125 | R81: 23.24571848
B82: 22.76382446 | C82: 99.73227195 | D82: 24.5437381 | E82: 24.609375 | F82: 24.55272675 | G82: 24.55272675 | I82: 0.4833333333 | J82: 21.67759705 | K82: 0.2636611462 | L82: 5695.027588 | M82: 23.30859375 | N82: 99.80898084 | Q82: 23.30859375 | R82: 23.33040762
B83: 22.81042099 | C83: 99.72860081 | D83: 24.6002531 | E83: 24.56835938 | F83: 24.60228968 | G83: 24.60228968 | I83: 0.4916666667 | J83: 21.73311996 | K83: 0.2722754478 | L83: 5694.827393 | M83: 23.44921875 | N83: 99.80547229 | Q83: 23.44921875 | R83: 23.4131155
B84: 22.86243629 | C84: 99.72509226 | D84: 24.65542762 | E84: 24.67382812 | F84: 24.65041065 | G84: 24.65041065 | I84: 0.5 | J84: 21.77760124 | K84: 0.2817922831 | L84: 5694.633057 | M84: 23.51367188 | N84: 99.80206642 | Q84: 23.51367188 | R84: 23.48530626
B85: 22.91431808 | C85: 99.72147246 | D85: 24.71257535 | E85: 24.63867188 | F85: 24.70336962 | G85: 24.70336962 | I85: 0.5083333333 | J85: 21.82636261 | K85: 0.2910200357 | L85: 5694.438721 | M85: 23.58398438 | N85: 99.79866056 | Q85: 23.58398438 | R85: 23.54080868
B86: 22.97953224 | C86: 99.71791256 | D86: 24.77412206 | E86: 24.78515625 | F86: 24.76428509 | G86: 24.76428509 | I86: 0.5166666667 | J86: 21.86868286 | K86: 0.300819993 | L86: 5694.238525 | M86: 23.58984375 | N86: 99.79515201 | Q86: 23.58984375 | R86: 23.57847548
B87: 23.03333664 | C87: 99.71429277 | D87: 24.84125124 | E87: 24.8203125 | F87: 24.83249474 | G87: 24.83249474 | I87: 0.525 | J87: 21.90891457 | K87: 0.3111040592 | L87: 5694.044189 | M87: 23.63085938 | N87: 99.79174615 | Q87: 23.63085938 | R87: 23.60209322
B88: 23.09492302 | C88: 99.71068153 | D88: 24.91411833 | E88: 24.890625 | F88: 24.90612173 | G88: 24.90612173 | I88: 0.5333333333 | J88: 21.9562397 | K88: 0.3207085133 | L88: 5693.844482 | M88: 23.59570312 | N88: 99.78824616 | Q88: 23.59570312 | R88: 23.61747122
B89: 23.1467514 | C89: 99.70701894 | D89: 24.99219683 | E89: 25.00195312 | F89: 24.98472691 | G89: 24.98472691 | I89: 0.5416666667 | J89: 21.99186325 | K89: 0.3314772844 | L89: 5693.647217 | M89: 23.63085938 | N89: =L89/L$24*100 -> 99.78478895 | Q89: 23.63085938 | R89: 23.62906551
B90: 23.19199181 | C90: 99.70340771 | D90: 25.07432568 | E90: 25.03125 | F90: 25.0691371 | G90: 25.0691371 | I90: 0.55 | J90: 22.04363823 | K90: 0.3406164646 | L90: 5693.447021 | M90: 23.66601562 | N90: 99.7812804 | Q90: 23.66601562 | R90: 23.63895464
B91: 23.234972 | C91: 99.69968522 | D91: 25.15849262 | E91: 25.14257812 | F91: 25.15862274 | G91: 25.15862274 | I91: 0.5583333333 | J91: 22.10714722 | K91: 0.3491677046 | L91: 5693.255615 | M91: 23.625 | N91: 99.77792589 | Q91: 23.625 | R91: 23.64888382
B92: 23.29662704 | C92: 99.69602263 | D92: 25.24180208 | E92: 25.28320312 | F92: 25.2489109 | G92: 25.2489109 | I92: 0.5666666667 | J92: 22.15718269 | K92: 0.3588891029 | L92: 5693.05835 | M92: 23.66015625 | N92: 99.77446868 | Q92: 23.66015625 | R92: 23.66310024
B93: 23.36800003 | C93: 99.6922488 | D93: 25.32100554 | E93: 25.359375 | F93: 25.33385468 | G93: 25.33385468 | I93: 0.575 | J93: 22.18531418 | K93: 0.3702982664 | L93: 5692.861084 | M93: 23.66601562 | N93: 99.77101148 | Q93: 23.66601562 | R93: 23.68900537
B94: 23.43016624 | C94: 99.68857766 | D94: 25.39351957 | E94: 25.40039062 | F94: 25.4086647 | G94: 25.4086647 | I94: 0.5833333333 | J94: 22.22976875 | K94: 0.3806036711 | L94: 5692.663818 | M94: 23.66015625 | N94: 99.76755427 | Q94: 23.66015625 | R94: 23.73425961
B95: 23.4905529 | C95: 99.68491508 | D95: 25.45843826 | E95: 25.51171875 | F95: 25.47130823 | G95: 25.47130823 | I95: 0.5916666667 | J95: 22.28992462 | K95: 0.389570713 | L95: 5692.466553 | M95: 23.77148438 | N95: 99.76409707 | Q95: 23.77148438 | R95: =$O$24*(Q89+Q101)+$O$25*(Q90+Q100)+$O$26*(Q91+Q99)+$O$27*(Q92+Q98)+$O$28*(Q93+Q97)+$O$29*(Q94+Q96)+$O$30*Q95+$Q$1 -> 23.8017025
B96: 23.54423523 | C96: 99.68119259 | D96: 25.51692454 | E96: 25.54101562 | F96: 25.52313566 | G96: 25.52313566 | I96: 0.6 | J96: 22.3493309 | K96: 0.3984498978 | L96: 5692.269775 | M96: 23.87695312 | N96: 99.76064842 | Q96: 23.87695312 | R96: 23.88669491
B97: 23.60270882 | C97: 99.67736742 | D97: 25.57158274 | E97: 25.58203125 | F97: 25.57003355 | G97: 25.57003355 | I97: 0.6083333333 | J97: 22.40597153 | K97: 0.4072172642 | L97: 5692.07251 | M97: 24.01757812 | N97: 99.75719121 | Q97: 24.01757812 | R97: 23.98054504
B98: 23.66444588 | C98: 99.67364493 | D98: 25.6249807 | E98: 25.54101562 | F98: 25.62029171 | G98: 25.62029171 | I98: 0.6166666667 | J98: 22.45410919 | K98: 0.4168138504 | L98: 5691.872314 | M98: 24.05273438 | N98: 99.75368266 | Q98: 24.05273438 | R98: 24.0765481
B99: 23.72756577 | C99: 99.66992244 | D99: 25.67820242 | E99: 25.68164062 | F99: 25.67762089 | G99: 25.67762089 | I99: 0.625 | J99: 22.51567078 | K99: 0.42545259 | L99: 5691.675537 | M99: 24.15820312 | N99: 99.75023401 | Q99: 24.15820312 | R99: 24.17173576
B100: 23.79096985 | C100: 99.66614861 | D100: 25.7305463 | E100: 25.7578125 | F100: 25.73692989 | G100: 25.73692989 | I100: 0.6333333333 | J100: 22.56348038 | K100: 0.435254097 | L100: 5691.466064 | M100: 24.3046875 | N100: 99.74656287 | Q100: 24.3046875 | R100: 24.2640667
B101: 23.85751343 | C101: 99.66238334 | D101: 25.78074618 | E101: 25.86328125 | F101: 25.78954268 | G101: 25.78954268 | I101: 0.6416666667 | J101: 22.59559059 | K101: 0.4460501671 | L101: 5691.265869 | M101: 24.34570312 | N101: 99.74305432 | Q101: 24.34570312 | R101: 24.35058832
B102: 23.91560364 | C102: 99.65866085 | D102: 25.8288316 | E102: 25.78710938 | F102: 25.83222628 | G102: 25.83222628 | I102: 0.65 | J102: 22.64167404 | K102: 0.4559172392 | L102: 5691.056885 | M102: 24.45703125 | N102: 99.73939174 | Q102: 24.45703125 | R102: 24.42839384
B103: 23.95953941 | C103: 99.65494693 | D103: 25.87712359 | E103: 25.89257812 | F103: 25.8701849 | G103: 25.8701849 | I103: 0.6583333333 | J103: 22.70403862 | K103: 0.4646093845 | L103: 5690.856689 | M103: 24.4921875 | N103: 99.73588319 | Q103: 24.4921875 | R103: 24.4957509
B104: 24.00765419 | C104: 99.65107041 | D104: 25.92950631 | E104: 25.88671875 | F104: 25.91327047 | G104: 25.91327047 | I104: 0.6666666667 | J104: 22.76382446 | K104: 0.473623395 | L104: 5690.650635 | M104: 24.609375 | N104: 99.73227195 | Q104: 24.609375 | R104: 24.55272675
B105: 24.05503082 | C105: 99.64729657 | D105: 25.98946945 | E105: 25.921875 | F105: 25.97040796 | G105: 25.97040796 | I105: 0.675 | J105: 22.81042099 | K105: 0.483828783 | L105: 5690.441162 | M105: 24.56835938 | N105: 99.72860081 | Q105: 24.56835938 | R105: 24.60228968
B106: 24.10894585 | C106: 99.64342005 | D106: 26.05836671 | E106: 25.99804688 | F106: 26.04436255 | G106: 26.04436255 | I106: 0.6833333333 | J106: 22.86243629 | K106: 0.4939767122 | L106: 5690.240967 | M106: 24.67382812 | N106: 99.72509226 | Q106: 24.67382812 | R106: 24.65041065
B107: 24.15884781 | C107: 99.63970613 | D107: 26.13515643 | E107: 26.13867188 | F107: 26.12926054 | G107: 26.12926054 | I107: 0.6916666667 | J107: 22.91431808 | K107: 0.5044819117 | L107: 5690.034424 | M107: 24.63867188 | N107: 99.72147246 | Q107: 24.63867188 | R107: 24.70336962
B108: 24.21443558 | C108: 99.63582961 | D108: 26.21769129 | E108: 26.28515625 | F108: 26.21555901 | G108: 26.21555901 | I108: 0.7 | J108: 22.97953224 | K108: 0.5139818192 | L108: 5689.831299 | M108: 24.78515625 | N108: 99.71791256 | Q108: 24.78515625 | R108: 24.76428509
B109: 24.28273582 | C109: 99.63211568 | D109: 26.30433004 | E109: 26.28515625 | F109: 26.29964304 | G109: 26.29964304 | I109: 0.7083333333 | J109: 23.03333664 | K109: 0.5243419409 | L109: 5689.624756 | M109: 24.8203125 | N109: 99.71429277 | Q109: 24.8203125 | R109: 24.83249474
B110: 24.34901619 | C110: 99.6282905 | D110: 26.39440608 | E110: 26.3203125 | F110: 26.38646793 | G110: 26.38646793 | I110: 0.7166666667 | J110: 23.09492302 | K110: 0.5337866545 | L110: 5689.418701 | M110: 24.890625 | N110: 99.71068153 | Q110: 24.890625 | R110: 24.90612173
B111: 24.40698242 | C111: 99.62441398 | D111: 26.48717916 | E111: 26.4609375 | F111: 26.48164845 | G111: 26.48164845 | I111: 0.725 | J111: 23.1467514 | K111: 0.5441026688 | L111: 5689.209717 | M111: 25.00195312 | N111: 99.70701894 | Q111: 25.00195312 | R111: 24.98472691
B112: 24.46517563 | C112: 99.62048612 | D112: 26.58027098 | E112: 26.64257812 | F112: 26.58382559 | G112: 26.58382559 | I112: 0.7333333333 | J112: 23.19199181 | K112: 0.5549944639 | L112: 5689.003662 | M112: 25.03125 | N112: 99.70340771 | Q112: 25.03125 | R112: 25.0691371
B113: 24.52002335 | C113: 99.61655825 | D113: 26.66896618 | E113: 26.64257812 | F113: 26.68527317 | G113: 26.68527317 | I113: 0.7416666667 | J113: 23.234972 | K113: 0.5661220551 | L113: 5688.79126 | M113: 25.14257812 | N113: 99.69968522 | Q113: 25.14257812 | R113: 25.15862274
B114: 24.58290863 | C114: 99.61268173 | D114: 26.74700689 | E114: 26.82421875 | F114: 26.77579594 | G114: 26.77579594 | I114: 0.75 | J114: 23.29662704 | K114: 0.5756297112 | L114: 5688.582275 | M114: 25.28320312 | N114: 99.69602263 | Q114: 25.28320312 | R114: 25.2489109
B115: 24.65890503 | C115: 99.60885656 | D115: 26.80848841 | E115: 26.90039062 | F115: 26.84505701 | G115: 26.84505701 | I115: 0.7583333333 | J115: 23.36800003 | K115: 0.5841950178 | L115: 5688.366943 | M115: 25.359375 | N115: 99.6922488 | Q115: 25.359375 | R115: 25.33385468
B116: 24.71987724 | C116: 99.60477466 | D116: 26.84989631 | E116: 26.97070312 | F116: 26.88598108 | G116: 26.88598108 | I116: 0.7666666667 | J116: 23.43016624 | K116: 0.5932489634 | L116: 5688.157471 | M116: 25.40039062 | N116: 99.68857766 | Q116: 25.40039062 | R116: 25.4086647
B117: 24.78573036 | C117: 99.60079545 | D117: 26.8713282 | E117: 26.90039062 | F117: 26.89909744 | G117: 26.89909744 | I117: 0.775 | J117: 23.4905529 | K117: 0.6021448374 | L117: 5687.948486 | M117: 25.51171875 | N117: 99.68491508 | Q117: 25.51171875 | R117: 25.47130823
B118: 24.85537338 | C118: 99.59691893 | D118: 26.87640358 | E118: 26.90625 | F118: 26.89222813 | G118: 26.89222813 | I118: 0.7833333333 | J118: 23.54423523 | K118: 0.6113094091 | L118: 5687.736084 | M118: 25.54101562 | N118: 99.68119259 | Q118: 25.54101562 | R118: 25.52313566
B119: 24.91713905 | C119: 99.59293972 | D119: 26.87107287 | E119: 26.87109375 | F119: 26.87527084 | G119: 26.87527084 | I119: 0.7916666667 | J119: 23.60270882 | K119: 0.6201131344 | L119: 5687.517822 | M119: 25.58203125 | N119: 99.67736742 | Q119: 25.58203125 | R119: 25.57003355
B120: 24.98311806 | C120: 99.5890033 | D120: 26.86206438 | E120: 26.87109375 | F120: 26.85641956 | G120: 26.85641956 | I120: 0.8 | J120: 23.66444588 | K120: 0.6288089752 | L120: 5687.30542 | M120: 25.54101562 | N120: 99.67364493 | Q120: 25.54101562 | R120: 25.62029171
B121: 25.0453949 | C121: 99.58502409 | D121: 26.85570189 | E121: 26.80664062 | F121: 26.84221172 | G121: 26.84221172 | I121: 0.8083333333 | J121: 23.72756577 | K121: 0.6376484632 | L121: 5687.093018 | M121: 25.68164062 | N121: 99.66992244 | Q121: 25.68164062 | R121: 25.67762089
B122: 25.10318565 | C122: 99.58119891 | D122: 26.85740437 | E122: 26.80664062 | F122: 26.83787584 | G122: 26.83787584 | I122: 0.8166666667 | J122: 23.79096985 | K122: 0.6463320255 | L122: 5686.877686 | M122: 25.7578125 | N122: 99.66614861 | Q122: 25.7578125 | R122: 25.73692989
B123: 25.17261314 | C123: 99.57726249 | D123: 26.8717253 | E123: 26.84179688 | F123: 26.8468194 | G123: 26.8468194 | I123: 0.825 | J123: 23.85751343 | K123: 0.6545324326 | L123: 5686.662842 | M123: 25.86328125 | N123: 99.66238334 | Q123: 25.86328125 | R123: 25.78954268
B124: 25.2434063 | C124: 99.57343731 | D124: 26.90251085 | E124: 26.84765625 | F124: 26.87187052 | G124: 26.87187052 | I124: 0.8333333333 | J124: 23.91560364 | K124: 0.6637291908 | L124: 5686.450439 | M124: 25.78710938 | N124: 99.65866085 | Q124: 25.78710938 | R124: 25.83222628
B125: 25.30295753 | C125: 99.56961214 | D125: 26.95272669 | E125: 26.87695312 | F125: 26.91757822 | G125: 26.91757822 | I125: 0.8416666667 | J125: 23.95953941 | K125: 0.6740018129 | L125: 5686.238525 | M125: 25.89257812 | N125: 99.65494693 | Q125: 25.89257812 | R125: 25.8701849
B126: 25.37473869 | C126: 99.56562437 | D126: 27.02383809 | E126: 26.91210938 | F126: 26.98904657 | G126: 26.98904657 | I126: 0.85 | J126: 24.00765419 | K126: 0.683686614 | L126: 5686.017334 | M126: 25.88671875 | N126: 99.65107041 | Q126: 25.88671875 | R126: 25.91327047
B127: 25.44311905 | C127: 99.56164516 | D127: 27.11521968 | E127: 27.05859375 | F127: 27.08697367 | G127: 27.08697367 | I127: 0.8583333333 | J127: 24.05503082 | K127: 0.6934695244 | L127: 5685.802002 | M127: 25.921875 | N127: 99.64729657 | Q127: 25.921875 | R127: 25.97040796
B128: 25.49460411 | C128: 99.5577173 | D128: 27.2243458 | E128: 27.19921875 | F128: 27.20500803 | G128: 27.20500803 | I128: 0.8666666667 | J128: 24.10894585 | K128: 0.7033221722 | L128: 5685.580811 | M128: 25.99804688 | N128: 99.64342005 | Q128: 25.99804688 | R128: 26.04436255
B129: 25.55939484 | C129: 99.55372953 | D129: 27.34797952 | E129: 27.33984375 | F129: 27.33392429 | G129: 27.33392429 | I129: 0.875 | J129: 24.15884781 | K129: 0.7134656906 | L129: 5685.368896 | M129: 26.13867188 | N129: 99.63970613 | Q129: 26.13867188 | R129: 26.12926054
B130: 25.63308334 | C130: =N152 -> 99.54975032 | D130: 27.48361228 | E130: =M152 -> 27.48632812 | F130: 27.46899462 | G130: 27.46899462 | I130: 0.8833333333 | J130: 24.21443558 | K130: 0.7229260206 | L130: 5685.147705 | M130: 26.28515625 | N130: 99.63582961 | Q130: 26.28515625 | R130: 26.21555901
B131: =J153 -> 25.70771217 | C131: 99.54571977 | D131: 27.63003614 | E131: 27.55078125 | F131: 27.61266804 | G131: 27.61266804 | I131: 0.8916666667 | J131: 24.28273582 | K131: 0.7310217619 | L131: 5684.935791 | M131: 26.28515625 | N131: 99.63211568 | Q131: 26.28515625 | R131: 26.29964304
B132: 25.77774239 | C132: 99.54168066 | D132: 27.78666413 | E132: 27.73242188 | F132: 27.76976109 | G132: 27.76976109 | I132: 0.9 | J132: 24.34901619 | K132: 0.7389247417 | L132: 5684.717529 | M132: 26.3203125 | N132: 99.6282905 | Q132: 26.3203125 | R132: 26.38646793
B133: 25.83264542 | C133: 99.53753886 | D133: 27.95235265 | E133: 27.95507812 | F133: 27.94078445 | G133: 27.94078445 | I133: 0.9083333333 | J133: 24.40698242 | K133: 0.7475993633 | L133: 5684.496338 | M133: 26.4609375 | N133: 99.62441398 | Q133: 26.4609375 | R133: 26.48164845
B134: 25.88669014 | C134: 99.5335083 | D134: 28.12485764 | E134: 28.08984375 | F134: 28.12040377 | G134: 28.12040377 | I134: 0.9166666667 | J134: 24.46517563 | K134: 0.7560187578 | L134: 5684.272217 | M134: 26.64257812 | N134: 99.62048612 | Q134: 26.64257812 | R134: 26.58382559
B135: 25.9586525 | C135: 99.52946919 | D135: 28.30132221 | E135: 28.34179688 | F135: 28.30159235 | G135: 28.30159235 | I135: 0.925 | J135: 24.52002335 | K135: 0.7645127773 | L135: 5684.048096 | M135: 26.64257812 | N135: 99.61655825 | Q135: 26.64257812 | R135: 26.68527317
B136: 26.02157021 | C136: 99.52538729 | D136: 28.47914159 | E136: 28.48828125 | F136: =$A$2*(E130+E142)+$A$3*(E131+E141)+$A$4*(E132+E140)+$A$5*(E133+E139)+$A$6*(E134+E138)+$A$7*(E135+E137)+$A$8*E136+$F$1 -> 28.48059797 | G136: 28.48059797 | I136: 0.9333333333 | J136: 24.58290863 | K136: 0.7727935314 | L136: 5683.826904 | M136: 26.82421875 | N136: 99.61268173 | Q136: 26.82421875 | R136: 26.77579594
B137: 26.08441162 | C137: 99.5211428 | D137: =($A$2*(G131+G143)+$A$3*(G132+G142)+$A$4*(G133+G141)+$A$5*(G134+G140)+$A$6*(G135+G139)+$A$7*(G136+G138)+$A$8*G137) -> 28.65621797 | E137: 28.62890625 | F137: 28.65815878 | G137: =F137 -> 28.65815878 | I137: 0.9416666667 | J137: 24.65890503 | K137: 0.7798745632 | L137: 5683.608643 | M137: 26.90039062 | N137: 99.60885656 | Q137: 26.90039062 | R137: 26.84505701
B138: 26.15823555 | C138: 99.51688975 | D138: 28.83025474 | E138: 28.83984375 | F138: 28.83618307 | G138: 28.83618307 | I138: 0.95 | J138: 24.71987724 | K138: 0.7880517244 | L138: 5683.375732 | M138: 26.97070312 | N138: 99.60477466 | Q138: 26.97070312 | R138: 26.88598108
B139: 26.22254372 | C139: 99.51270517 | D139: 28.99770041 | E139: 29.02148438 | F139: 29.0130372 | G139: 29.0130372 | I139: 0.9583333333 | J139: 24.78573036 | K139: 0.7959070206 | L139: 5683.148682 | M139: 26.90039062 | N139: 99.60079545 | Q139: 26.90039062 | R139: 26.89909744
B140: 26.27812195 | C140: 99.50835799 | D140: 29.15339866 | E140: 29.19140625 | F140: 29.1814642 | G140: 29.1814642 | I140: 0.9666666667 | J140: 24.85537338 | K140: 0.8032962084 | L140: 5682.92749 | M140: 26.90625 | N140: 99.59691893 | Q140: 26.90625 | R140: 26.89222813
B141: 26.3334465 | C141: 99.5041135 | D141: 29.29160066 | E141: 29.4140625 | F141: 29.33045626 | G141: 29.33045626 | I141: 0.975 | J141: 24.91713905 | K141: 0.8116047382 | L141: 5682.700439 | M141: 26.87109375 | N141: 99.59293972 | Q141: 26.87109375 | R141: 26.87527084
B142: 26.39764595 | C142: 99.49986901 | D142: 29.40806332 | E142: 29.484375 | F142: 29.44991398 | G142: 29.44991398 | I142: 0.9833333333 | J142: 24.98311806 | K142: 0.8193491697 | L142: 5682.47583 | M142: 26.87109375 | N142: 99.5890033 | Q142: 26.87109375 | R142: 26.85641956
B143: 26.47653389 | C143: 99.49541914 | D143: 29.50213014 | E143: 29.61914062 | F143: 29.53628111 | G143: 29.53628111 | I143: 0.9916666667 | J143: 25.0453949 | K143: 0.8273826838 | L143: 5682.248779 | M143: 26.80664062 | N143: 99.58502409 | Q143: 26.80664062 | R143: 26.84221172
B144: 26.55305672 | C144: 99.4911233 | D144: 29.57754355 | E144: 29.625 | F144: 29.59603214 | G144: 29.59603214 | I144: 1 | J144: 25.10318565 | K144: 0.8356773853 | L144: 5682.030518 | M144: 26.80664062 | N144: 99.58119891 | Q144: 26.80664062 | R144: 26.83787584
B145: 26.61587524 | C145: 99.48683603 | D145: 29.64142603 | E145: 29.58984375 | F145: 29.64314032 | G145: 29.64314032 | I145: 1.008333333 | J145: 25.17261314 | K145: 0.8430606127 | L145: 5681.805908 | M145: 26.84179688 | N145: 99.57726249 | Q145: 26.84179688 | R145: 26.8468194
B146: 26.68413544 | C146: 99.48242895 | D146: 29.7019448 | E146: 29.66015625 | F146: 29.69156885 | G146: 29.69156885 | I146: 1.016666667 | J146: 25.2434063 | K146: 0.8502824306 | L146: 5681.587646 | M146: 26.84765625 | N146: 99.57343731 | Q146: 26.84765625 | R146: 26.87187052
B147: 26.75621414 | C147: 99.47808177 | D147: 29.76587258 | E147: 29.80078125 | F147: 29.74994516 | G147: 29.74994516 | I147: 1.025 | J147: 25.30295753 | K147: 0.8584661484 | L147: 5681.369385 | M147: 26.87695312 | N147: 99.56961214 | Q147: 26.87695312 | R147: 26.91757822
B148: 26.83168602 | C148: 99.4736319 | D148: 29.83716555 | E148: 29.73046875 | F148: 29.82163811 | G148: 29.82163811 | I148: 1.033333333 | J148: 25.37473869 | K148: 0.8654642105 | L148: 5681.141846 | M148: 26.91210938 | N148: 99.56562437 | Q148: 26.91210938 | R148: 26.98904657
B149: 26.89868546 | C149: 99.46943875 | D149: 29.917054 | E149: 29.87695312 | F149: 29.90555906 | G149: 29.90555906 | I149: 1.041666667 | J149: 25.44311905 | K149: 0.8724033833 | L149: 5680.914795 | M149: 27.05859375 | N149: 99.56164516 | Q149: 27.05859375 | R149: 27.08697367
B150: 26.96656609 | C150: 99.46514292 | D150: 30.0054088 | E150: 30.05859375 | F150: 29.99652243 | G150: 29.99652243 | I150: 1.05 | J150: 25.49460411 | K150: 0.8805024624 | L150: 5680.690674 | M150: 27.19921875 | N150: 99.5577173 | Q150: 27.19921875 | R150: 27.20500803
B151: 27.03987503 | C151: 99.46079574 | D151: 30.10249305 | E151: 30.08789062 | F151: 30.09001923 | G151: 30.09001923 | I151: 1.058333333 | J151: 25.55939484 | K151: 0.8870493174 | L151: 5680.463135 | M151: 27.33984375 | N151: 99.55372953 | Q151: 27.33984375 | R151: 27.33392429
B152: 27.12016487 | C152: 99.45634587 | D152: 30.2098655 | E152: 30.15820312 | F152: 30.18901491 | G152: 30.18901491 | I152: 1.066666667 | J152: 25.63308334 | K152: 0.8930478096 | L152: 5680.236084 | M152: 27.48632812 | N152: 99.54975032 | Q152: 27.48632812 | R152: 27.46899462
B153: 27.18899918 | C153: 99.45199869 | D153: 30.32964643 | E153: 30.234375 | F153: 30.3032155 | G153: 30.3032155 | I153: 1.075 | J153: 25.70771217 | K153: 0.8990353346 | L153: 5680.006104 | M153: 27.55078125 | N153: =L153/L$24*100 -> 99.54571977 | Q153: 27.55078125 | R153: 27.61266804
B154: 27.26319504 | C154: 99.44748892 | D154: 30.46261816 | E154: 30.41015625 | F154: 30.4398737 | G154: 30.4398737 | I154: 1.083333333 | J154: 25.77774239 | K154: 0.9056386948 | L154: 5679.775635 | M154: 27.73242188 | N154: 99.54168066 | Q154: 27.73242188 | R154: 27.76976109
B155: 27.3349781 | C155: 99.44293636 | D155: 30.60674281 | E155: 30.55664062 | F155: 30.59603691 | G155: 30.59603691 | I155: 1.091666667 | J155: 25.83264542 | K155: 0.9136224985 | L155: 5679.539307 | M155: 27.95507812 | N155: 99.53753886 | Q155: 27.95507812 | R155: 27.94078445
B156: 27.39902496 | C156: 99.43848649 | D156: 30.75748332 | E156: 30.80859375 | F156: 30.75975037 | G156: 30.75975037 | I156: 1.1 | J156: 25.88669014 | K156: 0.9215693474 | L156: 5679.309326 | M156: 28.08984375 | N156: 99.5335083 | Q156: 28.08984375 | R156: 28.12040377
B157: 27.45755577 | C157: 99.43403663 | D157: 30.90982864 | E157: 30.95507812 | F157: 30.91839552 | G157: 30.91839552 | I157: 1.108333333 | J157: 25.9586525 | K157: 0.9282444715 | L157: 5679.078857 | M157: 28.34179688 | N157: 99.52946919 | Q157: 28.34179688 | R157: 28.30159235
B158: 27.52073288 | C158: 99.42947551 | D158: 31.06047159 | E158: 31.06054688 | F158: 31.06691551 | G158: 31.06691551 | I158: 1.116666667 | J158: 26.02157021 | K158: 0.9357658625 | L158: 5678.845947 | M158: 28.48828125 | N158: 99.52538729 | Q158: 28.48828125 | R158: 28.48059797
B159: 27.58580589 | C159: 99.42502564 | D159: 31.20847715 | E159: 31.23632812 | F159: 31.20949316 | G159: 31.20949316 | I159: 1.125 | J159: 26.08441162 | K159: 0.9429607391 | L159: 5678.60376 | M159: 28.62890625 | N159: 99.5211428 | Q159: 28.62890625 | R159: =$O$24*(Q153+Q165)+$O$25*(Q154+Q164)+$O$26*(Q155+Q163)+$O$27*(Q156+Q162)+$O$28*(Q157+Q161)+$O$29*(Q158+Q160)+$O$30*Q159+$Q$1 -> 28.65815878
B160: 27.65683365 | C160: 99.42051587 | D160: 31.35404962 | E160: 31.28320312 | F160: 31.35356283 | G160: 31.35356283 | I160: 1.133333333 | J160: 26.15823555 | K160: 0.9493119717 | L160: 5678.361084 | M160: 28.83984375 | N160: 99.51688975 | Q160: 28.83984375 | R160: 28.83618307
B161: 27.72610855 | C161: 99.41580072 | D161: 31.49647755 | E161: 31.5 | F161: 31.50165224 | G161: 31.50165224 | I161: 1.141666667 | J161: 26.22254372 | K161: 0.9564310312 | L161: 5678.122314 | M161: 29.02148438 | N161: 99.51270517 | Q161: 29.02148438 | R161: 29.0130372
B162: 27.79034805 | C162: 99.41113692 | D162: 31.63278264 | E162: 31.71679688 | F162: 31.64859581 | G162: 31.64859581 | I162: 1.15 | J162: 26.27812195 | K162: 0.9642724991 | L162: 5677.874268 | M162: 29.19140625 | N162: 99.50835799 | Q162: 29.19140625 | R162: 29.1814642
B163: 27.8551693 | C163: 99.4066357 | D163: 31.75786272 | E163: 31.78125 | F163: 31.78524828 | G163: 31.78524828 | I163: 1.158333333 | J163: 26.3334465 | K163: 0.9720634222 | L163: 5677.63208 | M163: 29.4140625 | N163: 99.5041135 | Q163: 29.4140625 | R163: 29.33045626
B164: 27.9222374 | C164: 99.40186921 | D164: 31.86586459 | E164: 31.921875 | F164: 31.90266895 | G164: 31.90266895 | I164: 1.166666667 | J164: 26.39764595 | K164: 0.9790900946 | L164: 5677.389893 | M164: 29.484375 | N164: 99.49986901 | Q164: 29.484375 | R164: 29.44991398
B165: 27.98523331 | C165: 99.39724819 | D165: 31.95200009 | E165: 32.09765625 | F165: 31.99354792 | G165: 31.99354792 | I165: 1.175 | J165: 26.47653389 | K165: 0.9843708277 | L165: 5677.135986 | M165: 29.61914062 | N165: 99.49541914 | Q165: 29.61914062 | R165: 29.53628111
B166: 28.05178833 | C166: 99.3924817 | D166: 32.01410695 | E166: 32.09179688 | F166: 32.05370665 | G166: 32.05370665 | I166: 1.183333333 | J166: 26.55305672 | K166: 0.9895929098 | L166: 5676.890869 | M166: 29.625 | N166: 99.4911233 | Q166: 29.625 | R166: 29.59603214
B167: 28.12160492 | C167: 99.38771521 | D167: 32.05353537 | E167: 32.09179688 | F167: 32.08435965 | G167: 32.08435965 | I167: 1.191666667 | J167: 26.61587524 | K167: 0.995623827 | L167: 5676.64624 | M167: 29.58984375 | N167: 99.48683603 | Q167: 29.58984375 | R167: 29.64314032
B168: 28.18466568 | C168: 99.38305996 | D168: 32.07517507 | E168: 32.16210938 | F168: 32.09230185 | G168: 32.09230185 | I168: 1.2 | J168: 26.68413544 | K168: 1.001164913 | L168: 5676.394775 | M168: 29.66015625 | N168: 99.48242895 | Q168: 29.66015625 | R168: 29.69156885
B169: 28.24884224 | C169: 99.37840471 | D169: 32.08667947 | E169: 32.05078125 | F169: 32.08794451 | G169: 32.08794451 | I169: 1.208333333 | J169: 26.75621414 | K169: 1.00671804 | L169: 5676.146729 | M169: 29.80078125 | N169: 99.47808177 | Q169: 29.80078125 | R169: 29.74994516
B170: 28.32050705 | C170: 99.37363822 | D170: 32.09721249 | E170: 32.08007812 | F170: 32.08307505 | G170: 32.08307505 | I170: 1.216666667 | J170: 26.83168602 | K170: 1.012126565 | L170: 5675.892822 | M170: 29.73046875 | N170: 99.4736319 | Q170: 29.73046875 | R170: 29.82163811
B171: 28.40262985 | C171: 99.36893163 | D171: 32.11618881 | E171: 32.04492188 | F171: 32.08868122 | G171: 32.08868122 | I171: 1.225 | J171: 26.89868546 | K171: 1.018576503 | L171: 5675.653564 | M171: 29.87695312 | N171: 99.46943875 | Q171: 29.87695312 | R171: 29.90555906
B172: 28.47776031 | C172: 99.36426782 | D172: 32.15236012 | E172: 32.08007812 | F172: 32.11353922 | G172: 32.11353922 | I172: 1.233333333 | J172: 26.96656609 | K172: 1.025230646 | L172: 5675.408447 | M172: 30.05859375 | N172: 99.46514292 | Q172: 30.05859375 | R172: 29.99652243
B173: 28.55923462 | C173: 99.35966392 | D173: 32.21325652 | E173: 32.12695312 | F173: 32.164783 | G173: 32.164783 | I173: 1.241666667 | J173: 27.03987503 | K173: 1.031362772 | L173: 5675.1604 | M173: 30.08789062 | N173: 99.46079574 | Q173: 30.08789062 | R173: 30.09001923
B174: 28.6404438 | C174: 99.35506002 | D174: 32.30466117 | E174: 32.16796875 | F174: 32.24921608 | G174: 32.24921608 | I174: 1.25 | J174: 27.12016487 | K174: 1.036592603 | L174: 5674.906494 | M174: 30.15820312 | N174: 99.45634587 | Q174: 30.15820312 | R174: 30.18901491
B175: 28.71341896 | C175: 99.35039621 | D175: 32.42977316 | E175: 32.31445312 | F175: 32.37285662 | G175: 32.37285662 | I175: 1.258333333 | J175: 27.18899918 | K175: 1.042777181 | L175: 5674.658447 | M175: 30.234375 | N175: 99.45199869 | Q175: 30.234375 | R175: 30.3032155
B176: 28.7775135 | C176: 99.34568106 | D176: 32.58810024 | E176: 32.46679688 | F176: 32.53829956 | G176: 32.53829956 | I176: 1.266666667 | J176: 27.26319504 | K176: 1.048675299 | L176: 5674.401123 | M176: 30.41015625 | N176: 99.44748892 | Q176: 30.41015625 | R176: 30.4398737
B177: 28.84646416 | C177: 99.34086322 | D177: 32.77466632 | E177: 32.67773438 | F177: 32.74144506 | G177: 32.74144506 | I177: 1.275 | J177: 27.3349781 | K177: 1.054520607 | L177: 5674.141357 | M177: 30.55664062 | N177: 99.44293636 | Q177: 30.55664062 | R177: 30.59603691
B178: 28.92181396 | C178: 99.33613952 | D178: 32.9803243 | E178: 32.97070312 | F178: 32.96975756 | G178: 32.96975756 | I178: 1.283333333 | J178: 27.39902496 | K178: 1.060733795 | L178: 5673.887451 | M178: 30.80859375 | N178: 99.43848649 | Q178: 30.80859375 | R178: 30.75975037
B179: 29.00931358 | C179: 99.33142437 | D179: 33.19348501 | E179: 33.22265625 | F179: 33.20459175 | G179: 33.20459175 | I179: 1.291666667 | J179: 27.45755577 | K179: 1.067100644 | L179: 5673.633545 | M179: 30.95507812 | N179: 99.43403663 | Q179: 30.95507812 | R179: 30.91839552
B180: 29.08431435 | C180: 99.32644394 | D180: 33.40260961 | E180: 33.50976562 | F180: 33.42823935 | G180: 33.42823935 | I180: 1.3 | J180: 27.52073288 | K180: 1.072872281 | L180: 5673.373291 | M180: 31.06054688 | N180: 99.42947551 | Q180: 31.06054688 | R180: 31.06691551
B181: 29.15121841 | C181: 99.32151485 | D181: 33.59816216 | E181: 33.65039062 | F181: 33.63104153 | G181: 33.63104153 | I181: 1.308333333 | J181: 27.58580589 | K181: 1.078437567 | L181: 5673.119385 | M181: 31.23632812 | N181: 99.42502564 | Q181: 31.23632812 | R181: 31.20949316
B182: 29.22184372 | C182: 99.31654298 | D182: 33.77313526 | E182: 33.83203125 | F182: 33.81134748 | G182: 33.81134748 | I182: 1.316666667 | J182: 27.65683365 | K182: 1.083144784 | L182: 5672.862061 | M182: 31.28320312 | N182: 99.42051587 | Q182: 31.28320312 | R182: 31.35356283
B183: 29.28918457 | C183: 99.31151121 | D183: 33.92254477 | E183: 33.96679688 | F183: 33.96789122 | G183: 33.96789122 | I183: 1.325 | J183: 27.72610855 | K183: 1.087554574 | L183: 5672.593018 | M183: 31.5 | N183: 99.41580072 | Q183: 31.5 | R183: 31.50165224
B184: 29.34998512 | C184: 99.30653933 | D184: 34.04319618 | E184: 34.21875 | F184: 34.09403086 | G184: 34.09403086 | I184: 1.333333333 | J184: 27.79034805 | K184: 1.092193365 | L184: 5672.326904 | M184: 31.71679688 | N184: 99.41113692 | Q184: 31.71679688 | R184: 31.64859581
B185: 29.41794205 | C185: 99.30145622 | D185: 34.13450584 | E185: 34.24804688 | F185: 34.18196154 | G185: 34.18196154 | I185: 1.341666667 | J185: 27.8551693 | K185: 1.096799374 | L185: 5672.070068 | M185: 31.78125 | N185: 99.4066357 | Q185: 31.78125 | R185: 31.78524828
B186: 29.50567818 | C186: 99.29653569 | D186: 34.19967577 | E186: 34.27734375 | F186: 34.23241282 | G186: 34.23241282 | I186: 1.35 | J186: 27.9222374 | K186: 1.100754499 | L186: 5671.798096 | M186: 31.921875 | N186: 99.40186921 | Q186: 31.921875 | R186: 31.90266895
B187: 29.58763504 | C187: 99.29145257 | D187: 34.24568813 | E187: 34.27734375 | F187: 34.25831509 | G187: 34.25831509 | I187: 1.358333333 | J187: 27.98523331 | K187: 1.105096698 | L187: 5671.534424 | M187: 32.09765625 | N187: 99.39724819 | Q187: 32.09765625 | R187: 31.99354792
B188: 29.66156769 | C188: 99.28653204 | D188: 34.28138967 | E188: 34.20117188 | F188: 34.27807188 | G188: 34.27807188 | I188: 1.366666667 | J188: 28.05178833 | K188: 1.109240532 | L188: 5671.262451 | M188: 32.09179688 | N188: 99.3924817 | Q188: 32.09179688 | R188: 32.05370665
B189: 29.73275375 | C189: 99.28144892 | D189: 34.31460146 | E189: 34.3125 | F189: 34.30501842 | G189: 34.30501842 | I189: 1.375 | J189: 28.12160492 | K189: 1.113125205 | L189: 5670.990479 | M189: 32.09179688 | N189: 99.38771521 | Q189: 32.09179688 | R189: 32.08435965
B190: 29.80415726 | C190: 99.2764257 | D190: 34.35007062 | E190: 34.3125 | F190: 34.34223461 | G190: 34.34223461 | I190: 1.383333333 | J190: 28.18466568 | K190: 1.117747307 | L190: 5670.724854 | M190: 32.16210938 | N190: 99.38305996 | Q190: 32.16210938 | R190: 32.09230185
B191: 29.8675499 | C191: 99.27145383 | D191: 34.38941575 | E191: 34.41796875 | F191: 34.38547325 | G191: 34.38547325 | I191: 1.391666667 | J191: 28.24884224 | K191: 1.121701002 | L191: 5670.459229 | M191: 32.05078125 | N191: 99.37840471 | Q191: 32.05078125 | R191: 32.08794451
B192: 29.93743324 | C192: 99.26648196 | D192: 34.43274126 | E192: 34.41210938 | F192: 34.42962599 | G192: 34.42962599 | I192: 1.4 | J192: 28.32050705 | K192: 1.125094533 | L192: 5670.187256 | M192: 32.08007812 | N192: 99.37363822 | Q192: 32.08007812 | R192: 32.08307505
B193: 30.01735115 | C193: 99.26156143 | D193: 34.48057831 | E193: 34.48828125 | F193: 34.47331953 | G193: 34.47331953 | I193: 1.408333333 | J193: 28.40262985 | K193: 1.128098011 | L193: 5669.918701 | M193: 32.04492188 | N193: 99.36893163 | Q193: 32.04492188 | R193: 32.08868122
B194: 30.10227013 | C194: =N216 -> 99.25642697 | D194: 34.53486563 | E194: =M216 -> 34.51757812 | F194: 34.52017021 | G194: 34.52017021 | I194: 1.416666667 | J194: 28.47776031 | K194: 1.131813288 | L194: 5669.652588 | M194: 32.08007812 | N194: 99.36426782 | Q194: 32.08007812 | R194: 32.11353922
B195: =J217 -> 30.18130684 | C195: 99.25134385 | D195: 34.59852383 | E195: 34.51757812 | F195: 34.57718182 | G195: 34.57718182 | I195: 1.425 | J195: 28.55923462 | K195: 1.134823322 | L195: 5669.389893 | M195: 32.12695312 | N195: 99.35966392 | Q195: 32.12695312 | R195: 32.164783
B196: 30.23957825 | C196: 99.24626929 | D196: 34.6741356 | E196: 34.62890625 | F196: 34.65076303 | G196: 34.65076303 | I196: 1.433333333 | J196: 28.6404438 | K196: 1.138026237 | L196: 5669.127197 | M196: 32.16796875 | N196: 99.35506002 | Q196: 32.16796875 | R196: 32.24921608
B197: 30.30663872 | C197: 99.24119473 | D197: 34.76276086 | E197: 34.70507812 | F197: 34.74260473 | G197: 34.74260473 | I197: 1.441666667 | J197: 28.71341896 | K197: 1.141840875 | L197: 5668.861084 | M197: 32.31445312 | N197: 99.35039621 | Q197: 32.31445312 | R197: 32.37285662
B198: 30.38342285 | C198: 99.23616295 | D198: 34.86372191 | E198: 34.8515625 | F198: 34.84891605 | G198: 34.84891605 | I198: 1.45 | J198: 28.7775135 | K198: 1.146008551 | L198: 5668.592041 | M198: 32.46679688 | N198: 99.34568106 | Q198: 32.46679688 | R198: 32.53829956
B199: 30.46260643 | C199: 99.23103705 | D199: 34.97542212 | E199: 34.95703125 | F199: 34.96390057 | G199: 34.96390057 | I199: 1.458333333 | J199: 28.84646416 | K199: 1.149779975 | L199: 5668.317139 | M199: 32.67773438 | N199: 99.34086322 | Q199: 32.67773438 | R199: 32.74144506
B200: 30.54282379 | C200: 99.22601383 | D200: 35.09646307 | E200: 35.09765625 | F200: =$A$2*(E194+E206)+$A$3*(E195+E205)+$A$4*(E196+E204)+$A$5*(E197+E203)+$A$6*(E198+E202)+$A$7*(E199+E201)+$A$8*E200+$F$1 -> 35.08449697 | G200: 35.08449697 | I200: 1.466666667 | J200: 28.92181396 | K200: 1.152733743 | L200: 5668.047607 | M200: 32.97070312 | N200: 99.33613952 | Q200: 32.97070312 | R200: 32.96975756
... 4300 more rows

Sheet XRD-phlogopite
B1: Leached phlogopite | E1: 40 | F1: Theta2 | G1: Org200m | H1: 140
A2: 0.000244140625 | B2: 5.00417782 | C2: 9153.895456 | E2: ='XRD-vermiculite'!$J$1 -> 260 | F2: 2.00317782 | G2: 100
A3: 0.0029296875 | B3: 5.01217782 | C3: 9487.838759 | F3: 2.01117782 | G3: 95.84027376 | Q3: Element | R3: Kα
A4: 0.01611328125 | B4: 5.02017782 | C4: 9111.925959 | F4: 2.01917782 | G4: 91.91719532 | J4: Phlogopite | R4: (weight average)
A5: 0.0537109375 | B5: 5.02817782 | C5: 9220.756386 | F5: 2.02717782 | G5: 89.58945276 | J5: d-spacing calculations | P5: 2q, ° | Q5: Cr | R5: 0.2291
A6: 0.1208496094 | B6: 5.03617782 | C6: 9885.8736 | F6: 2.03517782 | G6: 87.70738301 | J6: 2q/° | K6: Counts | L6: q/rad | M6: d/nm | Q6: Fe | R6: 0.193736
A7: 0.193359375 | B7: 5.04417782 | C7: 9562.605217 | F7: 2.04317782 | G7: 85.36032644 | J7: =F838 -> 8.69117782 | K7: =H838 -> 226.6018792 | L7: =PI()*J7/180/2 -> 0.07584483442 | M7: =$R$7/2/SIN(L7) -> 1.181344491 | Q7: Co | R7: 0.179026
A8: 0.2255859375 | B8: 5.05217782 | C8: 9505.987433 | D8: =$A$2*(C2+C14)+$A$3*(C3+C13)+$A$4*(C4+C12)+$A$5*(C5+C11)+$A$6*(C6+C10)+$A$7*(C7+C9)+$A$8*C8+$H$1 -> 9556.639351 | E8: =D8/$E$1+$E$2 -> 498.9159838 | F8: 2.05117782 | G8: 87.59229238 | H8: =$A$2*(G2+G14)+$A$3*(G3+G13)+$A$4*(G4+G12)+$A$5*(G5+G11)+$A$6*(G6+G10)+$A$7*(G7+G9)+$A$8*G8+$H$1 -> 227.5090555 | J8: =F1033 -> 10.25117782 | K8: =H1033 -> 397.608687 | L8: =PI()*J8/180/2 -> 0.08945840258 | M8: =$R$7/2/SIN(L8) -> 1.001946173 | Q8: Cu | R8: 0.154184
A9: 0.193359375 | B9: 5.06017782 | C9: 9011.312657 | D9: 9504.398829 | E9: =D9/$E$1+$E$2 -> 497.6099707 | F9: 2.05917782 | G9: 86.74832428 | H9: 227.8558888 | J9: =F3485 -> 29.86717782 | K9: =H3485 -> 200.0834843 | L9: =PI()*J9/180/2 -> 0.2606402956 | M9: 0.3473544898 | Q9: Mo | R9: 0.071073
A10: 0.1208496094 | B10: 5.06817782 | C10: 9232.446427 | D10: 9474.587459 | E10: 496.8646865 | F10: 2.06717782 | G10: 87.92321639 | H10: 228.3874838 | J10: =F3606 -> 30.83517782 | K10: =H3606 -> 308.1636967 | L10: 0.2690876892 | M10: 0.3367022906
A11: 0.0537109375 | B11: 5.07617782 | C11: 9665.732213 | D11: 9450.795622 | E11: 496.2698905 | F11: 2.07517782 | G11: 91.44879424 | H11: 228.55307 | J11: =F6270 -> 52.14717782 | K11: =H6270 -> 167.8787629 | L11: 0.4550699743 | M11: 0.2036584172
A12: 0.01611328125 | B12: 5.08417782 | C12: 9323.295541 | D12: 9396.568295 | E12: 494.9142074 | F12: 2.08317782 | G12: 90.62078824 | H12: 227.88949 | J12: =F6314 -> 52.49917782 | K12: =H6314 -> 181.3365643 | L12: 0.4581417538 | M12: 0.2023888567
A13: 0.0029296875 | B13: 5.09217782 | C13: 9087.870915 | D13: 9298.272727 | E13: 492.4568182 | F13: 2.09117782 | G13: 87.11217217 | H13: 226.3412917 | J13: Silica
A14: 0.000244140625 | B14: 5.10017782 | C14: 9096.502074 | D14: 9173.081465 | E14: 489.3270366 | F14: 2.09917782 | G14: 83.26467821 | H14: 224.3325591 | J14: =B658 -> 10.25217782 | K14: =H6316 -> 180.3629153 | L14: =PI()*J14/180/2 -> 0.08946712923 | M14: 1.001848704
B15: 5.10817782 | C15: 8882.475762 | D15: 9048.60238 | E15: 486.2150595 | F15: 2.10717782 | G15: 80.94355928 | H15: 222.474145 | J15: =B3231 -> 30.83617782 | K15: 178.9692438 | L15: 0.2690964158 | M15: 0.3366916364
B16: 5.11617782 | C16: 8682.86988 | D16: 8946.639822 | E16: 483.6659955 | F16: 2.11517782 | G16: 80.06987261 | H16: 221.1742359 | J16: Phlogopite (CuKa) | N16: =SUM(N17:N25) -> 0.003371984517
B17: 5.12417782 | C17: 8670.080793 | D17: 8877.497813 | E17: 481.9374453 | F17: 2.12317782 | G17: 79.38509796 | H17: 220.4608023 | J17: 7.483217035 | K17: =K7 -> 226.6018792 | L17: =PI()*J17/180/2 -> 0.06530338795 | M17: =$R$8/2/SIN(L17) -> 1.18136016 | N17: =100000*(M7-M17)^2 -> 2.455154807e-05
B18: 5.13217782 | C18: 8719.332002 | D18: 8838.419569 | E18: 480.9604892 | F18: 2.13117782 | G18: 80.87984446 | H18: 220.0657574 | J18: 8.825578192 | K18: =K8 -> 397.608687 | L18: =PI()*J18/180/2 -> 0.07701769892 | M18: =$R$8/2/SIN(L18) -> 1.001954987 | N18: =100000*(M8-M18)^2 -> 7.769655719e-06
B19: 5.14017782 | C19: 8641.713614 | D19: 8819.090459 | E19: 480.4772615 | F19: 2.13917782 | G19: 80.46779741 | H19: 219.6287956 | J19: 25.65011488 | K19: 200.0834843 | L19: 0.2238394791 | M19: 0.3473004605 | N19: 0.000291916615
B20: 5.14817782 | C20: 8728.773594 | D20: 8812.250693 | E20: 480.3062673 | F20: 2.14717782 | G20: 78.93882557 | H20: 218.8756146 | J20: 26.4665067 | K20: 308.1636967 | L20: 0.2309638417 | M20: 0.3367699993 | N20: 0.0004584469153
B21: 5.15617782 | C21: 8563.624102 | D21: 8815.56595 | E21: 480.3891487 | F21: 2.15517782 | G21: 79.40900148 | H21: 217.7153542 | J21: 44.45985975 | K21: 167.8787629 | L21: 0.3879854688 | M21: 0.2037722196 | N21: 0.001295098663
B22: 5.16417782 | C22: 8632.400276 | D22: 8821.754129 | E22: 480.5438532 | F22: 2.16317782 | G22: 76.52798519 | H22: 216.2499035 | J22: 44.75910211 | K22: 181.3365643 | L22: 0.3905968511 | M22: 0.20247918 | N22: 0.0008158289354
B23: 5.17217782 | C23: 8925.357741 | D23: 8815.647725 | E23: 480.3911931 | F23: 2.17117782 | G23: 72.41585909 | H23: 214.6791293 | J23: Silica (Cu Ka)
B24: 5.18017782 | C24: 8627.529547 | D24: 8789.168482 | E24: 479.7292121 | F24: 2.17917782 | G24: 74.73108532 | H24: 213.1685049 | J24: 8.826637089 | K24: 180.3629153 | L24: 0.07702693954 | M24: 1.001835025 | N24: 1.871158961e-05
B25: 5.18817782 | C25: 8574.890284 | D25: 8752.035476 | E25: 478.8008869 | F25: 2.18717782 | G25: 71.52454957 | H25: 211.826163 | J25: 26.46735208 | K25: 178.9692438 | L25: 0.230971219 | M25: 0.3367594347 | N25: 0.0004596605948
B26: 5.19617782 | C26: 8349.354009 | D26: 8715.807558 | E26: 477.8951889 | F26: 2.19517782 | G26: 69.78639299 | H26: 210.7491734
B27: 5.20417782 | C27: 8832.640936 | D27: 8673.123914 | E27: 476.8280978 | F27: 2.20317782 | G27: 67.38925599 | H27: 209.9399729
B28: 5.21217782 | C28: 8581.717966 | D28: 8607.731648 | E28: 475.1932912 | F28: 2.21117782 | G28: 72.20063683 | H28: 209.1885037
B29: 5.22017782 | C29: 8215.334479 | D29: 8523.120107 | E29: 473.0780027 | F29: 2.21917782 | G29: 69.7035441 | H29: 208.236524
B30: 5.22817782 | C30: 8317.334558 | D30: 8446.685145 | E30: 471.1671286 | F30: 2.22717782 | G30: 66.49520034 | H30: 207.1052817
B31: 5.23617782 | C31: 8085.273758 | D31: 8401.135582 | E31: 470.0283896 | F31: 2.23517782 | G31: 62.50402979 | H31: 206.104929
B32: 5.24417782 | C32: 8212.072024 | D32: 8377.937592 | E32: 469.4484398 | F32: 2.24317782 | G32: 67.35666859 | H32: 205.5039313
B33: 5.25217782 | C33: 8475.989414 | D33: 8344.659745 | E33: 468.6164936 | F33: 2.25117782 | G33: 64.30211073 | H33: 205.3345147
B34: 5.26017782 | C34: 8215.702701 | D34: 8281.371989 | E34: 467.0342997 | F34: 2.25917782 | G34: 64.61332973 | H34: 205.4978684
B35: 5.26817782 | C35: 7957.593132 | D35: 8207.127552 | E35: 465.1781888 | F35: 2.26717782 | G35: 65.8661664 | H35: 205.8697635
B36: 5.27617782 | C36: 7747.701318 | D36: 8163.15485 | E36: 464.0788713 | F36: 2.27517782 | G36: 66.50199208 | H36: 206.2622506
B37: 5.28417782 | C37: 7995.503166 | D37: 8168.686927 | E37: 464.2171732 | F37: 2.28317782 | G37: 67.67084225 | H37: 206.4152739
B38: 5.29217782 | C38: 8191.119793 | D38: 8198.838652 | E38: 464.9709663 | F38: 2.29117782 | G38: 67.13775028 | H38: 206.115971
B39: 5.30017782 | C39: 8125.534531 | D39: 8207.438928 | E39: 465.1859732 | F39: 2.29917782 | G39: 65.99438452 | H39: 205.327428
B40: 5.30817782 | C40: 8264.135657 | D40: 8170.794 | E40: 464.26985 | F40: 2.30717782 | G40: 64.41732753 | H40: 204.1916996
B41: 5.31617782 | C41: 7925.067241 | D41: 8111.451553 | E41: 462.7862888 | F41: 2.31517782 | G41: 61.94561785 | H41: 202.9012648
B42: 5.32417782 | C42: 7530.44521 | D42: 8076.814122 | E42: 461.920353 | F42: 2.32317782 | G42: 62.03870611 | H42: 201.5692874
B43: 5.33217782 | C43: 7932.555872 | D43: 8087.653215 | E43: 462.1913304 | F43: 2.33117782 | G43: 61.11190431 | H43: 200.2418178
B44: 5.34017782 | C44: 8141.610309 | D44: 8110.431479 | E44: 462.760787 | F44: 2.33917782 | G44: 57.86150687 | H44: 199.0110905
B45: 5.34817782 | C45: 8285.460813 | D45: 8088.840249 | E45: 462.2210062 | F45: 2.34717782 | G45: 57.05804505 | H45: 198.0314459
B46: 5.35617782 | C46: 7819.692004 | D46: 8000.06176 | E46: 460.001544 | F46: 2.35517782 | G46: 56.86425909 | H46: 197.377784
B47: 5.36417782 | C47: 7730.076798 | D47: 7872.450717 | E47: 456.8112679 | F47: 2.36317782 | G47: 56.83366889 | H47: 196.9305605
B48: 5.37217782 | C48: 7390.294799 | D48: 7752.481872 | E48: 453.8120468 | F48: 2.37117782 | G48: 58.23301904 | H48: 196.4492083
B49: 5.38017782 | C49: 7541.67405 | D49: 7665.233395 | E49: 451.6308349 | F49: 2.37917782 | G49: 54.58361134 | H49: 195.7708319
B50: 5.38817782 | C50: 7530.556941 | D50: 7606.100152 | E50: 450.1525038 | F50: 2.38717782 | G50: 57.38700077 | H50: 194.9530176
B51: 5.39617782 | C51: 7299.690631 | D51: 7557.222338 | E51: 448.9305585 | F51: 2.39517782 | G51: 50.94848321 | H51: 194.230094
B52: 5.40417782 | C52: 7500.784166 | D52: 7502.919532 | E52: 447.5729883 | F52: 2.40317782 | G52: 53.54343102 | H52: 193.7955506
B53: 5.41217782 | C53: 7280.987087 | D53: 7435.529803 | E53: 445.8882451 | F53: 2.41117782 | G53: 54.01314249 | H53: 193.6075843
B54: 5.42017782 | C54: 7269.141995 | D54: 7356.775922 | E54: 443.9193981 | F54: 2.41917782 | G54: 54.08676768 | H54: 193.4365632
B55: 5.42817782 | C55: 7047.805253 | D55: 7273.757857 | E55: 441.8439464 | F55: 2.42717782 | G55: 53.96804563 | H55: 193.1046176
B56: 5.43617782 | C56: 7028.792391 | D56: 7189.76161 | E56: 439.7440403 | F56: 2.43517782 | G56: 51.96873412 | H56: 192.6301619
B57: 5.44417782 | C57: 7105.552134 | D57: 7103.309926 | E57: 437.5827482 | F57: 2.44317782 | G57: 51.45138125 | H57: 192.1248748
B58: 5.45217782 | C58: 6853.666862 | D58: 7021.847017 | E58: 435.5461754 | F58: 2.45117782 | G58: 52.35686965 | H58: 191.6025022
B59: 5.46017782 | C59: 6634.624259 | D59: 6969.749933 | E59: 434.2437483 | F59: 2.45917782 | G59: 51.23900074 | H59: 190.9442185
B60: 5.46817782 | C60: 6664.990934 | D60: 6970.327339 | E60: 434.2581835 | F60: 2.46717782 | G60: 51.19690781 | H60: 190.0652126
B61: 5.47617782 | C61: 6866.923925 | D61: 7017.174435 | E61: 435.4293609 | F61: 2.47517782 | G61: 49.11208729 | H61: 189.0867999
B62: 5.48417782 | C62: 7064.366216 | D62: 7069.54489 | E62: 436.7386223 | F62: 2.48317782 | G62: 45.79834797 | H62: 188.2869708
B63: 5.49217782 | C63: 7124.082237 | D63: 7080.450068 | E63: 437.0112517 | F63: 2.49117782 | G63: 47.32124145 | H63: 187.850579
B64: 5.50017782 | C64: 7001.17459 | D64: 7031.4441 | E64: 435.7861025 | F64: 2.49917782 | G64: 48.72337937 | H64: 187.7077254
B65: 5.50817782 | C65: 6746.029965 | D65: 6944.048935 | E65: 433.6012234 | F65: 2.50717782 | G65: 47.5876272 | H65: 187.6444218
B66: 5.51617782 | C66: 6624.072881 | D66: 6859.453639 | E66: 431.486341 | F66: 2.51517782 | G66: 47.86226251 | H66: 187.5081466
B67: 5.52417782 | C67: 6506.473979 | D67: 6802.510872 | E67: 430.0627718 | F67: 2.52317782 | G67: 46.23207713 | H67: 187.2571261
B68: 5.53217782 | C68: 6664.813258 | D68: 6760.664919 | E68: 429.016623 | F68: 2.53117782 | G68: 49.52932075 | H68: 186.8714688
B69: 5.54017782 | C69: 6877.161337 | D69: 6700.36836 | E69: 427.509209 | F69: 2.53917782 | G69: 43.38344099 | H69: 186.2991655
B70: 5.54817782 | C70: 6453.784866 | D70: 6606.806276 | E70: 425.1701569 | F70: 2.54717782 | G70: 49.14104625 | H70: 185.5217857
B71: 5.55617782 | C71: 6142.379177 | D71: 6503.62123 | E71: 422.5905307 | F71: 2.55517782 | G71: 43.776714 | H71: 184.6730758
B72: 5.56417782 | C72: 6343.469634 | D72: =$A$2*(C66+C78)+$A$3*(C67+C77)+$A$4*(C68+C76)+$A$5*(C69+C75)+$A$6*(C70+C74)+$A$7*(C71+C73)+$A$8*C72+$H$1 -> 6431.474585 | E72: 420.7868646 | F72: 2.56317782 | G72: 41.45265608 | H72: =$A$2*(G66+G78)+$A$3*(G67+G77)+$A$4*(G68+G76)+$A$5*(G69+G75)+$A$6*(G70+G74)+$A$7*(G71+G73)+$A$8*G72+$H$1 -> 184.021716
B73: 5.57217782 | C73: 5946.570288 | D73: 6410.742493 | E73: =D73/$E$1+$E$2 -> 420.2685623 | F73: 2.57117782 | G73: 43.17388352 | H73: 183.7316166
B74: 5.58017782 | C74: 6468.576652 | D74: 6424.609058 | E74: 420.6152265 | F74: 2.57917782 | G74: 44.80252482 | H74: 183.6585691
B75: 5.58817782 | C75: 6327.634849 | D75: 6433.607898 | E75: 420.8401974 | F75: 2.58717782 | G75: 44.62633941 | H75: 183.4922678
B76: 5.59617782 | C76: 6495.411903 | D76: 6406.630877 | E76: 420.1657719 | F76: 2.59517782 | G76: 43.50809071 | H76: 183.0963616
B77: 5.60417782 | C77: 6084.670058 | D77: 6342.045982 | E77: 418.5511496 | F77: 2.60317782 | G77: 41.45352029 | H77: 182.6087206
B78: 5.61217782 | C78: 6149.209943 | D78: 6262.498076 | E78: 416.5624519 | F78: 2.61117782 | G78: 41.04337982 | H78: 182.1944885
B79: 5.62017782 | C79: 5953.789208 | D79: 6193.060859 | E79: 414.8265215 | F79: 2.61917782 | G79: 43.26428188 | H79: 181.8080957
B80: 5.62817782 | C80: 5992.337479 | D80: 6145.310377 | E80: 413.6327594 | F80: 2.62717782 | G80: 42.49435402 | H80: 181.2790216
B81: 5.63617782 | C81: 5973.191734 | D81: 6116.598889 | E81: 412.9149722 | F81: 2.63517782 | G81: 40.17723385 | H81: 180.57276
B82: 5.64417782 | C82: 5926.626467 | D82: 6097.523187 | E82: 412.4380797 | F82: 2.64317782 | G82: 38.76197084 | H82: 179.8479184
B83: 5.65217782 | C83: 6010.86515 | D83: 6078.874854 | E83: 411.9718713 | F83: 2.65117782 | G83: 38.80517077 | H83: 179.2556712
B84: 5.66017782 | C84: 5888.502525 | D84: 6054.369052 | E84: 411.3592263 | F84: 2.65917782 | G84: 39.58823177 | H84: 178.8086819
B85: 5.66817782 | C85: 5867.944125 | D85: 6019.478984 | E85: 410.4869746 | F85: 2.66717782 | G85: 38.89902492 | H85: 178.4941811
B86: 5.67617782 | C86: 5951.921879 | D86: 5970.343678 | E86: 409.2585919 | F86: 2.67517782 | G86: 36.38412783 | H86: 178.3788896
B87: 5.68417782 | C87: 5731.617696 | D87: 5905.731974 | E87: 407.6432993 | F87: 2.68317782 | G87: 37.31686271 | H87: 178.4764782
B88: 5.69217782 | C88: 5676.367802 | D88: 5829.160567 | E88: 405.7290142 | F88: 2.69117782 | G88: 41.17239243 | H88: 178.6044149
B89: 5.70017782 | C89: 5682.07408 | D89: 5748.30416 | E89: 403.707604 | F89: 2.69917782 | G89: 39.47868598 | H89: 178.5414892
B90: 5.70817782 | C90: 5408.734221 | D90: 5673.964283 | E90: 401.8491071 | F90: 2.70717782 | G90: 37.1275856 | H90: 178.3026004
B91: 5.71617782 | C91: 5547.479298 | D91: 5618.078869 | E91: 400.4519717 | F91: 2.71517782 | G91: 37.37324426 | H91: 178.1017692
B92: 5.72417782 | C92: 5227.287282 | D92: 5585.812949 | E92: 399.6453237 | F92: 2.72317782 | G92: 37.24638094 | H92: 178.0170025
B93: 5.73217782 | C93: 5496.000381 | D93: 5566.581102 | E93: 399.1645275 | F93: 2.73117782 | G93: 39.60996632 | H93: 177.8211377
B94: 5.74017782 | C94: 5624.884601 | D94: 5538.70791 | E94: 398.4676978 | F94: 2.73917782 | G94: 39.29279142 | H94: 177.2467304
B95: 5.74817782 | C95: 5205.713181 | D95: 5488.156282 | E95: 397.203907 | F95: 2.74717782 | G95: 36.76540186 | H95: 176.3719605
B96: 5.75617782 | C96: 5414.146993 | D96: 5421.431893 | E96: 395.5357973 | F96: 2.75517782 | G96: 31.4002585 | H96: 175.5970614
B97: 5.76417782 | C97: 5064.148681 | D97: 5359.470196 | E97: 393.9867549 | F97: 2.76317782 | G97: 34.82316259 | H97: 175.189326
B98: 5.77217782 | C98: 5170.877078 | D98: 5320.460069 | E98: 393.0115017 | F98: 2.77117782 | G98: 37.63810214 | H98: 174.9923697
B99: 5.78017782 | C99: 5038.307465 | D99: 5305.929953 | E99: 392.6482488 | F99: 2.77917782 | G99: 35.02628137 | H99: 174.6794546
B100: 5.78817782 | C100: 5313.674865 | D100: 5299.250325 | E100: 392.4812581 | F100: 2.78717782 | G100: 33.71356549 | H100: 174.1545418
B101: 5.79617782 | C101: 5173.274395 | D101: 5278.200191 | E101: 391.9550048 | F101: 2.79517782 | G101: 32.49722849 | H101: 173.5732928
B102: 5.80417782 | C102: 5131.578372 | D102: 5231.716437 | E102: 390.7929109 | F102: 2.80317782 | G102: 33.88502934 | H102: 173.0816475
B103: 5.81217782 | C103: 5038.174282 | D103: 5166.341907 | E103: 389.1585477 | F103: 2.81117782 | G103: 32.18856148 | H103: 172.6815846
B104: 5.82017782 | C104: 4915.728095 | D104: 5099.122158 | E104: 387.4780539 | F104: 2.81917782 | G104: 32.69387718 | H104: 172.294865
B105: 5.82817782 | C105: 4823.923235 | D105: 5046.313901 | E105: 386.1578475 | F105: 2.82717782 | G105: 31.47277074 | H105: 171.8274528
B106: 5.83617782 | C106: 4902.146006 | D106: 5017.182511 | E106: 385.4295628 | F106: 2.83517782 | G106: 32.15578441 | H106: 171.188832
B107: 5.84417782 | C107: 4796.301033 | D107: 5013.378223 | E107: 385.3344556 | F107: 2.84317782 | G107: 31.32883291 | H107: 170.364626
B108: 5.85217782 | C108: 4820.471448 | D108: 5028.916803 | E108: 385.7229201 | F108: 2.85117782 | G108: 28.41911284 | H108: 169.5031471
B109: 5.86017782 | C109: 5018.783631 | D109: 5049.82745 | E109: 386.2456862 | F109: 2.85917782 | G109: 27.69187859 | H109: 168.8567522
B110: 5.86817782 | C110: 4940.5774 | D110: 5057.518678 | E110: 386.4379669 | F110: 2.86717782 | G110: 27.90030907 | H110: 168.5836025
B111: 5.87617782 | C111: 4918.975254 | D111: 5037.258171 | E111: 385.9314543 | F111: 2.87517782 | G111: 28.57901232 | H111: 168.6210333
B112: 5.88417782 | C112: 5006.57048 | D112: 4988.517488 | E112: 384.7129372 | F112: 2.88317782 | G112: 29.55344033 | H112: 168.7586022
B113: 5.89217782 | C113: 4731.98803 | D113: 4929.084417 | E113: 383.2271104 | F113: 2.89117782 | G113: 28.70670109 | H113: 168.7989518
B114: 5.90017782 | C114: 4509.567496 | D114: 4882.454528 | E114: 382.0613632 | F114: 2.89917782 | G114: 29.11723986 | H114: 168.6461903
B115: 5.90817782 | C115: 4735.218229 | D115: 4855.357125 | E115: 381.3839281 | F115: 2.90717782 | G115: 28.79917157 | H115: 168.3151224
B116: 5.91617782 | C116: 4950.085769 | D116: 4833.103846 | E116: 380.8275962 | F116: 2.91517782 | G116: 27.79647919 | H116: 167.9287682
B117: 5.92417782 | C117: 4523.69615 | D117: 4799.336158 | E117: 379.9834039 | F117: 2.92317782 | G117: 26.73288223 | H117: 167.6783528
B118: 5.93217782 | C118: 4592.567233 | D118: 4750.183728 | E118: 378.7545932 | F118: 2.93117782 | G118: 26.72765065 | H118: 167.6860592
B119: 5.94017782 | C119: 4623.454696 | D119: 4688.578403 | E119: 377.2144601 | F119: 2.93917782 | G119: 27.71753844 | H119: 167.8618647
B120: 5.94817782 | C120: 4578.592453 | D120: 4621.301878 | E120: 375.5325469 | F120: 2.94717782 | G120: 30.21032904 | H120: 167.9437122
B121: 5.95617782 | C121: 4292.590763 | D121: 4565.566352 | E121: 374.1391588 | F121: 2.95517782 | G121: 27.61560595 | H121: 167.726411
B122: 5.96417782 | C122: 4159.70271 | D122: 4540.539657 | E122: 373.5134914 | F122: 2.96317782 | G122: 27.70309428 | H122: 167.2373419
B123: 5.97217782 | C123: 4489.742538 | D123: 4543.564122 | E123: 373.5891031 | F123: 2.97117782 | G123: 25.47262429 | H123: 166.6774437
B124: 5.98017782 | C124: 4584.089503 | D124: 4546.717784 | E124: 373.6679446 | F124: 2.97917782 | G124: 26.54777264 | H124: 166.2292161
B125: 5.98817782 | C125: 4427.75975 | D125: 4524.000201 | E125: 373.100005 | F125: 2.98717782 | G125: 25.27936235 | H125: 165.938281
B126: 5.99617782 | C126: 4234.057116 | D126: 4475.454138 | E126: 371.8863534 | F126: 2.99517782 | G126: 26.04024843 | H126: 165.7287633
B127: 6.00417782 | C127: 4398.01092 | D127: 4424.417721 | E127: 370.610443 | F127: 3.00317782 | G127: 25.7564821 | H127: 165.4853273
B128: 6.01217782 | C128: 4074.633829 | D128: 4398.112449 | E128: 369.9528112 | F128: 3.01117782 | G128: 25.68629488 | H128: 165.1354653
B129: 6.02017782 | C129: 4089.859428 | D129: 4406.801769 | E129: 370.1700442 | F129: 3.01917782 | G129: 24.2959089 | H129: 164.6881269
B130: 6.02817782 | C130: 4446.773414 | D130: 4432.94329 | E130: 370.8235823 | F130: 3.02717782 | G130: 24.2735149 | H130: 164.2052644
B131: 6.03617782 | C131: 4481.133588 | D131: 4443.77392 | E131: 371.094348 | F131: 3.03517782 | G131: 23.5984424 | H131: 163.7407817
B132: 6.04417782 | C132: 4269.812493 | D132: 4420.612982 | E132: 370.5153245 | F132: 3.04317782 | G132: 23.26007492 | H132: 163.3135215
B133: 6.05217782 | C133: 4193.735742 | D133: 4374.339775 | E133: 369.3584944 | F133: 3.05117782 | G133: 23.18209059 | H133: 162.9277829
B134: 6.06017782 | C134: 4186.998778 | D134: 4332.547205 | E134: 368.3136801 | F134: 3.05917782 | G134: 21.92837647 | H134: 162.591281
B135: 6.06817782 | C135: 4046.048067 | D135: 4314.509451 | E135: 367.8627363 | F135: 3.06717782 | G135: 22.57740136 | H135: 162.2980306
B136: 6.07617782 | C136: 4105.946735 | D136: =$A$2*(C130+C142)+$A$3*(C131+C141)+$A$4*(C132+C140)+$A$5*(C133+C139)+$A$6*(C134+C138)+$A$7*(C135+C137)+$A$8*C136+$H$1 -> 4314.405711 | E136: 367.8601428 | F136: 3.07517782 | G136: 22.01158418 | H136: =$A$2*(G130+G142)+$A$3*(G131+G141)+$A$4*(G132+G140)+$A$5*(G133+G139)+$A$6*(G134+G138)+$A$7*(G135+G137)+$A$8*G136+$H$1 -> 162.0113583
B137: 6.08417782 | C137: 4400.019619 | D137: 4304.913468 | E137: =D137/$E$1+$E$2 -> 367.6228367 | F137: 3.08317782 | G137: 21.9029612 | H137: 161.6994491
B138: 6.09217782 | C138: 4241.894023 | D138: 4262.896178 | E138: 366.5724044 | F138: 3.09117782 | G138: 21.61445178 | H138: 161.4037851
B139: 6.10017782 | C139: 3967.651522 | D139: 4196.274833 | E139: 364.9068708 | F139: 3.09917782 | G139: 20.43816986 | H139: 161.240361
B140: 6.10817782 | C140: 3906.36171 | D140: 4140.878379 | E140: 363.5219595 | F140: 3.10717782 | G140: 19.66838421 | H140: 161.2846661
B141: 6.11617782 | C141: 3797.814834 | D141: 4125.475196 | E141: 363.1368799 | F141: 3.11517782 | G141: 23.25391033 | H141: 161.462411
B142: 6.12417782 | C142: 3956.615321 | D142: 4141.813673 | E142: 363.5453418 | F142: 3.12317782 | G142: 21.43542385 | H142: 161.6023511
B143: 6.13217782 | C143: 4416.345101 | D143: 4153.921031 | E143: 363.8480258 | F143: 3.13117782 | G143: 22.07128254 | H143: 161.5945521
B144: 6.14017782 | C144: 3865.289837 | D144: 4135.199241 | E144: 363.379981 | F144: 3.13917782 | G144: 21.19042941 | H144: 161.4523104
B145: 6.14817782 | C145: 3942.31176 | D145: 4089.804238 | E145: 362.2451059 | F145: 3.14717782 | G145: 21.22935868 | H145: 161.2285493
B146: 6.15617782 | C146: 3858.969312 | D146: 4041.64538 | E146: 361.0411345 | F146: 3.15517782 | G146: 21.3132179 | H146: 160.9304922
B147: 6.16417782 | C147: 3969.995356 | D147: 4015.421255 | E147: 360.3855314 | F147: 3.16317782 | G147: 20.7453621 | H147: 160.5389898
B148: 6.17217782 | C148: 3539.034855 | D148: 4025.324131 | E148: 360.6331033 | F148: 3.17117782 | G148: 20.35919284 | H148: 160.079745
B149: 6.18017782 | C149: 3977.435623 | D149: 4064.191698 | E149: 361.6047924 | F149: 3.17917782 | G149: 18.87409991 | H149: 159.6324994
B150: 6.18817782 | C150: 4140.29986 | D150: 4102.078049 | E150: 362.5519512 | F150: 3.18717782 | G150: 18.99944118 | H150: 159.2575262
B151: 6.19617782 | C151: 4113.160562 | D151: 4111.310697 | E151: 362.7827674 | F151: 3.19517782 | G151: 19.36642569 | H151: 158.9466592
B152: 6.20417782 | C152: 3897.64711 | D152: 4096.119484 | E152: 362.4029871 | F152: 3.20317782 | G152: 19.0430814 | H152: 158.6783887
B153: 6.21217782 | C153: 3729.426905 | D153: 4086.520673 | E153: 362.1630168 | F153: 3.21117782 | G153: 17.57012116 | H153: 158.4861412
B154: 6.22017782 | C154: 3952.230973 | D154: 4102.786407 | E154: 362.5696602 | F154: 3.21917782 | G154: 17.74462267 | H154: 158.4176998
B155: 6.22817782 | C155: 4126.444268 | D155: 4136.642512 | E155: 363.4160628 | F155: 3.22717782 | G155: 19.23274463 | H155: 158.4519856
B156: 6.23617782 | C156: 4022.386535 | D156: 4165.741508 | E156: 364.1435377 | F156: 3.23517782 | G156: 18.76204349 | H156: 158.5170023
B157: 6.24417782 | C157: 4015.225202 | D157: 4171.733807 | E157: 364.2933452 | F157: 3.24317782 | G157: 17.84461724 | H157: 158.5777332
B158: 6.25217782 | C158: 4118.435374 | D158: 4141.639813 | E158: 363.5409953 | F158: 3.25117782 | G158: 18.91569025 | H158: 158.6591477
B159: 6.26017782 | C159: 4084.123847 | D159: 4069.110989 | E159: 361.7277747 | F159: 3.25917782 | G159: 18.98559765 | H159: 158.7869824
B160: 6.26817782 | C160: 3845.938367 | D160: 3967.584875 | E160: 359.1896219 | F160: 3.26717782 | G160: 17.95693783 | H160: 158.9190134
B161: 6.27617782 | C161: 3542.154624 | D161: 3873.847659 | E161: 356.8461915 | F161: 3.27517782 | G161: 20.18782866 | H161: 158.9242502
B162: 6.28417782 | C162: 3508.10561 | D162: 3823.256242 | E162: 355.581406 | F162: 3.28317782 | G162: 19.47800023 | H162: 158.6650627
B163: 6.29217782 | C163: 3647.588243 | D163: 3818.454573 | E163: 355.4613643 | F163: 3.29117782 | G163: 19.13670696 | H163: 158.1617299
B164: 6.30017782 | C164: 3881.313524 | D164: 3828.964125 | E164: 355.7241031 | F164: 3.29917782 | G164: 15.6010698 | H164: 157.6587775
B165: 6.30817782 | C165: 3694.779568 | D165: 3823.91524 | E165: 355.597881 | F165: 3.30717782 | G165: 16.69346792 | H165: 157.4603309
B166: 6.31617782 | C166: 3720.183564 | D166: 3801.455311 | E166: 355.0363828 | F166: 3.31517782 | G166: 17.12193704 | H166: 157.6848152
B167: 6.32417782 | C167: 3446.464593 | D167: 3784.31726 | E167: 354.6079315 | F167: 3.32317782 | G167: 18.12188389 | H167: 158.1988186
B168: 6.33217782 | C168: 3591.680419 | D168: 3790.211985 | E168: 354.7552996 | F168: 3.33117782 | G168: 19.9408723 | H168: 158.7666342
B169: 6.34017782 | C169: 3773.736493 | D169: 3810.638152 | E169: 355.2659538 | F169: 3.33917782 | G169: 18.69374497 | H169: 159.2245306
B170: 6.34817782 | C170: 3713.08373 | D170: 3818.012692 | E170: 355.4503173 | F170: 3.34717782 | G170: 20.0367041 | H170: 159.5255881
B171: 6.35617782 | C171: 3804.525992 | D171: 3790.246079 | E171: 354.756152 | F171: 3.35517782 | G171: 19.88212947 | H171: 159.6838417
B172: 6.36417782 | C172: 3577.920286 | D172: 3728.983881 | E172: 353.224597 | F172: 3.36317782 | G172: 19.84678803 | H172: 159.7256875
B173: 6.37217782 | C173: 3497.085106 | D173: 3658.488994 | E173: 351.4622249 | F173: 3.37117782 | G173: 19.68617936 | H173: 159.6862735
B174: 6.38017782 | C174: 3288.172354 | D174: 3608.839449 | E174: 350.2209862 | F174: 3.37917782 | G174: 19.71946497 | H174: 159.6174255
B175: 6.38817782 | C175: 3460.47172 | D175: 3597.486124 | E175: 349.9371531 | F175: 3.38717782 | G175: 19.27059085 | H175: 159.5804692
B176: 6.39617782 | C176: 3437.629118 | D176: 3621.712408 | E176: 350.5428102 | F176: 3.39517782 | G176: 19.43367155 | H176: 159.6212366
B177: 6.40417782 | C177: 3480.111431 | D177: 3662.957491 | E177: 351.5739373 | F177: 3.40317782 | G177: 19.60139319 | H177: 159.7343824
B178: 6.41217782 | C178: 3682.550634 | D178: 3697.093848 | E178: 352.4273462 | F178: 3.41117782 | G178: 19.90452725 | H178: 159.8481272
B179: 6.42017782 | C179: 3657.017994 | D179: 3706.553537 | E179: 352.6638384 | F179: 3.41917782 | G179: 20.64935138 | H179: 159.8712333
B180: 6.42817782 | C180: 3520.329923 | D180: 3688.36444 | E180: 352.209111 | F180: 3.42717782 | G180: 20.04527854 | H180: 159.7823149
B181: 6.43617782 | C181: 3500.036223 | D181: 3651.973807 | E181: 351.2993452 | F181: 3.43517782 | G181: 18.8985769 | H181: 159.6615672
B182: 6.44417782 | C182: 3519.955376 | D182: 3612.246281 | E182: 350.306157 | F182: 3.44317782 | G182: 19.28658193 | H182: 159.6095539
B183: 6.45217782 | C183: 3411.60697 | D183: 3585.823285 | E183: 349.6455821 | F183: 3.45117782 | G183: 19.79822555 | H183: 159.6449734
B184: 6.46017782 | C184: 3252.981003 | D184: 3584.749378 | E184: 349.6187344 | F184: 3.45917782 | G184: 20.20021683 | H184: 159.7056512
B185: 6.46817782 | C185: 3447.462594 | D185: 3603.597643 | E185: 350.0899411 | F185: 3.46717782 | G185: 19.11949996 | H185: 159.739895
B186: 6.47617782 | C186: 3746.783412 | D186: 3617.967465 | E186: 350.4491866 | F186: 3.47517782 | G186: 20.81307003 | H186: 159.772835
B187: 6.48417782 | C187: 3425.662458 | D187: 3606.159488 | E187: 350.1539872 | F187: 3.48317782 | G187: 18.25588369 | H187: 159.8776031
B188: 6.49217782 | C188: 3442.98838 | D188: 3572.347526 | E188: 349.3086881 | F188: 3.49117782 | G188: 20.31381942 | H188: 160.0875293
B189: 6.50017782 | C189: 3381.387403 | D189: 3543.666855 | E189: 348.5916714 | F189: 3.49917782 | G189: 20.95420117 | H189: 160.3474092
B190: 6.50817782 | C190: 3144.077105 | D190: 3543.869604 | E190: 348.5967401 | F190: 3.50717782 | G190: 20.35148641 | H190: 160.5549334
B191: 6.51617782 | C191: 3527.238302 | D191: 3570.531669 | E191: 349.2632917 | F191: 3.51517782 | G191: 21.10250809 | H191: 160.6352692
B192: 6.52417782 | C192: 3574.450436 | D192: 3598.427323 | E192: 349.9606831 | F192: 3.52317782 | G192: 20.79879994 | H192: 160.577555
B193: 6.53217782 | C193: 3547.665041 | D193: 3604.558668 | E193: 350.1139667 | F193: 3.53117782 | G193: 20.50117835 | H193: 160.4380741
B194: 6.54017782 | C194: 3338.865893 | D194: 3586.740324 | E194: 349.6685081 | F194: 3.53917782 | G194: 20.05191074 | H194: 160.3238122
B195: 6.54817782 | C195: 3512.095628 | D195: 3557.881209 | E195: 348.9470302 | F195: 3.54717782 | G195: 19.57995154 | H195: 160.3300209
B196: 6.55617782 | C196: 3306.297503 | D196: 3527.736643 | E196: 348.1934161 | F196: 3.55517782 | G196: 20.33728358 | H196: 160.4559138
B197: 6.56417782 | C197: 3350.344011 | D197: 3492.819897 | E197: 347.3204974 | F197: 3.56317782 | G197: 21.35596967 | H197: 160.6030374
B198: 6.57217782 | C198: 3467.882253 | D198: 3442.75955 | E198: 346.0689887 | F198: 3.57117782 | G198: 21.13106468 | H198: 160.6902162
B199: 6.58017782 | C199: 3240.180487 | D199: 3377.151557 | E199: 344.4287889 | F199: 3.57917782 | G199: 20.08704009 | H199: 160.74994
B200: 6.58817782 | C200: 3076.370799 | D200: =$A$2*(C194+C206)+$A$3*(C195+C205)+$A$4*(C196+C204)+$A$5*(C197+C203)+$A$6*(C198+C202)+$A$7*(C199+C201)+$A$8*C200+$H$1 -> 3315.17852 | E200: 342.879463 | F200: 3.58717782 | G200: 20.23102077 | H200: =$A$2*(G194+G206)+$A$3*(G195+G205)+$A$4*(G196+G204)+$A$5*(G197+G203)+$A$6*(G198+G202)+$A$7*(G199+G201)+$A$8*G200+$H$1 -> 160.8732022
... 10801 more rows

Sheet XRD-vermiculite
B1: Vermiculite | D1: 140 | E1: 50 | F1: Theta2 | G1: Org200m | H1: 145 | J1: 260 | L1: 200
A2: 0.000244140625 | B2: 2.022 | C2: 16948 | F2: 2.00317782 | G2: 100 | H2: 0.6 | J2: Acid leached | L2: Glass foam
A3: 0.0029296875 | B3: 2.039 | C3: 17775 | F3: 2.01117782 | G3: 95.84027376 | Q3: Element | R3: Kα
A4: 0.01611328125 | B4: 2.056 | C4: 16454 | F4: 2.01917782 | G4: 91.91719532 | J4: Phlogopite | R4: (weight average)
A5: 0.0537109375 | B5: 2.073 | C5: 15630 | F5: 2.02717782 | G5: 89.58945276 | J5: d-spacing calculations | P5: 2q, ° | Q5: Cr | R5: 0.2291
A6: 0.1208496094 | B6: 2.09 | C6: 16369 | F6: 2.03517782 | G6: 87.70738301 | J6: 2q/° | K6: Counts | L6: q/rad | M6: d/nm | Q6: Fe | R6: 0.193736
A7: 0.193359375 | B7: 2.107 | C7: 16099 | F7: 2.04317782 | G7: 85.36032644 | J7: =F838 -> 8.69117782 | K7: =H838 -> 196.9611275 | L7: =PI()*J7/180/2 -> 0.07584483442 | M7: =$R$7/2/SIN(L7) -> 1.181344491 | Q7: Co | R7: 0.179026
A8: 0.2255859375 | B8: 2.124 | C8: 15312 | D8: =$A$2*(C2+C14)+$A$3*(C3+C13)+$A$4*(C4+C12)+$A$5*(C5+C11)+$A$6*(C6+C10)+$A$7*(C7+C9)+$A$8*C8+$D$1 -> 16240.74756 | E8: =D8/$E$1+$E$2 -> 324.8149512 | F8: 2.05117782 | G8: 87.59229238 | H8: =$H$2*($A$2*(G2+G14)+$A$3*(G3+G13)+$A$4*(G4+G12)+$A$5*(G5+G11)+$A$6*(G6+G10)+$A$7*(G7+G9)+$A$8*G8)+$H$1 -> 197.5054333 | J8: =F1033 -> 10.25117782 | K8: =H1033 -> 299.5652122 | L8: =PI()*J8/180/2 -> 0.08945840258 | M8: =$R$7/2/SIN(L8) -> 1.001946173 | Q8: Cu | R8: 0.154184
A9: 0.193359375 | B9: 2.141 | C9: 16245 | D9: =$A$2*(C3+C15)+$A$3*(C4+C14)+$A$4*(C5+C13)+$A$5*(C6+C12)+$A$6*(C7+C11)+$A$7*(C8+C10)+$A$8*C9+$D$1 -> 16478.5647 | E9: =D9/$E$1+$E$2 -> 329.5712939 | F9: 2.05917782 | G9: 86.74832428 | H9: =$H$2*($A$2*(G3+G15)+$A$3*(G4+G14)+$A$4*(G5+G13)+$A$5*(G6+G12)+$A$6*(G7+G11)+$A$7*(G8+G10)+$A$8*G9)+$H$1 -> 197.7135333 | J9: =F3485 -> 29.86717782 | K9: =H3485 -> 181.0500906 | L9: =PI()*J9/180/2 -> 0.2606402956 | M9: 0.3473544898 | Q9: Mo | R9: 0.071073
A10: 0.1208496094 | B10: 2.158 | C10: 16179 | D10: 16890.33716 | E10: 337.8067432 | F10: 2.06717782 | G10: 87.92321639 | H10: 198.0324903 | J10: =F3606 -> 30.83517782 | K10: =H3606 -> 245.898218 | L10: 0.2690876892 | M10: 0.3367022906
A11: 0.0537109375 | B11: 2.175 | C11: 17761 | D11: 17403.26123 | E11: 348.0652246 | F11: 2.07517782 | G11: 91.44879424 | H11: 198.131842 | J11: =F6270 -> 52.14717782 | K11: =H6270 -> 161.7272577 | L11: 0.4550699743 | M11: 0.2036584172
A12: 0.01611328125 | B12: 2.192 | C12: 17737 | D12: 17917.05444 | E12: 358.3410889 | F12: 2.08317782 | G12: 90.62078824 | H12: 197.733694 | J12: =F6314 -> 52.49917782 | K12: =H6314 -> 169.8019386 | L12: 0.4581417538 | M12: 0.2023888567
A13: 0.0029296875 | B13: 2.209 | C13: 18403 | D13: 18369.70728 | E13: 367.3941455 | F13: 2.09117782 | G13: 87.11217217 | H13: 196.804775 | J13: Vermiculite
A14: 0.000244140625 | B14: 2.226 | C14: 18956 | D14: 18788.16309 | E14: 375.7632617 | F14: 2.09917782 | G14: 83.26467821 | H14: 195.5995354 | J14: =B658 -> 13.174 | K14: =H6316 -> 169.2177492 | L14: =PI()*J14/180/2 -> 0.1149648378 | M14: 0.7803297695
B15: 2.243 | C15: 18616 | D15: 19280.22583 | E15: 385.6045166 | F15: 2.10717782 | G15: 80.94355928 | H15: 194.484487 | J15: =B3231 -> 56.915 | K15: 168.3815463 | L15: 0.4966770719 | M15: 0.1878525317
B16: 2.26 | C16: 18682 | D16: 19916.60742 | E16: 398.3321484 | F16: 2.11517782 | G16: 80.06987261 | H16: 193.7045415
B17: 2.277 | C17: 20530 | D17: 20560.75635 | E17: 411.215127 | F17: 2.12317782 | G17: 79.38509796 | H17: 193.2764814
B18: 2.294 | C18: 23173 | D18: 20870.41211 | E18: 417.4082422 | F18: 2.13117782 | G18: 80.87984446 | H18: 193.0394545
B19: 2.311 | C19: 22549 | D19: 20592.27319 | E19: 411.8454639 | F19: 2.13917782 | G19: 80.46779741 | H19: 192.7772774
B20: 2.328 | C20: 18987 | D20: 19887.06641 | E20: 397.7413281 | F20: 2.14717782 | G20: 78.93882557 | H20: 192.3253688
B21: 2.345 | C21: 17153 | D21: 19281.07202 | E21: 385.6214404 | F21: 2.15517782 | G21: 79.40900148 | H21: 191.6292125
B22: 2.362 | C22: 16958 | D22: 19229.35718 | E22: 384.5871436 | F22: 2.16317782 | G22: 76.52798519 | H22: 190.7499421
B23: 2.379 | C23: 19606 | D23: 19727.27368 | E23: 394.5454736 | F23: 2.17117782 | G23: 72.41585909 | H23: 189.8074776 | J23: Phlogopite (CuKa) | N23: =SUM(N24:N32) -> 7123.787267
B24: 2.396 | C24: 21844 | D24: 20352.14478 | E24: 407.0428955 | F24: 2.17917782 | G24: 74.73108532 | H24: 188.9011029 | J24: 7.483217035 | K24: =K7 -> 196.9611275 | L24: =PI()*J24/180/2 -> 0.06530338795 | M24: =$R$8/2/SIN(L24) -> 1.18136016 | N24: =100000*(M7-M24)^2 -> 2.455154807e-05
B25: 2.413 | C25: 21975 | D25: 20649.9375 | E25: 412.99875 | F25: 2.18717782 | G25: 71.52454957 | H25: 188.0956978 | J25: 8.825578192 | K25: 299.5652122 | L25: =PI()*J25/180/2 -> 0.07701769892 | M25: =$R$8/2/SIN(L25) -> 1.001954987 | N25: 7.769655719e-06
B26: 2.43 | C26: 20483 | D26: 20462.75171 | E26: 409.2550342 | F26: 2.19517782 | G26: 69.78639299 | H26: 187.4495041 | J26: 25.65011488 | K26: 181.0500906 | L26: 0.2238394791 | M26: 0.3473004605 | N26: 0.000291916615
B27: 2.447 | C27: 19628 | D27: 19940.49341 | E27: 398.8098682 | F27: 2.20317782 | G27: 67.38925599 | H27: 186.9639837 | J27: 26.4665067 | K27: 245.898218 | L27: 0.2309638417 | M27: 0.3367699993 | N27: 0.0004584469153
B28: 2.464 | C28: 19188 | D28: 19340.97925 | E28: 386.819585 | F28: 2.21117782 | G28: 72.20063683 | H28: 186.5131022 | J28: 44.45985975 | K28: 161.7272577 | L28: 0.3879854688 | M28: 0.2037722196 | N28: 0.001295098663
B29: 2.481 | C29: 18041 | D29: 18855.01318 | E29: 377.1002637 | F29: 2.21917782 | G29: 69.7035441 | H29: 185.9419144 | J29: 44.75910211 | K29: 169.8019386 | L29: 0.3905968511 | M29: 0.20247918 | N29: 0.0008158289354
B30: 2.498 | C30: 18019 | D30: 18551.18799 | E30: 371.0237598 | F30: 2.22717782 | G30: 66.49520034 | H30: 185.263169 | J30: Silica (Cu Ka)
B31: 2.515 | C31: 18445 | D31: 18407.97314 | E31: 368.1594629 | F31: 2.23517782 | G31: 62.50402979 | H31: 184.6629574 | J31: 8.826637089 | K31: =K14 -> 169.2177492 | L31: 0.07702693954 | M31: 1.001835025 | N31: =100000*(M14-M31)^2 -> 4906.457799
B32: 2.532 | C32: 18298 | D32: 18386.29492 | E32: 367.7258984 | F32: 2.24317782 | G32: 67.35666859 | H32: 184.3023588 | J32: 26.46735208 | K32: =K15 -> 168.3815463 | L32: 0.230971219 | M32: 0.3367594347 | N32: =100000*(M15-M32)^2 -> 2217.326574
B33: 2.549 | C33: 17746 | D33: 18481.41675 | E33: 369.628335 | F33: 2.25117782 | G33: 64.30211073 | H33: 184.2007088
B34: 2.566 | C34: 18207 | D34: 18705.78149 | E34: 374.1156299 | F34: 2.25917782 | G34: 64.61332973 | H34: 184.298721
B35: 2.583 | C35: 19107 | D35: 19054.6416 | E35: 381.092832 | F35: 2.26717782 | G35: 65.8661664 | H35: 184.5218581
B36: 2.6 | C36: 19540 | D36: 19533.50977 | E36: 390.6701953 | F36: 2.27517782 | G36: 66.50199208 | H36: 184.7573504
B37: 2.617 | C37: 19148 | D37: 20184.07935 | E37: 403.6815869 | F37: 2.28317782 | G37: 67.67084225 | H37: 184.8491644
B38: 2.634 | C38: 19927 | D38: 20981.03491 | E38: 419.6206982 | F38: 2.29117782 | G38: 67.13775028 | H38: 184.6695826
B39: 2.651 | C39: 22477 | D39: 21677.75806 | E39: 433.5551611 | F39: 2.29917782 | G39: 65.99438452 | H39: 184.1964568
B40: 2.668 | C40: 24487 | D40: 21864.40991 | E40: 437.2881982 | F40: 2.30717782 | G40: 64.41732753 | H40: 183.5150198
B41: 2.685 | C41: 22885 | D41: 21300.03735 | E41: 426.0007471 | F41: 2.31517782 | G41: 61.94561785 | H41: 182.7407589
B42: 2.702 | C42: 19717 | D42: 20199.23999 | E42: 403.9847998 | F42: 2.32317782 | G42: 62.03870611 | H42: 181.9415725
B43: 2.719 | C43: 16902 | D43: 19145.59448 | E43: 382.9118896 | F43: 2.33117782 | G43: 61.11190431 | H43: 181.1450907
B44: 2.736 | C44: 16668 | D44: 18722.7583 | E44: 374.455166 | F44: 2.33917782 | G44: 57.86150687 | H44: 180.4066543
B45: 2.753 | C45: 18306 | D45: 19227.25415 | E45: 384.545083 | F45: 2.34717782 | G45: 57.05804505 | H45: 179.8188675
B46: 2.77 | C46: 18820 | D46: 20602.73096 | E46: 412.0546191 | F46: 2.35517782 | G46: 56.86425909 | H46: 179.4266704
B47: 2.787 | C47: 21309 | D47: 22435.94727 | E47: 448.7189453 | F47: 2.36317782 | G47: 56.83366889 | H47: 179.1583363
B48: 2.804 | C48: 26524 | D48: 23987.86914 | E48: 479.7573828 | F48: 2.37117782 | G48: 58.23301904 | H48: 178.869525
B49: 2.821 | C49: 29026 | D49: 24486.85352 | E49: 489.7370703 | F49: 2.37917782 | G49: 54.58361134 | H49: 178.4624991
B50: 2.838 | C50: 25826 | D50: 23662.53394 | E50: 473.2506787 | F50: 2.38717782 | G50: 57.38700077 | H50: 177.9718105
B51: 2.855 | C51: 20329 | D51: 22017.36035 | E51: 440.347207 | F51: 2.39517782 | G51: 50.94848321 | H51: 177.5380564
B52: 2.872 | C52: 17493 | D52: 20453.5957 | E52: 409.0719141 | F52: 2.40317782 | G52: 53.54343102 | H52: 177.2773303
B53: 2.889 | C53: 17565 | D53: 19567.74902 | E53: 391.3549805 | F53: 2.41117782 | G53: 54.01314249 | H53: 177.1645506
B54: 2.906 | C54: 19959 | D54: 19278.22314 | E54: 385.5644629 | F54: 2.41917782 | G54: 54.08676768 | H54: 177.0619379
B55: 2.923 | C55: 19906 | D55: 19058.44629 | E55: 381.1689258 | F55: 2.42717782 | G55: 53.96804563 | H55: 176.8627705
B56: 2.94 | C56: 20594 | D56: 18460.97803 | E56: 369.2195605 | F56: 2.43517782 | G56: 51.96873412 | H56: 176.5780971
B57: 2.957 | C57: 16755 | D57: 17446.40479 | E57: 348.9280957 | F57: 2.44317782 | G57: 51.45138125 | H57: 176.2749249
B58: 2.974 | C58: 14917 | D58: 16312.1145 | E58: 326.24229 | F58: 2.45117782 | G58: 52.35686965 | H58: 175.9615013
B59: 2.991 | C59: 15144 | D59: 15403.99658 | E59: 308.0799316 | F59: 2.45917782 | G59: 51.23900074 | H59: 175.5665311
B60: 3.008 | C60: 13867 | D60: 14911.51782 | E60: 298.2303564 | F60: 2.46717782 | G60: 51.19690781 | H60: 175.0391276
B61: 3.025 | C61: 13676 | D61: 14838.60132 | E61: 296.7720264 | F61: 2.47517782 | G61: 49.11208729 | H61: 174.45208
B62: 3.042 | C62: 15112 | D62: 15055.31543 | E62: 301.1063086 | F62: 2.48317782 | G62: 45.79834797 | H62: 173.9721825
B63: 3.059 | C63: 15737 | D63: 15373.35278 | E63: 307.4670557 | F63: 2.49117782 | G63: 47.32124145 | H63: 173.7103474
B64: 3.076 | C64: 15627 | D64: 15633.46411 | E64: 312.6692822 | F64: 2.49917782 | G64: 48.72337937 | H64: 173.6246352
B65: 3.093 | C65: 15646 | D65: 15737.71753 | E65: 314.7543506 | F65: 2.50717782 | G65: 47.5876272 | H65: 173.5866531
B66: 3.11 | C66: 15825 | D66: 15605.18945 | E66: 312.1037891 | F66: 2.51517782 | G66: 47.86226251 | H66: 173.5048879
B67: 3.127 | C67: 16304 | D67: 15165.38062 | E67: 303.3076123 | F67: 2.52317782 | G67: 46.23207713 | H67: 173.3542757
B68: 3.144 | C68: 14944 | D68: 14452.88257 | E68: 289.0576514 | F68: 2.53117782 | G68: 49.52932075 | H68: 173.1228813
B69: 3.161 | C69: 12252 | D69: 13659.61499 | E69: 273.1922998 | F69: 2.53917782 | G69: 43.38344099 | H69: 172.7794993
B70: 3.178 | C70: 11935 | D70: 13007.23853 | E70: 260.1447705 | F70: 2.54717782 | G70: 49.14104625 | H70: 172.3130714
B71: 3.195 | C71: 12732 | D71: 12570.55591 | E71: 251.4111182 | F71: 2.55517782 | G71: 43.776714 | H71: 171.8038455
B72: 3.212 | C72: 12626 | D72: 12280.0354 | E72: 245.600708 | F72: 2.56317782 | G72: 41.45265608 | H72: 171.4130296
B73: 3.229 | C73: 11379 | D73: =$A$2*(C67+C79)+$A$3*(C68+C78)+$A$4*(C69+C77)+$A$5*(C70+C76)+$A$6*(C71+C75)+$A$7*(C72+C74)+$A$8*C73+$D$1 -> 12075.0957 | E73: =D73/$E$1+$E$2 -> 241.5019141 | F73: 2.57117782 | G73: 43.17388352 | H73: =$H$2*($A$2*(G67+G79)+$A$3*(G68+G78)+$A$4*(G69+G77)+$A$5*(G70+G76)+$A$6*(G71+G75)+$A$7*(G72+G74)+$A$8*G73)+$H$1 -> 171.2389699
B74: 3.246 | C74: 11397 | D74: 11978.49463 | E74: 239.5698926 | F74: 2.57917782 | G74: 44.80252482 | H74: 171.1951415
B75: 3.263 | C75: 11612 | D75: 12015.46338 | E75: 240.3092676 | F75: 2.58717782 | G75: 44.62633941 | H75: 171.0953607
B76: 3.28 | C76: 12156 | D76: 12128.22412 | E76: 242.5644824 | F76: 2.59517782 | G76: 43.50809071 | H76: 170.8578169
B77: 3.297 | C77: 12638 | D77: 12208.91113 | E77: 244.1782227 | F77: 2.60317782 | G77: 41.45352029 | H77: 170.5652323
B78: 3.314 | C78: 12100 | D78: 12194.3811 | E78: 243.8876221 | F78: 2.61117782 | G78: 41.04337982 | H78: 170.3166931
B79: 3.331 | C79: 11868 | D79: 12098.92358 | E79: 241.9784717 | F79: 2.61917782 | G79: 43.26428188 | H79: 170.0848574
B80: 3.348 | C80: 11590 | D80: 11959.83911 | E80: 239.1967822 | F80: 2.62717782 | G80: 42.49435402 | H80: 169.767413
B81: 3.365 | C81: 12147 | D81: 11786.69043 | E81: 235.7338086 | F81: 2.63517782 | G81: 40.17723385 | H81: 169.343656
B82: 3.382 | C82: 11528 | D82: 11586.6355 | E82: 231.73271 | F82: 2.64317782 | G82: 38.76197084 | H82: 168.908751
B83: 3.399 | C83: 10960 | D83: 11414.91455 | E83: 228.298291 | F83: 2.65117782 | G83: 38.80517077 | H83: 168.5534027
B84: 3.416 | C84: 10599 | D84: 11353.94727 | E84: 227.0789453 | F84: 2.65917782 | G84: 39.58823177 | H84: 168.2852091
B85: 3.433 | C85: 11101 | D85: 11430.18359 | E85: 228.6036719 | F85: 2.66717782 | G85: 38.89902492 | H85: 168.0965087
B86: 3.45 | C86: 11818 | D86: 11575.51904 | E86: 231.5103809 | F86: 2.67517782 | G86: 36.38412783 | H86: 168.0273338
B87: 3.467 | C87: 11846 | D87: 11681.98315 | E87: 233.6396631 | F87: 2.68317782 | G87: 37.31686271 | H87: 168.0858869
B88: 3.484 | C88: 11516 | D88: 11679.80737 | E88: 233.5961475 | F88: 2.69117782 | G88: 41.17239243 | H88: 168.1626489
B89: 3.501 | C89: 11752 | D89: 11563.48462 | E89: 231.2696924 | F89: 2.69917782 | G89: 39.47868598 | H89: 168.1248935
B90: 3.518 | C90: 11274 | D90: 11373.91943 | E90: 227.4783887 | F90: 2.70717782 | G90: 37.1275856 | H90: 167.9815603
B91: 3.535 | C91: 10784 | D91: 11174.70459 | E91: 223.4940918 | F91: 2.71517782 | G91: 37.37324426 | H91: 167.8610615
B92: 3.552 | C92: 10771 | D92: 11026.96216 | E92: 220.5392432 | F92: 2.72317782 | G92: 37.24638094 | H92: 167.8102015
B93: 3.569 | C93: 10597 | D93: 10958.7688 | E93: 219.175376 | F93: 2.73117782 | G93: 39.60996632 | H93: 167.6926826
B94: 3.586 | C94: 10779 | D94: 10948.15649 | E94: 218.9631299 | F94: 2.73917782 | G94: 39.29279142 | H94: 167.3480383
B95: 3.603 | C95: 11071 | D95: 10939.82837 | E95: 218.7965674 | F95: 2.74717782 | G95: 36.76540186 | H95: 166.8231763
B96: 3.62 | C96: 10856 | D96: 10887.67969 | E96: 217.7535937 | F96: 2.75517782 | G96: 31.4002585 | H96: 166.3582368
B97: 3.637 | C97: 10728 | D97: 10789.3252 | E97: 215.7865039 | F97: 2.76317782 | G97: 34.82316259 | H97: 166.1135956
B98: 3.654 | C98: 10288 | D98: 10684.19678 | E98: 213.6839355 | F98: 2.77117782 | G98: 37.63810214 | H98: 165.9954218
B99: 3.671 | C99: 10450 | D99: 10621.76196 | E99: 212.4352393 | F99: 2.77917782 | G99: 35.02628137 | H99: 165.8076728
B100: 3.688 | C100: 10320 | D100: 10628.86816 | E100: 212.5773633 | F100: 2.78717782 | G100: 33.71356549 | H100: 165.4927251
B101: 3.705 | C101: 10394 | D101: 10692.40796 | E101: 213.8481592 | F101: 2.79517782 | G101: 32.49722849 | H101: 165.1439757
B102: 3.722 | C102: 10823 | D102: 10759.73901 | E102: 215.1947803 | F102: 2.80317782 | G102: 33.88502934 | H102: 164.8489885
B103: 3.739 | C103: 10923 | D103: 10762.97559 | E103: 215.2595117 | F103: 2.81117782 | G103: 32.18856148 | H103: 164.6089508
B104: 3.756 | C104: 10779 | D104: 10662.69604 | E104: 213.2539209 | F104: 2.81917782 | G104: 32.69387718 | H104: 164.376919
B105: 3.773 | C105: 10294 | D105: 10479.58594 | E105: 209.5917188 | F105: 2.82717782 | G105: 31.47277074 | H105: 164.0964717
B106: 3.79 | C106: 10042 | D106: 10282.79663 | E106: 205.6559326 | F106: 2.83517782 | G106: 32.15578441 | H106: 163.7132992
B107: 3.807 | C107: 9677 | D107: 10140.50488 | E107: 202.8100977 | F107: 2.84317782 | G107: 31.32883291 | H107: 163.2187756
B108: 3.824 | C108: 9754 | D108: 10074.17407 | E108: 201.4834814 | F108: 2.85117782 | G108: 28.41911284 | H108: 162.7018883
B109: 3.841 | C109: 10258 | D109: 10058.45752 | E109: 201.1691504 | F109: 2.85917782 | G109: 27.69187859 | H109: 162.3140513
B110: 3.858 | C110: 9840 | D110: 10062.69409 | E110: 201.2538818 | F110: 2.86717782 | G110: 27.90030907 | H110: 162.1501615
B111: 3.875 | C111: 9714 | D111: 10080.25 | E111: 201.605 | F111: 2.87517782 | G111: 28.57901232 | H111: 162.17262
B112: 3.892 | C112: 10026 | D112: 10110.70825 | E112: 202.214165 | F112: 2.88317782 | G112: 29.55344033 | H112: 162.2551613
B113: 3.909 | C113: 10044 | D113: 10129.38745 | E113: 202.587749 | F113: 2.89117782 | G113: 28.70670109 | H113: 162.2793711
B114: 3.926 | C114: 10254 | D114: 10095.09204 | E114: 201.9018408 | F114: 2.89917782 | G114: 29.11723986 | H114: 162.1877142
B115: 3.943 | C115: 10030 | D115: 9987.303223 | E115: 199.7460645 | F115: 2.90717782 | G115: 28.79917157 | H115: 161.9890734
B116: 3.96 | C116: 9448 | D116: 9822.028564 | E116: 196.4405713 | F116: 2.91517782 | G116: 27.79647919 | H116: 161.7572609
B117: 3.977 | C117: 9570 | D117: 9630.15332 | E117: 192.6030664 | F117: 2.92317782 | G117: 26.73288223 | H117: 161.6070117
B118: 3.994 | C118: 9433 | D118: 9433.495361 | E118: 188.6699072 | F118: 2.93117782 | G118: 26.72765065 | H118: 161.6116355
B119: 4.011 | C119: 8906 | D119: 9245.198975 | E119: 184.9039795 | F119: 2.93917782 | G119: 27.71753844 | H119: 161.7171188
B120: 4.028 | C120: 8903 | D120: 9079.946533 | E120: 181.5989307 | F120: 2.94717782 | G120: 30.21032904 | H120: 161.7662273
B121: 4.045 | C121: 8846 | D121: 8954.740723 | E121: 179.0948145 | F121: 2.95517782 | G121: 27.61560595 | H121: 161.6358466
B122: 4.062 | C122: 8498 | D122: 8880.302246 | E122: 177.6060449 | F122: 2.96317782 | G122: 27.70309428 | H122: 161.3424051
B123: 4.079 | C123: 8634 | D123: 8847.916992 | E123: 176.9583398 | F123: 2.97117782 | G123: 25.47262429 | H123: 161.0064662
B124: 4.096 | C124: 8814 | D124: 8823.062744 | E124: 176.4612549 | F124: 2.97917782 | G124: 26.54777264 | H124: 160.7375296
B125: 4.113 | C125: 8915 | D125: 8763.454834 | E125: 175.2690967 | F125: 2.98717782 | G125: 25.27936235 | H125: 160.5629686
B126: 4.13 | C126: 8454 | D126: 8652.209717 | E126: 173.0441943 | F126: 2.99517782 | G126: 26.04024843 | H126: 160.437258
B127: 4.147 | C127: 8378 | D127: 8508.106445 | E127: 170.1621289 | F127: 3.00317782 | G127: 25.7564821 | H127: 160.2911964
B128: 4.164 | C128: 8065 | D128: 8359.19873 | E128: 167.1839746 | F128: 3.01117782 | G128: 25.68629488 | H128: 160.0812792
B129: 4.181 | C129: 8183 | D129: 8212.09668 | E129: 164.2419336 | F129: 3.01917782 | G129: 24.2959089 | H129: 159.8128761
B130: 4.198 | C130: 7972 | D130: 8051.982666 | E130: 161.0396533 | F130: 3.02717782 | G130: 24.2735149 | H130: 159.5231586
B131: 4.215 | C131: 7835 | D131: 7869.77417 | E131: 157.3954834 | F131: 3.03517782 | G131: 23.5984424 | H131: 159.244469
B132: 4.232 | C132: 7519 | D132: 7680.711914 | E132: 153.6142383 | F132: 3.04317782 | G132: 23.26007492 | H132: 158.9881129
B133: 4.249 | C133: 7010 | D133: 7507.076416 | E133: 150.1415283 | F133: 3.05117782 | G133: 23.18209059 | H133: 158.7566697
B134: 4.266 | C134: 7392 | D134: 7343.322754 | E134: 146.8664551 | F134: 3.05917782 | G134: 21.92837647 | H134: 158.5547686
B135: 4.283 | C135: 7261 | D135: 7151.784912 | E135: 143.0356982 | F135: 3.06717782 | G135: 22.57740136 | H135: 158.3788183
B136: 4.3 | C136: 6895 | D136: 6901.018066 | E136: 138.0203613 | F136: 3.07517782 | G136: 22.01158418 | H136: 158.206815
B137: 4.317 | C137: 6391 | D137: =$A$2*(C131+C143)+$A$3*(C132+C142)+$A$4*(C133+C141)+$A$5*(C134+C140)+$A$6*(C135+C139)+$A$7*(C136+C138)+$A$8*C137+$D$1 -> 6600.792236 | E137: =D137/$E$1+$E$2 -> 132.0158447 | F137: 3.08317782 | G137: 21.9029612 | H137: =$H$2*($A$2*(G131+G143)+$A$3*(G132+G142)+$A$4*(G133+G141)+$A$5*(G134+G140)+$A$6*(G135+G139)+$A$7*(G136+G138)+$A$8*G137)+$H$1 -> 158.0196695
B138: 4.334 | C138: 6058 | D138: 6293.506348 | E138: 125.870127 | F138: 3.09117782 | G138: 21.61445178 | H138: 157.8422711
B139: 4.351 | C139: 5795 | D139: 6016.945557 | E139: 120.3389111 | F139: 3.09917782 | G139: 20.43816986 | H139: 157.7442166
B140: 4.368 | C140: 5539 | D140: 5776.370117 | E140: 115.5274023 | F140: 3.10717782 | G140: 19.66838421 | H140: 157.7707996
B141: 4.385 | C141: 5473 | D141: 5544.453125 | E141: 110.8890625 | F141: 3.11517782 | G141: 23.25391033 | H141: 157.8774466
B142: 4.402 | C142: 5420 | D142: 5287.226562 | E142: 105.7445312 | F142: 3.12317782 | G142: 21.43542385 | H142: 157.9614107
B143: 4.419 | C143: 4824 | D143: 4997.536865 | E143: 99.9507373 | F143: 3.13117782 | G143: 22.07128254 | H143: 157.9567313
B144: 4.436 | C144: 4429 | D144: 4704.188721 | E144: 94.08377441 | F144: 3.13917782 | G144: 21.19042941 | H144: 157.8713862
B145: 4.453 | C145: 4113 | D145: 4444.667725 | E145: 88.89335449 | F145: 3.14717782 | G145: 21.22935868 | H145: 157.7371296
B146: 4.47 | C146: 4106 | D146: 4232.428223 | E146: 84.64856445 | F146: 3.15517782 | G146: 21.3132179 | H146: 157.5582953
B147: 4.487 | C147: 3978 | D147: 4055.359863 | E147: 81.10719727 | F147: 3.16317782 | G147: 20.7453621 | H147: 157.3233939
B148: 4.504 | C148: 3669 | D148: 3900.170654 | E148: 78.00341309 | F148: 3.17117782 | G148: 20.35919284 | H148: 157.047847
B149: 4.521 | C149: 3584 | D149: 3769.919678 | E149: 75.39839355 | F149: 3.17917782 | G149: 18.87409991 | H149: 156.7794996
B150: 4.538 | C150: 3493 | D150: 3678.362061 | E150: 73.56724121 | F150: 3.18717782 | G150: 18.99944118 | H150: 156.5545157
B151: 4.555 | C151: 3276 | D151: 3630.07251 | E151: 72.6014502 | F151: 3.19517782 | G151: 19.36642569 | H151: 156.3679955
B152: 4.572 | C152: 3515 | D152: 3606.103027 | E152: 72.12206055 | F152: 3.20317782 | G152: 19.0430814 | H152: 156.2070332
B153: 4.589 | C153: 3694 | D153: 3573.652588 | E153: 71.47305176 | F153: 3.21117782 | G153: 17.57012116 | H153: 156.0916847
B154: 4.606 | C154: 3374 | D154: 3515.147705 | E154: 70.3029541 | F154: 3.21917782 | G154: 17.74462267 | H154: 156.0506199
B155: 4.623 | C155: 3159 | D155: 3442.825439 | E155: 68.85650879 | F155: 3.22717782 | G155: 19.23274463 | H155: 156.0711913
B156: 4.64 | C156: 3186 | D156: 3379.663818 | E156: 67.59327637 | F156: 3.23517782 | G156: 18.76204349 | H156: 156.1102014
B157: 4.657 | C157: 3248 | D157: 3334.105713 | E157: 66.68211426 | F157: 3.24317782 | G157: 17.84461724 | H157: 156.1466399
B158: 4.674 | C158: 3185 | D158: 3299.971924 | E158: 65.99943848 | F158: 3.25117782 | G158: 18.91569025 | H158: 156.1954886
B159: 4.691 | C159: 3054 | D159: 3270.718506 | E159: 65.41437012 | F159: 3.25917782 | G159: 18.98559765 | H159: 156.2721894
B160: 4.708 | C160: 3105 | D160: 3242.775879 | E160: 64.85551758 | F160: 3.26717782 | G160: 17.95693783 | H160: 156.351408
B161: 4.725 | C161: 3107 | D161: 3212.35498 | E161: 64.24709961 | F161: 3.27517782 | G161: 20.18782866 | H161: 156.3545501
B162: 4.742 | C162: 3181 | D162: 3181.082764 | E162: 63.62165527 | F162: 3.28317782 | G162: 19.47800023 | H162: 156.1990376
B163: 4.759 | C163: 2764 | D163: 3158.300293 | E163: 63.16600586 | F163: 3.29117782 | G163: 19.13670696 | H163: 155.897038
B164: 4.776 | C164: 2915 | D164: 3143.372314 | E164: 62.86744629 | F164: 3.29917782 | G164: 15.6010698 | H164: 155.5952665
B165: 4.793 | C165: 3302 | D165: 3112.600586 | E165: 62.25201172 | F165: 3.30717782 | G165: 16.69346792 | H165: 155.4761986
B166: 4.81 | C166: 3056 | D166: 3044.765137 | E166: 60.89530273 | F166: 3.31517782 | G166: 17.12193704 | H166: 155.6108891
B167: 4.827 | C167: 2713 | D167: 2958.883545 | E167: 59.1776709 | F167: 3.32317782 | G167: 18.12188389 | H167: 155.9192912
B168: 4.844 | C168: 2355 | D168: 2904.465576 | E168: 58.08931152 | F168: 3.33117782 | G168: 19.9408723 | H168: 156.2599805
B169: 4.861 | C169: 2765 | D169: 2908.413574 | E169: 58.16827148 | F169: 3.33917782 | G169: 18.69374497 | H169: 156.5347184
B170: 4.878 | C170: 2993 | D170: 2947.655762 | E170: 58.95311523 | F170: 3.34717782 | G170: 20.0367041 | H170: 156.7153529
B171: 4.895 | C171: 2875 | D171: 2978.633301 | E171: 59.57266602 | F171: 3.35517782 | G171: 19.88212947 | H171: 156.810305
B172: 4.912 | C172: 2891 | D172: 2978.421875 | E172: 59.5684375 | F172: 3.36317782 | G172: 19.84678803 | H172: 156.8354125
B173: 4.929 | C173: 2753 | D173: 2951.783203 | E173: 59.03566406 | F173: 3.37117782 | G173: 19.68617936 | H173: 156.8117641
B174: 4.946 | C174: 2879 | D174: 2913.749756 | E174: 58.27499512 | F174: 3.37917782 | G174: 19.71946497 | H174: 156.7704553
B175: 4.963 | C175: 2624 | D175: 2877.28833 | E175: 57.5457666 | F175: 3.38717782 | G175: 19.27059085 | H175: 156.7482815
B176: 4.98 | C176: 2719 | D176: 2851.460205 | E176: 57.0292041 | F176: 3.39517782 | G176: 19.43367155 | H176: 156.7727419
B177: 4.997 | C177: 2680 | D177: 2840.198242 | E177: 56.80396484 | F177: 3.40317782 | G177: 19.60139319 | H177: 156.8406295
B178: 5.014 | C178: 2640 | D178: 2839.486572 | E178: 56.78973145 | F178: 3.41117782 | G178: 19.90452725 | H178: 156.9088763
B179: 5.031 | C179: 2784 | D179: 2838.823975 | E179: 56.77647949 | F179: 3.41917782 | G179: 20.64935138 | H179: 156.92274
B180: 5.048 | C180: 2728 | D180: 2829.715576 | E180: 56.59431152 | F180: 3.42717782 | G180: 20.04527854 | H180: 156.869389
B181: 5.065 | C181: 2675 | D181: 2813.606689 | E181: 56.27213379 | F181: 3.43517782 | G181: 18.8985769 | H181: 156.7969403
B182: 5.082 | C182: 2525 | D182: 2798.035889 | E182: 55.96071777 | F182: 3.44317782 | G182: 19.28658193 | H182: 156.7657324
B183: 5.099 | C183: 2749 | D183: 2783.763428 | E183: 55.67526855 | F183: 3.45117782 | G183: 19.79822555 | H183: 156.786984
B184: 5.116 | C184: 2625 | D184: 2760.277344 | E184: 55.20554688 | F184: 3.45917782 | G184: 20.20021683 | H184: 156.8233907
B185: 5.133 | C185: 2687 | D185: 2717.799316 | E185: 54.35598633 | F185: 3.46717782 | G185: 19.11949996 | H185: 156.843937
B186: 5.15 | C186: 2505 | D186: 2662.114502 | E186: 53.24229004 | F186: 3.47517782 | G186: 20.81307003 | H186: 156.863701
B187: 5.167 | C187: 2348 | D187: 2614.26709 | E187: 52.2853418 | F187: 3.48317782 | G187: 18.25588369 | H187: 156.9265619
B188: 5.184 | C188: 2427 | D188: 2593.786621 | E188: 51.87573242 | F188: 3.49117782 | G188: 20.31381942 | H188: 157.0525176
B189: 5.201 | C189: 2333 | D189: 2601.182861 | E189: 52.02365723 | F189: 3.49917782 | G189: 20.95420117 | H189: 157.2084455
B190: 5.218 | C190: 2660 | D190: 2616.350098 | E190: 52.32700195 | F190: 3.50717782 | G190: 20.35148641 | H190: 157.33296
B191: 5.235 | C191: 2495 | D191: 2613.636475 | E191: 52.27272949 | F191: 3.51517782 | G191: 21.10250809 | H191: 157.3811615
B192: 5.252 | C192: 2483 | D192: 2578.897461 | E192: 51.57794922 | F192: 3.52317782 | G192: 20.79879994 | H192: 157.346533
B193: 5.269 | C193: 2427 | D193: 2516.817627 | E193: 50.33635254 | F193: 3.53117782 | G193: 20.50117835 | H193: 157.2628444
B194: 5.286 | C194: 2330 | D194: 2448.531006 | E194: 48.97062012 | F194: 3.53917782 | G194: 20.05191074 | H194: 157.1942873
B195: 5.303 | C195: 2031 | D195: 2400.694824 | E195: 48.01389648 | F195: 3.54717782 | G195: 19.57995154 | H195: 157.1980125
B196: 5.32 | C196: 2213 | D196: 2387.7771 | E196: 47.75554199 | F196: 3.55517782 | G196: 20.33728358 | H196: 157.2735483
B197: 5.337 | C197: 2322 | D197: 2400.855957 | E197: 48.01711914 | F197: 3.56317782 | G197: 21.35596967 | H197: 157.3618224
B198: 5.354 | C198: 2293 | D198: 2416.08252 | E198: 48.32165039 | F198: 3.57117782 | G198: 21.13106468 | H198: 157.4141297
B199: 5.371 | C199: 2353 | D199: 2414.790771 | E199: 48.29581543 | F199: 3.57917782 | G199: 20.08704009 | H199: 157.449964
B200: 5.388 | C200: 2270 | D200: 2395.386475 | E200: 47.90772949 | F200: 3.58717782 | G200: 20.23102077 | H200: 157.5239213
... 10801 more rows

Sheet XRD-glass foam
B1: Glass foam | E1: 1 | F1: Theta2 | G1: Org200m | H1: 140 | U1: Glass foam
A2: 0.000244140625 | B2: 5.00417782 | C2: 172.3592616 | E2: ='XRD-vermiculite'!L1 -> 200 | F2: 2.00317782 | G2: 100 | U2: 5.00417782 | V2: 172.3592616 | W2: 4644.114676
A3: 0.0029296875 | B3: 5.01217782 | C3: 175.4554449 | F3: 2.01117782 | G3: 95.84027376 | Q3: Element | R3: Kα | U3: 5.01217782 | V3: 175.4554449 | W3: 4820.151417
A4: 0.01611328125 | B4: 5.02017782 | C4: 178.8946608 | F4: 2.01917782 | G4: 91.91719532 | J4: Phlogopite | R4: (weight average) | U4: 5.02017782 | V4: 178.8946608 | W4: 5018.962218
A5: 0.0537109375 | B5: 5.02817782 | C5: 175.7485425 | F5: 2.02717782 | G5: 89.58945276 | J5: d-spacing calculations | P5: 2q, ° | Q5: Cr | R5: 0.2291 | U5: 5.02817782 | V5: 175.7485425 | W5: 4851.697519
A6: 0.1208496094 | B6: 5.03617782 | C6: 171.9061769 | F6: 2.03517782 | G6: 87.70738301 | J6: 2q/° | K6: Counts | L6: q/rad | M6: d/nm | Q6: Fe | R6: 0.193736 | U6: 5.03617782 | V6: 171.9061769 | W6: 4649.253219
A7: 0.193359375 | B7: 5.04417782 | C7: 175.024724 | F7: 2.04317782 | G7: 85.36032644 | J7: =F838 -> 8.69117782 | K7: =H838 -> 226.6018792 | L7: =PI()*J7/180/2 -> 0.07584483442 | M7: =$R$7/2/SIN(L7) -> 1.181344491 | Q7: Co | R7: 0.179026 | U7: 5.04417782 | V7: 175.024724 | W7: 4827.118131
A8: 0.2255859375 | B8: 5.05217782 | C8: 172.299276 | D8: =$A$2*(C2+C14)+$A$3*(C3+C13)+$A$4*(C4+C12)+$A$5*(C5+C11)+$A$6*(C6+C10)+$A$7*(C7+C9)+$A$8*C8+$H$1 -> 311.5628898 | E8: =D8/$E$1+$E$2 -> 511.5628898 | F8: 2.05117782 | G8: 87.59229238 | H8: =$A$2*(G2+G14)+$A$3*(G3+G13)+$A$4*(G4+G12)+$A$5*(G5+G11)+$A$6*(G6+G10)+$A$7*(G7+G9)+$A$8*G8+$H$1 -> 227.5090555 | J8: =F1033 -> 10.25117782 | K8: =H1033 -> 397.608687 | L8: =PI()*J8/180/2 -> 0.08945840258 | M8: =$R$7/2/SIN(L8) -> 1.001946173 | Q8: Cu | R8: 0.154184 | U8: 5.05217782 | V8: 172.299276 | W8: 4685.369258
A9: 0.193359375 | B9: 5.06017782 | C9: 169.1518914 | D9: 310.1396989 | E9: =D9/$E$1+$E$2 -> 510.1396989 | F9: 2.05917782 | G9: 86.74832428 | H9: 227.8558888 | J9: =F3485 -> 29.86717782 | K9: =H3485 -> 200.0834843 | L9: =PI()*J9/180/2 -> 0.2606402956 | M9: 0.3473544898 | Q9: Mo | R9: 0.071073 | U9: 5.06017782 | V9: 169.1518914 | W9: 4522.903691
A10: 0.1208496094 | B10: 5.06817782 | C10: 168.4143113 | D10: 308.9973647 | E10: 508.9973647 | F10: 2.06717782 | G10: 87.92321639 | H10: 228.3874838 | J10: =F3606 -> 30.83517782 | K10: =H3606 -> 308.1636967 | L10: 0.2690876892 | M10: 0.3367022906 | U10: 5.06817782 | V10: 168.4143113 | W10: 4490.629547
A11: 0.0537109375 | B11: 5.07617782 | C11: 165.3280233 | D11: 308.4667124 | E11: 508.4667124 | F11: 2.07517782 | G11: 91.44879424 | H11: 228.55307 | J11: =F6270 -> 52.14717782 | K11: =H6270 -> 167.8787629 | L11: 0.4550699743 | M11: 0.2036584172 | U11: 5.07617782 | V11: 165.3280233 | W11: 4334.377411
A12: 0.01611328125 | B12: 5.08417782 | C12: 168.9080986 | D12: 308.6678791 | E12: 508.6678791 | F12: 2.08317782 | G12: 90.62078824 | H12: 227.88949 | J12: =F6314 -> 52.49917782 | K12: =H6314 -> 181.3365643 | L12: 0.4581417538 | M12: 0.2023888567 | U12: 5.08417782 | V12: 168.9080986 | W12: 4531.251631
A13: 0.0029296875 | B13: 5.09217782 | C13: 169.3534133 | D13: 309.4386892 | E13: 509.4386892 | F13: 2.09117782 | G13: 87.11217217 | H13: 226.3412917 | J13: Silica | U13: 5.09217782 | V13: 169.3534133 | W13: 4562.338697
A14: 0.000244140625 | B14: 5.10017782 | C14: 168.652431 | D14: 310.3973739 | E14: 510.3973739 | F14: 2.09917782 | G14: 83.26467821 | H14: 224.3325591 | J14: =B658 -> 10.25217782 | K14: =H6316 -> 180.3629153 | L14: =PI()*J14/180/2 -> 0.08946712923 | M14: 1.001848704 | U14: 5.10017782 | V14: 168.652431 | W14: 4531.751985
B15: 5.10817782 | C15: 174.1978711 | D15: 311.0787796 | E15: 511.0787796 | F15: 2.10717782 | G15: 80.94355928 | H15: 222.474145 | J15: =B3231 -> 30.83617782 | K15: 178.9692438 | L15: 0.2690964158 | M15: 0.3366916364 | U15: 5.10817782 | V15: 174.1978711 | W15: 4842.245981
B16: 5.11617782 | C16: 174.3293882 | D16: 311.1911834 | E16: 511.1911834 | F16: 2.11517782 | G16: 80.06987261 | H16: 221.1742359 | J16: Phlogopite (CuKa) | N16: =SUM(N17:N25) -> 0.003371984517 | U16: 5.11617782 | V16: 174.3293882 | W16: 4857.150338
B17: 5.12417782 | C17: 168.4440065 | D17: 310.8337006 | E17: 510.8337006 | F17: 2.12317782 | G17: 79.38509796 | H17: 220.4608023 | J17: 7.483217035 | K17: =K7 -> 226.6018792 | L17: =PI()*J17/180/2 -> 0.06530338795 | M17: =$R$8/2/SIN(L17) -> 1.18136016 | N17: =100000*(M7-M17)^2 -> 2.455154807e-05 | U17: 5.12417782 | V17: 168.4440065 | W17: 4541.816347
B18: 5.13217782 | C18: 168.8439219 | D18: 310.3488414 | E18: 510.3488414 | F18: 2.13117782 | G18: 80.87984446 | H18: 220.0657574 | J18: 8.825578192 | K18: =K8 -> 397.608687 | L18: =PI()*J18/180/2 -> 0.07701769892 | M18: =$R$8/2/SIN(L18) -> 1.001954987 | N18: =100000*(M8-M18)^2 -> 7.769655719e-06 | U18: 5.13217782 | V18: 168.8439219 | W18: 4570.527828
B19: 5.14017782 | C19: 171.3736382 | D19: 309.9259623 | E19: 509.9259623 | F19: 2.13917782 | G19: 80.46779741 | H19: 219.6287956 | J19: 25.65011488 | K19: 200.0834843 | L19: 0.2238394791 | M19: 0.3473004605 | N19: 0.000291916615 | U19: 5.14017782 | V19: 171.3736382 | W19: 4715.845008
B20: 5.14817782 | C20: 170.1286787 | D20: =$A$2*(C14+C26)+$A$3*(C15+C25)+$A$4*(C16+C24)+$A$5*(C17+C23)+$A$6*(C18+C22)+$A$7*(C19+C21)+$A$8*C20+$H$1 -> 309.4787583 | E20: 509.4787583 | F20: 2.14717782 | G20: 78.93882557 | H20: 218.8756146 | J20: 26.4665067 | K20: 308.1636967 | L20: 0.2309638417 | M20: 0.3367699993 | N20: 0.0004584469153 | U20: 5.14817782 | V20: 170.1286787 | W20: 4654.804972
B21: 5.15617782 | C21: 169.1028965 | D21: =$A$2*(C15+C27)+$A$3*(C16+C26)+$A$4*(C17+C25)+$A$5*(C18+C24)+$A$6*(C19+C23)+$A$7*(C20+C22)+$A$8*C21+$H$1 -> 308.9248822 | E21: 508.9248822 | F21: 2.15517782 | G21: 79.40900148 | H21: 217.7153542 | J21: 44.45985975 | K21: 167.8787629 | L21: 0.3879854688 | M21: 0.2037722196 | N21: 0.001295098663 | U21: 5.15617782 | V21: 169.1028965 | W21: 4605.983921
B22: 5.16417782 | C22: 167.7065875 | D22: 308.4288269 | E22: 508.4288269 | F22: 2.16317782 | G22: 76.52798519 | H22: 216.2499035 | J22: 44.75910211 | K22: 181.3365643 | L22: 0.3905968511 | M22: 0.20247918 | N22: 0.0008158289354 | U22: 5.16417782 | V22: 167.7065875 | W22: 4537.257368
B23: 5.17217782 | C23: 166.7521996 | D23: 308.269363 | E23: 508.269363 | F23: 2.17117782 | G23: 72.41585909 | H23: 214.6791293 | J23: Silica (Cu Ka) | U23: 5.17217782 | V23: 166.7521996 | W23: 4492.707214
B24: 5.18017782 | C24: 166.7132864 | D24: 308.4856313 | E24: 508.4856313 | F24: 2.17917782 | G24: 74.73108532 | H24: 213.1685049 | J24: 8.826637089 | K24: 180.3629153 | L24: 0.07702693954 | M24: 1.001835025 | N24: 1.871158961e-05 | U24: 5.18017782 | V24: 166.7132864 | W24: 4497.551697
B25: 5.18817782 | C25: 171.1217815 | D25: 308.7225844 | E25: 508.7225844 | F25: 2.18717782 | G25: 71.52454957 | H25: 211.826163 | J25: 26.46735208 | K25: 178.9692438 | L25: 0.230971219 | M25: 0.3367594347 | N25: 0.0004596605948 | U25: 5.18817782 | V25: 171.1217815 | W25: 4745.872334
B26: 5.19617782 | C26: 171.7071143 | D26: 308.5125648 | E26: 508.5125648 | F26: 2.19517782 | G26: 69.78639299 | H26: 210.7491734 | U26: 5.19617782 | V26: 171.7071143 | W26: 4785.758054
B27: 5.20417782 | C27: 166.856649 | D27: 307.7294381 | E27: 507.7294381 | F27: 2.20317782 | G27: 67.38925599 | H27: 209.9399729 | U27: 5.20417782 | V27: 166.856649 | W27: 4526.149123
B28: 5.21217782 | C28: 166.2813442 | D28: 306.6963976 | E28: 506.6963976 | F28: 2.21117782 | G28: 72.20063683 | H28: 209.1885037 | U28: 5.21217782 | V28: 166.2813442 | W28: 4501.89658
B29: 5.22017782 | C29: 163.502228 | D29: 305.844915 | E29: 505.844915 | F29: 2.21917782 | G29: 69.7035441 | H29: 208.236524 | U29: 5.22017782 | V29: 163.502228 | W29: 4359.346839
B30: 5.22817782 | C30: 166.5780774 | D30: 305.3732542 | E30: 505.3732542 | F30: 2.22717782 | G30: 66.49520034 | H30: 207.1052817 | U30: 5.22817782 | V30: 166.5780774 | W30: 4531.837794
B31: 5.23617782 | C31: 164.7042093 | D31: 305.2457873 | E31: 505.2457873 | F31: 2.23517782 | G31: 62.50402979 | H31: 206.104929 | U31: 5.23617782 | V31: 164.7042093 | W31: 4437.226909
B32: 5.24417782 | C32: 164.2566855 | D32: 305.3519606 | E32: 505.3519606 | F32: 2.24317782 | G32: 67.35666859 | H32: 205.5039313 | U32: 5.24417782 | V32: 164.2566855 | W32: 4419.884409
B33: 5.25217782 | C33: 165.605767 | D33: 305.5441099 | E33: 505.5441099 | F33: 2.25117782 | G33: 64.30211073 | H33: 205.3345147 | U33: 5.25217782 | V33: 165.605767 | W33: 4499.634764
B34: 5.26017782 | C34: 167.3435936 | D34: 305.6273232 | E34: 505.6273232 | F34: 2.25917782 | G34: 64.61332973 | H34: 205.4978684 | U34: 5.26017782 | V34: 167.3435936 | W34: 4601.559833
B35: 5.26817782 | C35: 165.9376677 | D35: 305.473463 | E35: 505.473463 | F35: 2.26717782 | G35: 65.8661664 | H35: 205.8697635 | U35: 5.26817782 | V35: 165.9376677 | W35: 4531.441632
B36: 5.27617782 | C36: 164.3777645 | D36: 305.1391894 | E36: 505.1391894 | F36: 2.27517782 | G36: 66.50199208 | H36: 206.2622506 | U36: 5.27617782 | V36: 164.3777645 | W36: 4453.393796
B37: 5.28417782 | C37: 164.4141141 | D37: 304.7882612 | E37: 504.7882612 | F37: 2.28317782 | G37: 67.67084225 | H37: 206.4152739 | U37: 5.28417782 | V37: 164.4141141 | W37: 4462.114266
B38: 5.29217782 | C38: 164.4904124 | D38: 304.5157371 | E38: 504.5157371 | F38: 2.29117782 | G38: 67.13775028 | H38: 206.115971 | U38: 5.29217782 | V38: 164.4904124 | W38: 4473.013524
B39: 5.30017782 | C39: 164.9139047 | D39: 304.3078612 | E39: 504.3078612 | F39: 2.29917782 | G39: 65.99438452 | H39: 205.327428 | U39: 5.30017782 | V39: 164.9139047 | W39: 4502.867074
B40: 5.30817782 | C40: 163.7557321 | D40: 304.1363139 | E40: 504.1363139 | F40: 2.30717782 | G40: 64.41732753 | H40: 204.1916996 | U40: 5.30817782 | V40: 163.7557321 | W40: 4446.539491
B41: 5.31617782 | C41: 163.0778694 | D41: 304.0092479 | E41: 504.0092479 | F41: 2.31517782 | G41: 61.94561785 | H41: 202.9012648 | U41: 5.31617782 | V41: 163.0778694 | W41: 4416.444297
B42: 5.32417782 | C42: 165.5107035 | D42: 303.9199745 | E42: 503.9199745 | F42: 2.32317782 | G42: 62.03870611 | H42: 201.5692874 | U42: 5.32417782 | V42: 165.5107035 | W42: 4556.039203
B43: 5.33217782 | C43: 162.0674235 | D43: 303.7761703 | E43: 503.7761703 | F43: 2.33117782 | G43: 61.11190431 | H43: 200.2418178 | U43: 5.33217782 | V43: 162.0674235 | W43: 4375.002857
B44: 5.34017782 | C44: 165.3096529 | D44: 303.3932893 | E44: 503.3932893 | F44: 2.33917782 | G44: 57.86150687 | H44: 199.0110905 | U44: 5.34017782 | V44: 165.3096529 | W44: 4558.625729
B45: 5.34817782 | C45: 163.8294599 | D45: 302.6075686 | E45: 502.6075686 | F45: 2.34717782 | G45: 57.05804505 | H45: 198.0314459 | U45: 5.34817782 | V45: 163.8294599 | W45: 4484.05733
B46: 5.35617782 | C46: 162.1508649 | D46: 301.4715526 | E46: 501.4715526 | F46: 2.35517782 | G46: 56.86425909 | H46: 197.377784 | U46: 5.35617782 | V46: 162.1508649 | W46: 4399.206748
B47: 5.36417782 | C47: 158.7822976 | D47: 300.3145554 | E47: 500.3145554 | F47: 2.36317782 | G47: 56.83366889 | H47: 196.9305605 | U47: 5.36417782 | V47: 158.7822976 | W47: 4224.620519
B48: 5.37217782 | C48: 157.2887692 | D48: 299.5099599 | E48: 499.5099599 | F48: 2.37117782 | G48: 58.23301904 | H48: 196.4492083 | U48: 5.37217782 | V48: 157.2887692 | W48: 4151.697554
B49: 5.38017782 | C49: 158.8790033 | D49: 299.1815823 | E49: 499.1815823 | F49: 2.37917782 | G49: 54.58361134 | H49: 195.7708319 | U49: 5.38017782 | V49: 158.8790033 | W49: 4242.375142
B50: 5.38817782 | C50: 161.8066271 | D50: 299.2032813 | E50: 499.2032813 | F50: 2.38717782 | G50: 57.38700077 | H50: 194.9530176 | U50: 5.38817782 | V50: 161.8066271 | W50: 4406.699956
B51: 5.39617782 | C51: 156.1383222 | D51: 299.3951894 | E51: 499.3951894 | F51: 2.39517782 | G51: 50.94848321 | H51: 194.230094 | U51: 5.39617782 | V51: 156.1383222 | W51: 4109.450416
B52: 5.40417782 | C52: 159.84164 | D52: 299.5547165 | E52: 499.5547165 | F52: 2.40317782 | G52: 53.54343102 | H52: 193.7955506 | U52: 5.40417782 | V52: 159.84164 | W52: 4313.079704
B53: 5.41217782 | C53: 162.2296096 | D53: 299.3958165 | E53: 499.3958165 | F53: 2.41117782 | G53: 54.01314249 | H53: 193.6075843 | U53: 5.41217782 | V53: 162.2296096 | W53: 4449.485805
B54: 5.42017782 | C54: 161.2918709 | D54: 298.7447355 | E54: 498.7447355 | F54: 2.41917782 | G54: 54.08676768 | H54: 193.4365632 | U54: 5.42017782 | V54: 161.2918709 | W54: 4404.691925
B55: 5.42817782 | C55: 154.7661553 | D55: 297.8262095 | E55: 497.8262095 | F55: 2.42717782 | G55: 53.96804563 | H55: 193.1046176 | U55: 5.42817782 | V55: 154.7661553 | W55: 4061.464117
B56: 5.43617782 | C56: 155.7451186 | D56: 297.1397377 | E56: 497.1397377 | F56: 2.43517782 | G56: 51.96873412 | H56: 192.6301619 | U56: 5.43617782 | V56: 155.7451186 | W56: 4119.064845
B57: 5.44417782 | C57: 156.1754122 | D57: 296.9857881 | E57: 496.9857881 | F57: 2.44317782 | G57: 51.45138125 | H57: 192.1248748 | U57: 5.44417782 | V57: 156.1754122 | W57: 4147.947305
B58: 5.45217782 | C58: 157.4702592 | D58: 297.2126444 | E58: 497.2126444 | F58: 2.45117782 | G58: 52.35686965 | H58: 191.6025022 | U58: 5.45217782 | V58: 157.4702592 | W58: 4223.205582
B59: 5.46017782 | C59: 158.7822543 | D59: 297.4261255 | E59: 497.4261255 | F59: 2.45917782 | G59: 51.23900074 | H59: 190.9442185 | U59: 5.46017782 | V59: 158.7822543 | W59: 4300.167363
B60: 5.46817782 | C60: 158.1366596 | D60: 297.3651306 | E60: 497.3651306 | F60: 2.46717782 | G60: 51.19690781 | H60: 190.0652126 | U60: 5.46817782 | V60: 158.1366596 | W60: 4271.514786
B61: 5.47617782 | C61: 156.8707525 | D61: 297.0910117 | E61: 497.0910117 | F61: 2.47517782 | G61: 49.11208729 | H61: 189.0867999 | U61: 5.47617782 | V61: 156.8707525 | W61: 4209.545249
B62: 5.48417782 | C62: 155.8067743 | D62: 296.8967007 | E62: 496.8967007 | F62: 2.48317782 | G62: 45.79834797 | H62: 188.2869708 | U62: 5.48417782 | V62: 155.8067743 | W62: 4158.69814
B63: 5.49217782 | C63: 155.8454378 | D63: 297.0492633 | E63: 497.0492633 | F63: 2.49117782 | G63: 47.32124145 | H63: 187.850579 | U63: 5.49217782 | V63: 155.8454378 | W63: 4166.827191
B64: 5.50017782 | C64: 157.1471935 | D64: 297.5562038 | E64: 497.5562038 | F64: 2.49917782 | G64: 48.72337937 | H64: 187.7077254 | U64: 5.50017782 | V64: 157.1471935 | W64: 4242.894344
B65: 5.50817782 | C65: 158.7958038 | D65: 298.1144882 | E65: 498.1144882 | F65: 2.50717782 | G65: 47.5876272 | H65: 187.6444218 | U65: 5.50817782 | V65: 158.7958038 | W65: 4338.681186
B66: 5.51617782 | C66: 160.4733849 | D66: 298.2889726 | E66: 498.2889726 | F66: 2.51517782 | G66: 47.86226251 | H66: 187.5081466 | U66: 5.51617782 | V66: 160.4733849 | W66: 4437.266784
B67: 5.52417782 | C67: 158.9733703 | D67: 297.8217537 | E67: 497.8217537 | F67: 2.52317782 | G67: 46.23207713 | H67: 187.2571261 | U67: 5.52417782 | V67: 158.9733703 | W67: 4361.011005
B68: 5.53217782 | C68: 157.7128539 | D68: 296.8498086 | E68: 496.8498086 | F68: 2.53117782 | G68: 49.52932075 | H68: 186.8714688 | U68: 5.53217782 | V68: 157.7128539 | W68: 4298.338309
B69: 5.54017782 | C69: 153.656168 | D69: 295.8045492 | E69: 495.8045492 | F69: 2.53917782 | G69: 43.38344099 | H69: 186.2991655 | U69: 5.54017782 | V69: 153.656168 | W69: 4085.954199
B70: 5.54817782 | C70: 153.1555238 | D70: 295.0198552 | E70: 495.0198552 | F70: 2.54717782 | G70: 49.14104625 | H70: 185.5217857 | U70: 5.54817782 | V70: 153.1555238 | W70: 4065.228916
B71: 5.55617782 | C71: 155.4294066 | D71: 294.4551393 | E71: 494.4551393 | F71: 2.55517782 | G71: 43.776714 | H71: 184.6730758 | U71: 5.55617782 | V71: 155.4294066 | W71: 4192.869345
B72: 5.56417782 | C72: 157.7114895 | D72: 293.8943697 | E72: 493.8943697 | F72: 2.56317782 | G72: 41.45265608 | H72: =$A$2*(G66+G78)+$A$3*(G67+G77)+$A$4*(G68+G76)+$A$5*(G69+G75)+$A$6*(G70+G74)+$A$7*(G71+G73)+$A$8*G72+$H$1 -> 184.021716 | U72: 5.56417782 | V72: 157.7114895 | W72: 4323.10707
B73: 5.57217782 | C73: 149.4542942 | D73: 293.3502004 | E73: =D73/$E$1+$E$2 -> 493.3502004 | F73: 2.57117782 | G73: 43.17388352 | H73: 183.7316166 | U73: 5.57217782 | V73: 149.4542942 | W73: 3887.850856
B74: 5.58017782 | C74: 151.6117964 | D74: 293.0809971 | E74: 493.0809971 | F74: 2.57917782 | G74: 44.80252482 | H74: 183.6585691 | U74: 5.58017782 | V74: 151.6117964 | W74: 4006.64964
B75: 5.58817782 | C75: 153.8722556 | D75: 293.2258387 | E75: 493.2258387 | F75: 2.58717782 | G75: 44.62633941 | H75: 183.4922678 | U75: 5.58817782 | V75: 153.8722556 | W75: 4132.92673
B76: 5.59617782 | C76: 153.9258008 | D76: 293.6179394 | E76: 493.6179394 | F76: 2.59517782 | G76: 43.50809071 | H76: 183.0963616 | U76: 5.59617782 | V76: 153.9258008 | W76: 4141.719711
B77: 5.60417782 | C77: 154.3053416 | D77: 293.957609 | E77: 493.957609 | F77: 2.60317782 | G77: 41.45352029 | H77: 182.6087206 | U77: 5.60417782 | V77: 154.3053416 | W77: 4168.114966
B78: 5.61217782 | C78: 153.9851512 | D78: 293.9996284 | E78: 493.9996284 | F78: 2.61117782 | G78: 41.04337982 | H78: 182.1944885 | U78: 5.61217782 | V78: 153.9851512 | W78: 4156.755475
B79: 5.62017782 | C79: 155.5873152 | D79: 293.5973741 | E79: 493.5973741 | F79: 2.61917782 | G79: 43.26428188 | H79: 181.8080957 | U79: 5.62017782 | V79: 155.5873152 | W79: 4249.749209
B80: 5.62817782 | C80: 153.8141907 | D80: 292.7671109 | E80: 492.7671109 | F80: 2.62717782 | G80: 42.49435402 | H80: 181.2790216 | U80: 5.62817782 | V80: 153.8141907 | W80: 4159.345483
B81: 5.63617782 | C81: 150.6172481 | D81: 291.7525542 | E81: 491.7525542 | F81: 2.63517782 | G81: 40.17723385 | H81: 180.57276 | U81: 5.63617782 | V81: 150.6172481 | W81: 3993.907312
B82: 5.64417782 | C82: 148.9295856 | D82: 290.8836727 | E82: 490.8836727 | F82: 2.64317782 | G82: 38.76197084 | H82: 179.8479184 | U82: 5.64417782 | V82: 148.9295856 | W82: 3910.443637
B83: 5.65217782 | C83: 150.7078631 | D83: 290.3185338 | E83: 490.3185338 | F83: 2.65117782 | G83: 38.80517077 | H83: 179.2556712 | U83: 5.65217782 | V83: 150.7078631 | W83: 4010.05679
B84: 5.66017782 | C84: 150.8389255 | D84: 290.0093788 | E84: 490.0093788 | F84: 2.65917782 | G84: 39.58823177 | H84: 178.8086819 | U84: 5.66017782 | V84: 150.8389255 | W84: 4022.715503
B85: 5.66817782 | C85: 149.0684585 | D85: =$A$2*(C79+C91)+$A$3*(C80+C90)+$A$4*(C81+C89)+$A$5*(C82+C88)+$A$6*(C83+C87)+$A$7*(C84+C86)+$A$8*C85+$H$1 -> 289.9203548 | E85: 489.9203548 | F85: 2.66717782 | G85: 38.89902492 | H85: 178.4941811 | U85: 5.66817782 | V85: 149.0684585 | W85: 3934.385144
B86: 5.67617782 | C86: 148.6876941 | D86: 290.1342462 | E86: 490.1342462 | F86: 2.67517782 | G86: 36.38412783 | H86: 178.3788896 | U86: 5.67617782 | V86: 148.6876941 | W86: 3919.83177
B87: 5.68417782 | C87: 149.7388972 | D87: 290.6813064 | E87: 490.6813064 | F87: 2.68317782 | G87: 37.31686271 | H87: 178.4764782 | U87: 5.68417782 | V87: 149.7388972 | W87: 3981.051528
B88: 5.69217782 | C88: 152.6708834 | D88: 291.3816628 | E88: 491.3816628 | F88: 2.69117782 | G88: 41.17239243 | H88: 178.6044149 | U88: 5.69217782 | V88: 152.6708834 | W88: 4144.300868
B89: 5.70017782 | C89: 153.4410332 | D89: 291.9614333 | E89: 491.9614333 | F89: 2.69917782 | G89: 39.47868598 | H89: 178.5414892 | U89: 5.70017782 | V89: 153.4410332 | W89: 4192.09688
B90: 5.70817782 | C90: 151.156009 | D90: 292.2636051 | E90: 492.2636051 | F90: 2.70717782 | G90: 37.1275856 | H90: 178.3026004 | U90: 5.70817782 | V90: 151.156009 | W90: 4073.875031
B91: 5.71617782 | C91: 153.1092819 | D91: 292.2672935 | E91: 492.2672935 | F91: 2.71517782 | G91: 37.37324426 | H91: 178.1017692 | U91: 5.71617782 | V91: 153.1092819 | W91: 4185.695597
B92: 5.72417782 | C92: 152.7228652 | D92: 291.9799952 | E92: 491.9799952 | F92: 2.72317782 | G92: 37.24638094 | H92: 178.0170025 | U92: 5.72417782 | V92: 152.7228652 | W92: 4170.418224
B93: 5.73217782 | C93: 152.4345787 | D93: 291.4256953 | E93: 491.4256953 | F93: 2.73117782 | G93: 39.60996632 | H93: 177.8211377 | U93: 5.73217782 | V93: 152.4345787 | W93: 4160.49022
B94: 5.74017782 | C94: 149.4367608 | D94: 290.6930369 | E94: 490.6930369 | F94: 2.73917782 | G94: 39.29279142 | H94: 177.2467304 | U94: 5.74017782 | V94: 149.4367608 | W94: 4004.032482
B95: 5.74817782 | C95: 150.2291443 | D95: 289.8907599 | E95: 489.8907599 | F95: 2.74717782 | G95: 36.76540186 | H95: 176.3719605 | U95: 5.74817782 | V95: 150.2291443 | W95: 4052.242533
B96: 5.75617782 | C96: 149.0301888 | D96: 289.0914061 | E96: 489.0914061 | F96: 2.75517782 | G96: 31.4002585 | H96: 175.5970614 | U96: 5.75617782 | V96: 149.0301888 | W96: 3993.365361
B97: 5.76417782 | C97: 150.1059032 | D97: 288.3927157 | E97: 488.3927157 | F97: 2.76317782 | G97: 34.82316259 | H97: 175.189326 | U97: 5.76417782 | V97: 150.1059032 | W97: 4056.848105
B98: 5.77217782 | C98: 143.4392949 | D98: 287.9415905 | E98: 487.9415905 | F98: 2.77117782 | G98: 37.63810214 | H98: 174.9923697 | U98: 5.77217782 | V98: 143.4392949 | W98: 3709.636105
B99: 5.78017782 | C99: 149.0300967 | D99: 287.7616581 | E99: 487.7616581 | F99: 2.77917782 | G99: 35.02628137 | H99: 174.6794546 | U99: 5.78017782 | V99: 149.0300967 | W99: 4009.996381
B100: 5.78817782 | C100: 148.7267047 | D100: 287.6202949 | E100: 487.6202949 | F100: 2.78717782 | G100: 33.71356549 | H100: 174.1545418 | U100: 5.78817782 | V100: 148.7267047 | W100: 3999.208809
B101: 5.79617782 | C101: 148.5530095 | D101: 287.2235391 | E101: 487.2235391 | F101: 2.79517782 | G101: 32.49722849 | H101: 173.5732928 | U101: 5.79617782 | V101: 148.5530095 | W101: 3995.382871
B102: 5.80417782 | C102: 146.4958969 | D102: 286.5523558 | E102: 486.5523558 | F102: 2.80317782 | G102: 33.88502934 | H102: 173.0816475 | U102: 5.80417782 | V102: 146.4958969 | W102: 3890.85381
B103: 5.81217782 | C103: 144.6759836 | D103: 285.919963 | E103: 485.919963 | F103: 2.81117782 | G103: 32.18856148 | H103: 172.6815846 | U103: 5.81217782 | V103: 144.6759836 | W103: 3800.008345
B104: 5.82017782 | C104: 143.7930782 | D104: 285.6814627 | E104: 485.6814627 | F104: 2.81917782 | G104: 32.69387718 | H104: 172.294865 | U104: 5.82017782 | V104: 143.7930782 | W104: 3758.932023
B105: 5.82817782 | C105: 145.6386899 | D105: 285.9145132 | E105: 485.9145132 | F105: 2.82717782 | G105: 31.47277074 | H105: 171.8274528 | U105: 5.82817782 | V105: 145.6386899 | W105: 3861.340179
B106: 5.83617782 | C106: 147.3114808 | D106: 286.3603277 | E106: 486.3603277 | F106: 2.83517782 | G106: 32.15578441 | H106: 171.188832 | U106: 5.83617782 | V106: 147.3114808 | W106: 3955.969502
B107: 5.84417782 | C107: 147.2306581 | D107: 286.6235032 | E107: 486.6235032 | F107: 2.84317782 | G107: 31.32883291 | H107: 170.364626 | U107: 5.84417782 | V107: 147.2306581 | W107: 3957.041837
B108: 5.85217782 | C108: 147.8325232 | D108: 286.440335 | E108: 486.440335 | F108: 2.85117782 | G108: 28.41911284 | H108: 169.5031471 | U108: 5.85217782 | V108: 147.8325232 | W108: 3994.916356
B109: 5.86017782 | C109: 146.8218627 | D109: 285.8388611 | E109: 485.8388611 | F109: 2.85917782 | G109: 27.69187859 | H109: 168.8567522 | U109: 5.86017782 | V109: 146.8218627 | W109: 3945.862383
B110: 5.86817782 | C110: 143.6146621 | D110: 285.0779155 | E110: 485.0779155 | F110: 2.86717782 | G110: 27.90030907 | H110: 168.5836025 | U110: 5.86817782 | V110: 143.6146621 | W110: 3780.506513
B111: 5.87617782 | C111: 142.9776299 | D111: 284.374455 | E111: 484.374455 | F111: 2.87517782 | G111: 28.57901232 | H111: 168.6210333 | U111: 5.87617782 | V111: 142.9776299 | W111: 3752.146293
B112: 5.88417782 | C112: 144.9802367 | D112: 283.6883298 | E112: 483.6883298 | F112: 2.88317782 | G112: 29.55344033 | H112: 168.7586022 | U112: 5.88417782 | V112: 144.9802367 | W112: 3863.238538
B113: 5.89217782 | C113: 145.6083824 | D113: 282.8689889 | E113: 482.8689889 | F113: 2.89117782 | G113: 28.70670109 | H113: 168.7989518 | U113: 5.89217782 | V113: 145.6083824 | W113: 3902.08034
B114: 5.90017782 | C114: 139.7860427 | D114: 281.9895968 | E114: 481.9895968 | F114: 2.89917782 | G114: 29.11723986 | H114: 168.6461903 | U114: 5.90017782 | V114: 139.7860427 | W114: 3601.138368
B115: 5.90817782 | C115: 139.1903424 | D115: 281.3509297 | E115: 481.3509297 | F115: 2.90717782 | G115: 28.79917157 | H115: 168.3151224 | U115: 5.90817782 | V115: 139.1903424 | W115: 3575.348094
B116: 5.91617782 | C116: 140.9127249 | D116: 281.0990299 | E116: 481.0990299 | F116: 2.91517782 | G116: 27.79647919 | H116: 167.9287682 | U116: 5.91617782 | V116: 140.9127249 | W116: 3669.337765
B117: 5.92417782 | C117: 142.1067042 | D117: 281.0168956 | E117: 481.0168956 | F117: 2.92317782 | G117: 26.73288223 | H117: 167.6783528 | U117: 5.92417782 | V117: 142.1067042 | W117: 3736.824858
B118: 5.93217782 | C118: 142.9583421 | D118: 280.819698 | E118: 480.819698 | F118: 2.93117782 | G118: 26.72765065 | H118: 167.6860592 | U118: 5.93217782 | V118: 142.9583421 | W118: 3786.850558
B119: 5.94017782 | C119: 139.1618653 | D119: 280.5372964 | E119: 480.5372964 | F119: 2.93917782 | G119: 27.71753844 | H119: 167.8618647 | U119: 5.94017782 | V119: 139.1618653 | W119: 3593.224937
B120: 5.94817782 | C120: 137.4698632 | D120: 280.4418291 | E120: 480.4418291 | F120: 2.94717782 | G120: 30.21032904 | H120: 167.9437122 | U120: 5.94817782 | V120: 137.4698632 | W120: 3511.097556
B121: 5.95617782 | C121: 141.60984 | D121: 280.6488064 | E121: 480.6488064 | F121: 2.95517782 | G121: 27.61560595 | H121: 167.726411 | U121: 5.95617782 | V121: 141.60984 | W121: 3730.765452
B122: 5.96417782 | C122: 142.711926 | D122: 280.9701344 | E122: 480.9701344 | F122: 2.96317782 | G122: 27.70309428 | H122: 167.2373419 | U122: 5.96417782 | V122: 142.711926 | W122: 3794.145827
B123: 5.97217782 | C123: 140.3962646 | D123: 281.181662 | E123: 481.181662 | F123: 2.97117782 | G123: 25.47262429 | H123: 166.6774437 | U123: 5.97217782 | V123: 140.3962646 | W123: 3676.937191
B124: 5.98017782 | C124: 141.9447787 | D124: 281.2829193 | E124: 481.2829193 | F124: 2.97917782 | G124: 26.54777264 | H124: 166.2292161 | U124: 5.98017782 | V124: 141.9447787 | W124: 3763.524866
B125: 5.98817782 | C125: 139.8569437 | D125: 281.4248456 | E125: 481.4248456 | F125: 2.98717782 | G125: 25.27936235 | H125: 165.938281 | U125: 5.98817782 | V125: 139.8569437 | W125: 3658.508555
B126: 5.99617782 | C126: 142.0030065 | D126: 281.6743326 | E126: 481.6743326 | F126: 2.99517782 | G126: 26.04024843 | H126: 165.7287633 | U126: 5.99617782 | V126: 142.0030065 | W126: 3776.681611
B127: 6.00417782 | C127: 142.3010259 | D127: 281.9386169 | E127: 481.9386169 | F127: 3.00317782 | G127: 25.7564821 | H127: 165.4853273 | U127: 6.00417782 | V127: 142.3010259 | W127: 3797.605695
B128: 6.01217782 | C128: 143.3759042 | D128: 282.1021472 | E128: 482.1021472 | F128: 3.01117782 | G128: 25.68629488 | H128: 165.1354653 | U128: 6.01217782 | V128: 143.3759042 | W128: 3860.325171
B129: 6.02017782 | C129: 141.0709974 | D129: 282.1441573 | E129: 482.1441573 | F129: 3.01917782 | G129: 24.2959089 | H129: 164.6881269 | U129: 6.02017782 | V129: 141.0709974 | W129: 3742.174148
B130: 6.02817782 | C130: 141.4655648 | D130: 282.0630186 | E130: 482.0630186 | F130: 3.02717782 | G130: 24.2735149 | H130: 164.2052644 | U130: 6.02817782 | V130: 141.4655648 | W130: 3768.132797
B131: 6.03617782 | C131: 143.901952 | D131: 281.7665567 | E131: 481.7665567 | F131: 3.03517782 | G131: 23.5984424 | H131: 163.7407817 | U131: 6.03617782 | V131: 143.901952 | W131: 3904.213268
B132: 6.04417782 | C132: 142.3149983 | D132: 281.1715489 | E132: 481.1715489 | F132: 3.04317782 | G132: 23.26007492 | H132: 163.3135215 | U132: 6.04417782 | V132: 142.3149983 | W132: 3823.63283
B133: 6.05217782 | C133: 139.1077884 | D133: 280.3968788 | E133: 480.3968788 | F133: 3.05117782 | G133: 23.18209059 | H133: 162.9277829 | U133: 6.05217782 | V133: 139.1077884 | W133: 3658.066897
B134: 6.06017782 | C134: 138.6111893 | D134: 279.7334177 | E134: 479.7334177 | F134: 3.05917782 | G134: 21.92837647 | H134: 162.591281 | U134: 6.06017782 | V134: 138.6111893 | W134: 3636.792181
B135: 6.06817782 | C135: 139.2479614 | D135: 279.3923638 | E135: 479.3923638 | F135: 3.06717782 | G135: 22.57740136 | H135: 162.2980306 | U135: 6.06817782 | V135: 139.2479614 | W135: 3675.123963
B136: 6.07617782 | C136: 138.690036 | D136: 279.3330957 | E136: 479.3330957 | F136: 3.07517782 | G136: 22.01158418 | H136: =$A$2*(G130+G142)+$A$3*(G131+G141)+$A$4*(G132+G140)+$A$5*(G133+G139)+$A$6*(G134+G138)+$A$7*(G135+G137)+$A$8*G136+$H$1 -> 162.0113583 | U136: 6.07617782 | V136: 138.690036 | W136: 3650.534551
B137: 6.08417782 | C137: 140.1406405 | D137: 279.3386595 | E137: =D137/$E$1+$E$2 -> 479.3386595 | F137: 3.08317782 | G137: 21.9029612 | H137: 161.6994491 | U137: 6.08417782 | V137: 140.1406405 | W137: 3732.200998
B138: 6.09217782 | C138: 140.0720755 | D138: 279.2523325 | E138: 479.2523325 | F138: 3.09117782 | G138: 21.61445178 | H138: 161.4037851 | U138: 6.09217782 | V138: 140.0720755 | W138: 3733.447873
B139: 6.10017782 | C139: 139.3941259 | D139: 279.1645366 | E139: 479.1645366 | F139: 3.09917782 | G139: 20.43816986 | H139: 161.240361 | U139: 6.10017782 | V139: 139.3941259 | W139: 3702.246197
B140: 6.10817782 | C140: 136.2822311 | D140: 279.3243055 | E140: 479.3243055 | F140: 3.10717782 | G140: 19.66838421 | H140: 161.2846661 | U140: 6.10817782 | V140: 136.2822311 | W140: 3543.426739
B141: 6.11617782 | C141: 138.7212609 | D141: 279.7911372 | E141: 479.7911372 | F141: 3.11517782 | G141: 23.25391033 | H141: 161.462411 | U141: 6.11617782 | V141: 138.7212609 | W141: 3676.198354
B142: 6.12417782 | C142: 143.9955118 | D142: 280.2303777 | E142: 480.2303777 | F142: 3.12317782 | G142: 21.43542385 | H142: 161.6023511 | U142: 6.12417782 | V142: 143.9955118 | W142: 3966.230427
B143: 6.13217782 | C143: 140.8741899 | D143: 280.1755461 | E143: 480.1755461 | F143: 3.13117782 | G143: 22.07128254 | H143: 161.5945521 | U143: 6.13217782 | V143: 140.8741899 | W143: 3801.100045
B144: 6.14017782 | C144: 140.7792351 | D144: 279.4938093 | E144: 479.4938093 | F144: 3.13917782 | G144: 21.19042941 | H144: 161.4523104 | U144: 6.14017782 | V144: 140.7792351 | W144: 3800.925058
B145: 6.14817782 | C145: 137.8422444 | D145: 278.5199332 | E145: 478.5199332 | F145: 3.14717782 | G145: 21.22935868 | H145: 161.2285493 | U145: 6.14817782 | V145: 137.8422444 | W145: 3648.729815
B146: 6.15617782 | C146: 134.8034591 | D146: 277.7297593 | E146: 477.7297593 | F146: 3.15517782 | G146: 21.3132179 | H146: 160.9304922 | U146: 6.15617782 | V146: 134.8034591 | W146: 3494.164122
B147: 6.16417782 | C147: 137.9356486 | D147: 277.3316812 | E147: 477.3316812 | F147: 3.16317782 | G147: 20.7453621 | H147: 160.5389898 | U147: 6.16417782 | V147: 137.9356486 | W147: 3663.175528
B148: 6.17217782 | C148: 137.3589753 | D148: 277.1965469 | E148: 477.1965469 | F148: 3.17117782 | G148: 20.35919284 | H148: 160.079745 | U148: 6.17217782 | V148: 137.3589753 | W148: 3637.319894
B149: 6.18017782 | C149: 138.8206654 | D149: =$A$2*(C143+C155)+$A$3*(C144+C154)+$A$4*(C145+C153)+$A$5*(C146+C152)+$A$6*(C147+C151)+$A$7*(C148+C150)+$A$8*C149+$H$1 -> 277.1223036 | E149: 477.1223036 | F149: 3.17917782 | G149: 18.87409991 | H149: 159.6324994 | U149: 6.18017782 | V149: 138.8206654 | W149: 3719.954721
B150: 6.18817782 | C150: 134.2340083 | D150: 277.0319239 | E150: 477.0319239 | F150: 3.18717782 | G150: 18.99944118 | H150: 159.2575262 | U150: 6.18817782 | V150: 134.2340083 | W150: 3482.69783
B151: 6.19617782 | C151: 137.7055516 | D151: 276.8809671 | E151: 476.8809671 | F151: 3.19517782 | G151: 19.36642569 | H151: 158.9466592 | U151: 6.19617782 | V151: 137.7055516 | W151: 3669.899052
B152: 6.20417782 | C152: 138.772011 | D152: 276.5644782 | E152: 476.5644782 | F152: 3.20317782 | G152: 19.0430814 | H152: 158.6783887 | U152: 6.20417782 | V152: 138.772011 | W152: 3731.769414
B153: 6.21217782 | C153: 136.1305687 | D153: 276.0954629 | E153: 476.0954629 | F153: 3.21117782 | G153: 17.57012116 | H153: 158.4861412 | U153: 6.21217782 | V153: 136.1305687 | W153: 3595.683434
B154: 6.22017782 | C154: 133.8658599 | D154: 275.7649571 | E154: 475.7649571 | F154: 3.21917782 | G154: 17.74462267 | H154: 158.4176998 | U154: 6.22017782 | V154: 133.8658599 | W154: 3481.514182
B155: 6.22817782 | C155: 133.1992733 | D155: 275.8883369 | E155: 475.8883369 | F155: 3.22717782 | G155: 19.23274463 | H155: 158.4519856 | U155: 6.22817782 | V155: 133.1992733 | W155: 3451.356888
B156: 6.23617782 | C156: 136.9143739 | D156: 276.3747536 | E156: 476.3747536 | F156: 3.23517782 | G156: 18.76204349 | H156: 158.5170023 | U156: 6.23617782 | V156: 136.9143739 | W156: 3651.246767
B157: 6.24417782 | C157: 140.0586841 | D157: 276.729433 | E157: 476.729433 | F157: 3.24317782 | G157: 17.84461724 | H157: 158.5777332 | U157: 6.24417782 | V157: 140.0586841 | W157: 3825.774787
B158: 6.25217782 | C158: 137.9595977 | D158: 276.5599886 | E158: 476.5599886 | F158: 3.25117782 | G158: 18.91569025 | H158: 158.6591477 | U158: 6.25217782 | V158: 137.9595977 | W158: 3716.709894
B159: 6.26017782 | C159: 134.8489338 | D159: 275.9611294 | E159: 475.9611294 | F159: 3.25917782 | G159: 18.98559765 | H159: 158.7869824 | U159: 6.26017782 | V159: 134.8489338 | W159: 3555.532524
B160: 6.26817782 | C160: 132.9102776 | D160: 275.3218756 | E160: 475.3218756 | F160: 3.26717782 | G160: 17.95693783 | H160: 158.9190134 | U160: 6.26817782 | V160: 132.9102776 | W160: 3458.444716
B161: 6.27617782 | C161: 136.7721044 | D161: 274.8802284 | E161: 474.8802284 | F161: 3.27517782 | G161: 20.18782866 | H161: 158.9242502 | U161: 6.27617782 | V161: 136.7721044 | W161: 3667.010422
B162: 6.28417782 | C162: 133.7180058 | D162: 274.5919395 | E162: 474.5919395 | F162: 3.28317782 | G162: 19.47800023 | H162: 158.6650627 | U162: 6.28417782 | V162: 133.7180058 | W162: 3509.534694
B163: 6.29217782 | C163: 135.5730574 | D163: 274.3237361 | E163: 474.3237361 | F163: 3.29117782 | G163: 19.13670696 | H163: 158.1617299 | U163: 6.29217782 | V163: 135.5730574 | W163: 3612.172696
B164: 6.30017782 | C164: 131.5551792 | D164: 273.9890593 | E164: 473.9890593 | F164: 3.29917782 | G164: 15.6010698 | H164: 157.6587775 | U164: 6.30017782 | V164: 131.5551792 | W164: 3405.562778
B165: 6.30817782 | C165: 136.9091882 | D165: 273.5282793 | E165: 473.5282793 | F165: 3.30717782 | G165: 16.69346792 | H165: 157.4603309 | U165: 6.30817782 | V165: 136.9091882 | W165: 3693.080237
B166: 6.31617782 | C166: 131.888892 | D166: 272.9324499 | E166: 472.9324499 | F166: 3.31517782 | G166: 17.12193704 | H166: 157.6848152 | U166: 6.31617782 | V166: 131.888892 | W166: 3431.546253
B167: 6.32417782 | C167: 131.5357943 | D167: 272.3335551 | E167: 472.3335551 | F167: 3.32317782 | G167: 18.12188389 | H167: 158.1988186 | U167: 6.32417782 | V167: 131.5357943 | W167: 3417.515459
B168: 6.33217782 | C168: 132.5424322 | D168: 271.9738971 | E168: 471.9738971 | F168: 3.33117782 | G168: 19.9408723 | H168: 158.7666342 | U168: 6.33217782 | V168: 132.5424322 | W168: 3474.408887
B169: 6.34017782 | C169: 128.6230978 | D169: 272.0084976 | E169: 472.0084976 | F169: 3.33917782 | G169: 18.69374497 | H169: 159.2245306 | U169: 6.34017782 | V169: 128.6230978 | W169: 3276.097085
B170: 6.34817782 | C170: 133.6075985 | D170: 272.3449877 | E170: 472.3449877 | F170: 3.34717782 | G170: 20.0367041 | H170: 159.5255881 | U170: 6.34817782 | V170: 133.6075985 | W170: 3539.38849
B171: 6.35617782 | C171: 134.7131274 | D171: 272.7284816 | E171: 472.7284816 | F171: 3.35517782 | G171: 19.88212947 | H171: 159.6838417 | U171: 6.35617782 | V171: 134.7131274 | W171: 3602.733597
B172: 6.36417782 | C172: 131.8576107 | D172: 272.9897491 | E172: 472.9897491 | F172: 3.36317782 | G172: 19.84678803 | H172: 159.7256875 | U172: 6.36417782 | V172: 131.8576107 | W172: 3455.957739
B173: 6.37217782 | C173: 132.6984945 | D173: 273.1543543 | E173: 473.1543543 | F173: 3.37117782 | G173: 19.68617936 | H173: 159.6862735 | U173: 6.37217782 | V173: 132.6984945 | W173: 3504.572345
B174: 6.38017782 | C174: 134.1395426 | D174: 273.310791 | E174: 473.310791 | F174: 3.37917782 | G174: 19.71946497 | H174: 159.6174255 | U174: 6.38017782 | V174: 134.1395426 | W174: 3585.593188
B175: 6.38817782 | C175: 132.7755795 | D175: 273.4567148 | E175: 473.4567148 | F175: 3.38717782 | G175: 19.27059085 | H175: 159.5804692 | U175: 6.38817782 | V175: 132.7755795 | W175: 3517.445959
B176: 6.39617782 | C176: 134.1441136 | D176: 273.5041117 | E176: 473.5041117 | F176: 3.39517782 | G176: 19.43367155 | H176: 159.6212366 | U176: 6.39617782 | V176: 134.1441136 | W176: 3594.820679
B177: 6.40417782 | C177: 134.4067871 | D177: 273.3904062 | E177: 473.3904062 | F177: 3.40317782 | G177: 19.60139319 | H177: 159.7343824 | U177: 6.40417782 | V177: 134.4067871 | W177: 3613.421955
B178: 6.41217782 | C178: 132.5198036 | D178: 273.1583845 | E178: 473.1583845 | F178: 3.41117782 | G178: 19.90452725 | H178: 159.8481272 | U178: 6.41217782 | V178: 132.5198036 | W178: 3517.057405
B179: 6.42017782 | C179: 132.5393696 | D179: 272.918653 | E179: 472.918653 | F179: 3.41917782 | G179: 20.64935138 | H179: 159.8712333 | U179: 6.42017782 | V179: 132.5393696 | W179: 3522.480714
B180: 6.42817782 | C180: 132.4607898 | D180: 272.7362443 | E180: 472.7362443 | F180: 3.42717782 | G180: 20.04527854 | H180: 159.7823149 | U180: 6.42817782 | V180: 132.4607898 | W180: 3522.684607
B181: 6.43617782 | C181: 133.1586803 | D181: 272.6025508 | E181: 472.6025508 | F181: 3.43517782 | G181: 18.8985769 | H181: 159.6615672 | U181: 6.43617782 | V181: 133.1586803 | W181: 3564.327746
B182: 6.44417782 | C182: 133.456016 | D182: 272.5329482 | E182: 472.5329482 | F182: 3.44317782 | G182: 19.28658193 | H182: 159.6095539 | U182: 6.44417782 | V182: 133.456016 | W182: 3584.708879
B183: 6.45217782 | C183: 129.3868064 | D183: 272.5918354 | E183: 472.5918354 | F183: 3.45117782 | G183: 19.79822555 | H183: 159.6449734 | U183: 6.45217782 | V183: 129.3868064 | W183: 3373.617258
B184: 6.46017782 | C184: 133.9357702 | D184: 272.7533283 | E184: 472.7533283 | F184: 3.45917782 | G184: 20.20021683 | H184: 159.7056512 | U184: 6.46017782 | V184: 133.9357702 | W184: 3619.483132
B185: 6.46817782 | C185: 134.540657 | D185: 272.831063 | E185: 472.831063 | F185: 3.46717782 | G185: 19.11949996 | H185: 159.739895 | U185: 6.46817782 | V185: 134.540657 | W185: 3656.767885
B186: 6.47617782 | C186: 133.2032297 | D186: 272.6255481 | E186: 472.6255481 | F186: 3.47517782 | G186: 20.81307003 | H186: 159.772835 | U186: 6.47617782 | V186: 133.2032297 | W186: 3588.856218
B187: 6.48417782 | C187: 130.158851 | D187: 272.0784495 | E187: 472.0784495 | F187: 3.48317782 | G187: 18.25588369 | H187: 159.8776031 | U187: 6.48417782 | V187: 130.158851 | W187: 3430.911704
B188: 6.49217782 | C188: 135.0164679 | D188: 271.2730091 | E188: 471.2730091 | F188: 3.49117782 | G188: 20.31381942 | H188: 160.0875293 | U188: 6.49217782 | V188: 135.0164679 | W188: 3696.328255
B189: 6.50017782 | C189: 128.2731864 | D189: 270.3905812 | E189: 470.3905812 | F189: 3.49917782 | G189: 20.95420117 | H189: 160.3474092 | U189: 6.50017782 | V189: 128.2731864 | W189: 3340.435348
B190: 6.50817782 | C190: 128.47692 | D190: 269.6626934 | E190: 469.6626934 | F190: 3.50717782 | G190: 20.35148641 | H190: 160.5549334 | U190: 6.50817782 | V190: 128.47692 | W190: 3355.17469
B191: 6.51617782 | C191: 129.037289 | D191: 269.2473591 | E191: 469.2473591 | F191: 3.51517782 | G191: 21.10250809 | H191: 160.6352692 | U191: 6.51617782 | V191: 129.037289 | W191: 3388.662423
B192: 6.52417782 | C192: 129.5080671 | D192: 269.1273621 | E192: 469.1273621 | F192: 3.52317782 | G192: 20.79879994 | H192: 160.577555 | U192: 6.52417782 | V192: 129.5080671 | W192: 3417.620033
B193: 6.53217782 | C193: 128.1880367 | D193: 269.1585697 | E193: 469.1585697 | F193: 3.53117782 | G193: 20.50117835 | H193: 160.4380741 | U193: 6.53217782 | V193: 128.1880367 | W193: 3352.407155
B194: 6.54017782 | C194: 130.3857355 | D194: 269.184795 | E194: 469.184795 | F194: 3.53917782 | G194: 20.05191074 | H194: 160.3238122 | U194: 6.54017782 | V194: 130.3857355 | W194: 3472.585202
B195: 6.54817782 | C195: 128.7198512 | D195: 269.1031285 | E195: 469.1031285 | F195: 3.54717782 | G195: 19.57995154 | H195: 160.3300209 | U195: 6.54817782 | V195: 128.7198512 | W195: 3388.55186
B196: 6.55617782 | C196: 129.9281047 | D196: 268.8903182 | E196: 468.8903182 | F196: 3.55517782 | G196: 20.33728358 | H196: 160.4559138 | U196: 6.55617782 | V196: 129.9281047 | W196: 3456.67833
B197: 6.56417782 | C197: 127.7170214 | D197: 268.5992892 | E197: 468.5992892 | F197: 3.56317782 | G197: 21.35596967 | H197: 160.6030374 | U197: 6.56417782 | V197: 127.7170214 | W197: 3344.100785
B198: 6.57217782 | C198: 128.2251085 | D198: 268.2979937 | E198: 468.2979937 | F198: 3.57117782 | G198: 21.13106468 | H198: 160.6902162 | U198: 6.57217782 | V198: 128.2251085 | W198: 3374.864445
B199: 6.58017782 | C199: 128.5624312 | D199: 267.9945345 | E199: 467.9945345 | F199: 3.57917782 | G199: 20.08704009 | H199: 160.74994 | U199: 6.58017782 | V199: 128.5624312 | W199: 3396.769529
B200: 6.58817782 | C200: 127.2225478 | D200: 267.6416289 | E200: 467.6416289 | F200: 3.58717782 | G200: 20.23102077 | H200: =$A$2*(G194+G206)+$A$3*(G195+G205)+$A$4*(G196+G204)+$A$5*(G197+G203)+$A$6*(G198+G202)+$A$7*(G199+G201)+$A$8*G200+$H$1 -> 160.8732022 | U200: 6.58817782 | V200: 127.2225478 | W200: 3330.375529
... 4300 more rows
